Workbook

Sheet Instructions
M7: © 2014
B8: LM5069 Design Tool with FET Recommendation - Rev. A
B10: Typical design procedure
B12: Before proceeding, please go through the application note | I12: Robust Hot Swap Design
B13: and the design example in the | F13: LM5069 Datasheet (See "Design-In Procedure")
A16: Step 1: | B16: 1. Enter your system parameters (operating voltage limits, load current, load capacitance, system max ambient temperature )
B17: 2. Enter FET operating parameters (preferred FET operating junction temperature, thermal impedance)
C18: Note: The tool adjusts the number of FETs required in parallel to maintain the preferred FET operating junction temperature.
C19: Note: Thermal impedance is heavily dependent on the board layout and the amount of copper connected to the drain of the FET.
C20: Thermal impedance is required to determine MOSFET SOA margin.
B21: 3. Enter the load startup conditions (startup mode, startup load type, load turn on threshold, startup load value)
A23: Step 2: | B23: 1. Set the current limit settings. Use a resistive divider to reduce effective sense resistance if needed.
B24: 2. Select Target power limit greater than the Minimum Recommended Power Limit threshold
A26: Step 3: | B26: 1. Select MOSFETs from the dropdown menu.
B27: 2. Compare their SOA margin, cost, power dissipation at full load and number of FETs required in parallel to know which FET fits your design perfectly.
C28: Note: You can also enter the SOA data of a non-TI FET to compare it with TI FETs.
C29: An SOA margin greater than 1.1 is required and greater than 1.3 is recommended for safe operation
B30: 3. If none of the FETs satisfy the SOA margin, try to change the following parameters:
C31: a. In case of power limit startup mode, reduce the load startup conditions or use a different FET in the non-TI FET column.
C32: b. In case of soft start startup mode, reduce the fault timer or use a different FET in the non-TI FET column.
B33: Note: The FETs selected in this section will be available as the final choices in the next section.
B34: (Links to the TI FET product pages have been provided)
A36: Step 4: | B36: 1. Select an FET from the dropdown menu.
B37: 2. Review start up conditions to check whether selected FET is operating with reasonable margin, within the SOA curve.
B38: 3. Adjust Soft-start and Timer capacitances to get accurate SOA measurements.
A40: Step 5: | B40: 1. Enter desired UVLO and OVLO threshold values to get recommended resistor values.
B41: 2. In case any of the cells in the threshold table is highlighted in red, adjust the resistor values.
B42: 3. If nearest resistor values still give red highlighted cells, change the configuration
A44: Step 6: | B44: Done. View the design summary with all the results
B46: * Comments on the data to be filled/expected are provided to guide you
B48: Notes
B49: 1. This worksheet is designed for use with Microsoft Excel 5.0 or later. Its use is intended to assist power supply designers in their
B50: routine, day-to-day calculations.
B52: 2. All worksheets have light green inputs cells, white calculated cells, yellow warning cells and red high-risk cells.
B54: 3. Formulas and device constants used in the spreadsheet are locked to prohibit them from accidentally being overwritten or deleted.
B57: TEXAS INSTRUMENTS TEXT FILE LICENSE Copyright (c) 2014 Texas Instruments Incorporated All rights reserved not granted herein. Limited License. Texas Instruments Incorporated grants a world-wide, royalty-free, non-exclusive license under copyrights and patents it now or hereafter owns or controls to make, have made, use, import, offer to sell and sell ("Utilize") this software subject to the terms herein. With respect to the foregoing patent license, such license is granted solely to the extent that any such patent is necessary to Utilize the software alone. The patent license shall not apply to any combinations which include this software, other than combinations with devices manufactured by or for TI (“TI Devices”). No hardware patent is licensed hereunder. Redistributions must preserve existing copyright notices and reproduce this license (including the above copyright notice and the disclaimer and (if applicable) source code license limitations below) in the documentation and/or other materials provided with the distribution Redistribution and use in binary form, without modification, are permitted provided that the following conditions are met: * No reverse engineering, decompilation, or disassembly of this software is permitted with respect to any software provided in binary form. * any redistribution and use are licensed by TI for use only with TI Devices. * Nothing shall obligate TI to provide you with source code for the software licensed and provided to you in object code. If software source code is provided to you, modification and redistribution of the source code are permitted provided that the following conditions are met: * any redistribution and use of the source code, including any resulting derivative works, are licensed by TI for use only with TI Devices. * any redistribution and use of any object code compiled from the source code and any resulting derivative works, are licensed by TI for use only with TI Devices. Neither the name of Texas Instruments Incorporated nor the names of its suppliers may be used to endorse or promote products derived from this software without specific prior written permission. DISCLAIMER. THIS SOFTWARE IS PROVIDED BY TI AND TI’S LICENSORS "AS IS" AND ANY EXPRESS OR IMPLIED WARRANTIES, INCLUDING, BUT NOT LIMITED TO, THE IMPLIED WARRANTIES OF MERCHANTABILITY AND FITNESS FOR A PARTICULAR PURPOSE ARE DISCLAIMED. IN NO EVENT SHALL TI AND TI’S LICENSORS BE LIABLE FOR ANY DIRECT, INDIRECT, INCIDENTAL, SPECIAL, EXEMPLARY, OR CONSEQUENTIAL DAMAGES (INCLUDING, BUT NOT LIMITED TO, PROCUREMENT OF SUBSTITUTE GOODS OR SERVICES; LOSS OF USE, DATA, OR PROFITS; OR BUSINESS INTERRUPTION) HOWEVER CAUSED AND ON ANY THEORY OF LIABILITY, WHETHER IN CONTRACT, STRICT LIABILITY, OR TORT (INCLUDING NEGLIGENCE OR OTHERWISE) ARISING IN ANY WAY OUT OF THE USE OF THIS SOFTWARE, EVEN IF ADVISED OF THE POSSIBILITY OF SUCH DAMAGE.

Sheet Design Calculator
A1: LM5069 Hot Swap Design Tool with FET Recommendation
B2: www.ti.com/hotswap
D10: Enter Values in Green Shaded Cells
D11: Calculated Values are shown in White Cells
D12: Yellow and Red cells highlight potential issues with the design. Red highlights items that are higher risk.
AT13: Yes
D15: LM5069 Datasheet
D16: *For additional questions not addressed in the instructions, please post on E2E.ti.com
B19: Step 1: System Parameters | E19: Minimum Input Operating Voltage: VIN(MIN) | F19: 18 | G19: V
E20: Nominal Input Operating Voltage: VIN(NOM) | F20: 24 | G20: V
E21: Maximum Input Operating Voltage: VIN(MAX) | F21: 25.2 | G21: V
E22: Maximum Load Current: IOUT(MAX) | F22: 25 | G22: A
E23: Maximum Output Load Capacitance: CLOAD | F23: 10 | G23: µF
E24: Maximum Ambient Operating Temperature: TMAX | F24: 85 | G24: oC | H24: Note: The tool adjusts the number of FETs required in parallel to maintain the preferred FET operating junction temperature (TJ,DC)
E25: Preferred FET operating junction temperature (Tj,DC) | F25: 100 | G25: oC
E26: Estimated MOSFET RQJA | F26: 30 | G26: oC/W
E27: Load Turn-On Threshold | F27: 0 | G27: V
E28: Startup Load Type | F28: Constant Current | H28: Note: In case none of the FETs satisfy the SOA margin, reduce the load startup conditions
E29: Startup Load Value | F29: 15 | G29: =IF(F28="Constant Current","A","Ohms") -> A
E30: System startup mode | F30: Soft Start | H30: Note: In case none of the FETs satisfy the SOA margin, reduce the fault timer
E31: Fault timer required | F31: 0.1 | G31: ms
B32: Step 2: Current Limit and Power Limit Selection | E32: Current Limit Threshold Voltage | F32: 55 mV
E33: Maximum Recommended Value for Effective Sense Resistance | F33: =Equations!F20 -> 1.920792079 | G33: mW
E34: Use External Resistor Divider to Reduce Effecitve RS | F34: No | AP34: Yes
E35: Enter the Resistance for RS | F35: 1.5 | G35: mW | AP35: No
E36: Recommended Value for RCL1 | F36: =Equations!F21 -> NA | G36: W
E37: Recommended Value for RCL2 | F37: =Equations!F22 -> NA | G37: W
E38: Enter value for RCL1 | F38: 10 | G38: W | AP38: =AND(F34="No") -> TRUE
E39: Enter value for RCL2 | F39: 0.31 | G39: W
E40: Effective Sense Resistance (RS,EFF) | F40: =RsEFF -> 1.5 | G40: mW
E41: Resulting Minimum Current Limit | F41: 40 | G41: A
E42: Resulting Typical Current Limit | F42: 40 | G42: A
E43: Resulting Maximum Current Limit | F43: 40 | G43: A | AP43: Retry
E44: Maximum Power Dissipation in RS | F44: =Equations!F27/1000 -> 2.5215 | G44: W | K44: Note: Use a resistive divider to fine tune the current limit setting if needed | AP44: Latch Off
E45: Fault Response | F45: Retry | AP45: 1.9 x Current Limit
E46: Circuit Breaker to Current Limit Raitio | F46: 1.9 x Current Limit | AP46: 3.9 x Current Limit
E48: Minimum Power Limit to Ensure Vsns > 5mV (PLIM,MIN) | F48: =Equations!F40 -> 84 | G48: W
E49: Target Power Limit | F49: 100 | G49: W
E50: Calculated RPWR | F50: =Equations!F42 -> 18.75 | G50: kW
E51: Actual RPWR | F51: 33 | G51: kW
E52: Actual PLIM | F52: =Equations!F44 -> 176 | G52: W
B53: Step 3: MOSFET Suggestions | E53: Q1 FET Name | F53: Part Number , SOA margin, $1ku | G53: Part Number , SOA margin, $1ku | H53: MOSFET from non-TI suppliers | AV53: FET part number (48V FETs) | AW53: FET display name (48V FETs) | AX53: cost | AY53: power dissipation | AZ53: SOA margin | BD53: FET part number (24V FETs) | BE53: FET display name (24V FETs) | BF53: cost | BG53: power dissipation | BH53: SOA margin
B54: Scroll down the dropdown menu to select MOSFET | E54: Choose FETs for comparison | F54: CSD19506KTT , 30.2 , $1.972 | G54: CSD19505KTT , 18.39 , $1.313 | H54: NON-TI MOSFET | AP54: =((((TJMAX-TAMB)/ThetaJA)/(CLMAX^2))*1000)*NUMFETS1^2 -> 27.66210589 | AQ54: =((TJMAX-TAMB)/ThetaJA) -> 5.166666667 | AV54: ='MOSFET Database 48V'!B4 -> CSD19536KTT | AW54: =AV54&" , "&ROUND(AZ54,2)&" , $"&AX54 -> CSD19536KTT , 40.47 , $1.972 | AX54: ='MOSFET Database 48V'!C35 -> 1.972 | AY54: ='MOSFET Database 48V'!C33 -> 0.24 | AZ54: ='MOSFET Database 48V'!C61 -> 40.467832 | BD54: ='MOSFET Database 24V'!R4 -> CSD19506KTT | BE54: =BD54&" , "&ROUND(BH54,2)&" , $"&BF54 -> CSD19506KTT , 30.2 , $1.972 | BF54: ='MOSFET Database 24V'!S35 -> 1.972 | BG54: ='MOSFET Database 24V'!S33 -> 0.2315972222 | BH54: ='MOSFET Database 24V'!S61 -> 30.20082157
E55: MOSFET On resistance @ TJ,DC | F55: =IF(VINMAX<=40,'MOSFET Database 24V'!C80,'MOSFET Database 48V'!C80) -> 3.335 | G55: =IF(VINMAX<=40,'MOSFET Database 24V'!G80,'MOSFET Database 48V'!G80) -> 4.526 | H55: 2 | I55: mW | AP55: Values Used | AV55: ='MOSFET Database 48V'!F4 -> CSD19535KTT | AW55: CSD19535KTT , 13 , $1.313 | AX55: ='MOSFET Database 48V'!G35 -> 1.313 | AY55: ='MOSFET Database 48V'!G33 -> 0.3730555556 | AZ55: ='MOSFET Database 48V'!G61 -> 13.00414775 | BD55: ='MOSFET Database 24V'!F4 -> CSD18536KTT | BE55: =BD55&" , "&ROUND(BH55,2)&" , $"&BF55 -> CSD18536KTT , 21.68 , $1.894 | BF55: ='MOSFET Database 24V'!G35 -> 1.894 | BG55: ='MOSFET Database 24V'!G33 -> 0.35 | BH55: ='MOSFET Database 24V'!G61 -> 21.68213503
E56: Maximum FET Junction Temperature | F56: =IF(VINMAX<=40,'MOSFET Database 24V'!C79,'MOSFET Database 48V'!C79) -> 175 | G56: =IF(VINMAX<=40,'MOSFET Database 24V'!G79,'MOSFET Database 48V'!G79) -> 175 | H56: 175 | I56: oC | AP56: =H56 -> 175 | AV56: ='MOSFET Database 48V'!N4 -> CSD19532KTT | AW56: CSD19532KTT , 16.43 , $0.914 | AX56: ='MOSFET Database 48V'!O35 -> 0.914 | AY56: ='MOSFET Database 48V'!O33 -> 0.35 | AZ56: ='MOSFET Database 48V'!O61 -> 16.43436532 | BD56: ='MOSFET Database 24V'!J4 -> CSD18535KTT | BE56: =BD56&" , "&ROUND(BH56,2)&" , $"&BF56 -> CSD18535KTT , 20.97 , $1.266 | BF56: ='MOSFET Database 24V'!K35 -> 1.266 | BG56: ='MOSFET Database 24V'!K33 -> 0.4375 | BH56: ='MOSFET Database 24V'!K61 -> 20.96621548
E57: 10ms SOA Current@ VIN(MAX) | F57: =IF(VINMAX<=40,'MOSFET Database 24V'!C70,'MOSFET Database 48V'!C70) -> 400 | G57: =IF(VINMAX<=40,'MOSFET Database 24V'!G70,'MOSFET Database 48V'!G70) -> 400 | H57: 240 | I57: A | AP57: =H57 -> 240 | AV57: ='MOSFET Database 48V'!R4 -> CSD19531Q5A | AW57: CSD19531Q5A , 3.14 , $0.611 | AX57: ='MOSFET Database 48V'!S35 -> 0.611 | AY57: ='MOSFET Database 48V'!S33 -> 0.39 | AZ57: ='MOSFET Database 48V'!S61 -> 3.144264353 | BD57: ='MOSFET Database 24V'!V4 -> CSD19505KTT | BE57: =BD57&" , "&ROUND(BH57,2)&" , $"&BF57 -> CSD19505KTT , 18.39 , $1.313 | BF57: ='MOSFET Database 24V'!W35 -> 1.313 | BG57: ='MOSFET Database 24V'!W33 -> 0.3143055556 | BH57: ='MOSFET Database 24V'!W61 -> 18.38521031
E58: 100µs SOA Current @ VIN(MAX) | F58: =IF(VINMAX<=40,'MOSFET Database 24V'!C71,'MOSFET Database 48V'!C71) -> 380.952381 | G58: =IF(VINMAX<=40,'MOSFET Database 24V'!G71,'MOSFET Database 48V'!G71) -> 239.047619 | H58: 35 | I58: A | AP58: 35 | AV58: ='MOSFET Database 48V'!J4 -> CSD19532Q5B | AW58: CSD19532Q5B , 2.54 , $0.896 | AX58: ='MOSFET Database 48V'!K35 -> 0.896 | AY58: ='MOSFET Database 48V'!K33 -> 0.3043359375 | AZ58: ='MOSFET Database 48V'!K61 -> 2.535239826 | BD58: ='MOSFET Database 24V'!N4 -> CSD18540Q5B | BE58: =BD58&" , "&ROUND(BH58,2)&" , $"&BF58 -> CSD18540Q5B , 12.32 , $0.867 | BF58: ='MOSFET Database 24V'!O35 -> 0.867 | BG58: ='MOSFET Database 24V'!O33 -> 0.488125 | BH58: ='MOSFET Database 24V'!O61 -> 12.32222884
E59: 1ms SOA Current @ VIN(MAX) | F59: =IF(VINMAX<=40,'MOSFET Database 24V'!C72,'MOSFET Database 48V'!C72) -> 38.09174527 | G59: =IF(VINMAX<=40,'MOSFET Database 24V'!G72,'MOSFET Database 48V'!G72) -> 24.3892504 | H59: 3 | I59: A | AP59: 3 | AV59: ='MOSFET Database 48V'!V4 -> CSD19533Q5A | AW59: CSD19533Q5A , 1.92 , $0.48 | AX59: ='MOSFET Database 48V'!W35 -> 0.48 | AY59: ='MOSFET Database 48V'!W33 -> 0.376 | AZ59: ='MOSFET Database 48V'!W61 -> 1.917775674 | BD59: ='MOSFET Database 24V'!AH4 -> CSD18542KTT | BE59: =BD59&" , "&ROUND(BH59,2)&" , $"&BF59 -> CSD18542KTT , 11.27 , $0.861 | BF59: ='MOSFET Database 24V'!AI35 -> 0.861 | BG59: ='MOSFET Database 24V'!AI33 -> 0.4083333333 | BH59: ='MOSFET Database 24V'!AI61 -> 11.26930012
E60: 10ms Current at @ VIN(MAX) | F60: =IF(VINMAX<=40,'MOSFET Database 24V'!C73,'MOSFET Database 48V'!C73) -> 12.90557631 | G60: =IF(VINMAX<=40,'MOSFET Database 24V'!G73,'MOSFET Database 48V'!G73) -> 7.35034721 | H60: 2 | I60: A | AP60: 2 | AV60: ='MOSFET Database 48V'!AD4 -> CSD19534Q5A | AW60: CSD19534Q5A , 1.34 , $0.335 | AX60: ='MOSFET Database 48V'!AE35 -> 0.335 | AY60: ='MOSFET Database 48V'!AE33 -> 0.40109375 | AZ60: ='MOSFET Database 48V'!AE61 -> 1.335097222 | BD60: ='MOSFET Database 24V'!AD4 -> CSD18532NQ5B | BE60: =BD60&" , "&ROUND(BH60,2)&" , $"&BF60 -> CSD18532NQ5B , 9.67 , $0.845 | BF60: ='MOSFET Database 24V'!AE35 -> 0.845 | BG60: ='MOSFET Database 24V'!AE33 -> 0.3683333333 | BH60: ='MOSFET Database 24V'!AE61 -> 9.667367343
E61: 100ms SOA Current at @ VIN(MAX) | F61: =IF(VINMAX<=40,'MOSFET Database 24V'!C74,'MOSFET Database 48V'!C74) -> 6.656716701 | G61: =IF(VINMAX<=40,'MOSFET Database 24V'!G74,'MOSFET Database 48V'!G74) -> 4.505114358 | H61: 0.1 | I61: A | AP61: 0.1 | AV61: ='MOSFET Database 48V'!Z4 -> CSD19537Q3 | AW61: CSD19537Q3 , 2.89 , $0.401 | AX61: ='MOSFET Database 48V'!AA35 -> 0.401 | AY61: ='MOSFET Database 48V'!AA33 -> 0.4052951389 | AZ61: ='MOSFET Database 48V'!AA61 -> 2.894677444 | BD61: ='MOSFET Database 24V'!AP4 -> CSD18532KCS | BE61: =BD61&" , "&ROUND(BH61,2)&" , $"&BF61 -> CSD18532KCS , 6.98 , $0.818 | BF61: ='MOSFET Database 24V'!AQ35 -> 0.818 | BG61: ='MOSFET Database 24V'!AQ33 -> 0.4316666667 | BH61: ='MOSFET Database 24V'!AQ61 -> 6.982843268
AP62: 0 | AV62: ='MOSFET Database 48V'!AL4 -> CSD19538Q3A | AW62: CSD19538Q3A , 1.17 , $0.162 | AX62: ='MOSFET Database 48V'!AM35 -> 0.162 | AY62: ='MOSFET Database 48V'!AM33 -> 0.4571280992 | AZ62: ='MOSFET Database 48V'!AM61 -> 1.172957772 | BD62: ='MOSFET Database 24V'!BR4 -> CSD18543Q3A | BE62: =BD62&" , "&ROUND(BH62,2)&" , $"&BF62 -> CSD18543Q3A , 2.64 , $0.258 | BF62: ='MOSFET Database 24V'!BS35 -> 0.258 | BG62: ='MOSFET Database 24V'!BS33 -> 0.36135 | BH62: ='MOSFET Database 24V'!BS61 -> 2.639254464
B63: Note: TI recommends choosing a FET with SOA current specified for 100ms and/or 1s or DC. If choosing a FET without these parameters, this calculator will estimate the values via extrapolation, which leaves an inherent associated risk. | AV63: ='MOSFET Database 48V'!AH4 -> CSD19538Q2 | AW63: CSD19538Q2 , 1.07 , $0.162 | AX63: ='MOSFET Database 48V'!AI35 -> 0.162 | AY63: ='MOSFET Database 48V'!AI33 -> 0.4815082645 | AZ63: ='MOSFET Database 48V'!AI61 -> 1.071059206 | BD63: ='MOSFET Database 24V'!Z4 -> CSD18532Q5B | BE63: =BD63&" , "&ROUND(BH63,2)&" , $"&BF63 -> CSD18532Q5B , 2.52 , $0.845 | BF63: ='MOSFET Database 24V'!AA35 -> 0.845 | BG63: ='MOSFET Database 24V'!AA33 -> 0.3533333333 | BH63: ='MOSFET Database 24V'!AA61 -> 2.520721815
E64: Number of FETs suggested | F64: =IF(VINMAX<=40,'MOSFET Database 24V'!C77,'MOSFET Database 48V'!C77) -> 3 | G64: =IF(VINMAX<=40,'MOSFET Database 24V'!G77,'MOSFET Database 48V'!G77) -> 3 | H64: ='MOSFET Database 24V'!K77 -> 2 | I64: # | BD64: ='MOSFET Database 24V'!AL4 -> CSD19502Q5B | BE64: =BD64&" , "&ROUND(BH64,2)&" , $"&BF64 -> CSD19502Q5B , 2.38 , $0.896 | BF64: ='MOSFET Database 24V'!AM35 -> 0.896 | BG64: ='MOSFET Database 24V'!AM33 -> 0.4213888889 | BH64: ='MOSFET Database 24V'!AM61 -> 2.375892563
E65: FET Power dissapation at full load (per FET) | F65: =IF(VINMAX<=40,'MOSFET Database 24V'!C76,'MOSFET Database 48V'!C76) -> 0.2315972222 | G65: =IF(VINMAX<=40,'MOSFET Database 24V'!G76,'MOSFET Database 48V'!G76) -> 0.3143055556 | H65: ='MOSFET Database 24V'!K76 -> 0.3125 | I65: W | BD65: ='MOSFET Database 24V'!AT4 -> CSD18531Q5A | BE65: =BD65&" , "&ROUND(BH65,2)&" , $"&BF65 -> CSD18531Q5A , 2.12 , $0.589 | BF65: ='MOSFET Database 24V'!AU35 -> 0.589 | BG65: ='MOSFET Database 24V'!AU33 -> 0.4823611111 | BH65: ='MOSFET Database 24V'!AU61 -> 2.115120691
E66: Maximum steady state FET Junction Temperature (TJ,DC) | F66: =IF(VINMAX<=40,'MOSFET Database 24V'!C78,'MOSFET Database 48V'!C78) -> 91.94791667 | G66: =IF(VINMAX<=40,'MOSFET Database 24V'!G78,'MOSFET Database 48V'!G78) -> 94.42916667 | H66: ='MOSFET Database 24V'!K78 -> 94.375 | I66: oC | BD66: ='MOSFET Database 24V'!BN4 -> CSD18534Q5A | BE66: =BD66&" , "&ROUND(BH66,2)&" , $"&BF66 -> CSD18534Q5A , 2.07 , $0.326 | BF66: ='MOSFET Database 24V'!BO35 -> 0.326 | BG66: ='MOSFET Database 24V'!BO33 -> 0.3675 | BH66: ='MOSFET Database 24V'!BO61 -> 2.068585334
E67: SOA Margin | F67: =IF(VINMAX<=40,'MOSFET Database 24V'!C81,'MOSFET Database 48V'!C81) -> 30.20082157 | G67: =IF(VINMAX<=40,'MOSFET Database 24V'!G81,'MOSFET Database 48V'!G81) -> 18.38521031 | H67: ='MOSFET Database 24V'!K81 -> 2.693833199 | BD67: ='MOSFET Database 24V'!BJ4 -> CSD19503KCS | BE67: =BD67&" , "&ROUND(BH67,2)&" , $"&BF67 -> CSD19503KCS , 2.04 , $0.587 | BF67: ='MOSFET Database 24V'!BK35 -> 0.587 | BG67: ='MOSFET Database 24V'!BK33 -> 0.3634 | BH67: ='MOSFET Database 24V'!BK61 -> 2.04497836
E68: Webpage Link | F68: =IF(VINMAX<=40,HYPERLINK('MOSFET Database 24V'!C82,SFET24_1),HYPERLINK('MOSFET Database 48V'!C82,SFET48_1)) -> CSD19506KTT | G68: =IF(VINMAX<=40,HYPERLINK('MOSFET Database 24V'!G82,SFET24_2),HYPERLINK('MOSFET Database 48V'!G82,SFET48_2)) -> CSD19505KTT | H68: BSC016N06NST | BD68: ='MOSFET Database 24V'!BF4 -> CSD18563Q5A | BE68: =BD68&" , "&ROUND(BH68,2)&" , $"&BF68 -> CSD18563Q5A , 1.8 , $0.477 | BF68: ='MOSFET Database 24V'!BG35 -> 0.477 | BG68: ='MOSFET Database 24V'!BG33 -> 0.414375 | BH68: ='MOSFET Database 24V'!BG61 -> 1.800366073
E69: Cost per FET (1k USD) | F69: =IF(VINMAX<=40,'MOSFET Database 24V'!C84,'MOSFET Database 48V'!C84) -> 1.972 | G69: =IF(VINMAX<=40,'MOSFET Database 24V'!G84,'MOSFET Database 48V'!G84) -> 1.313 | H69: 3.96 | K69: Note: Hover here to see the 3 values affecting this curve, consult a thermal expert if you are unsure! | BD69: ='MOSFET Database 24V'!AX4 -> CSD18533Q5A | BE69: =BD69&" , "&ROUND(BH69,2)&" , $"&BF69 -> CSD18533Q5A , 1.6 , $0.464 | BF69: ='MOSFET Database 24V'!AY35 -> 0.464 | BG69: ='MOSFET Database 24V'!AY33 -> 0.345703125 | BH69: ='MOSFET Database 24V'!AY61 -> 1.604662554
E70: Total Cost of the FETs | F70: =NUMFETS1*F69 -> 5.916 | G70: =G64*G69 -> 3.939 | H70: =H69*NUMFETS3 -> 7.92 | BD70: ='MOSFET Database 24V'!BB4 -> CSD19501KCS | BE70: =BD70&" , "&ROUND(BH70,2)&" , $"&BF70 -> CSD19501KCS , 1.34 , $0.719 | BF70: ='MOSFET Database 24V'!BC35 -> 0.719 | BG70: ='MOSFET Database 24V'!BC33 -> 0.378984375 | BH70: ='MOSFET Database 24V'!BC61 -> 1.340409024
BD71: ='MOSFET Database 24V'!BV4 -> CSD18537NQ5A | BE71: =BD71&" , "&ROUND(BH71,2)&" , $"&BF71 -> CSD18537NQ5A , 0.8 , $0.273 | BF71: ='MOSFET Database 24V'!BW35 -> 0.273 | BG71: ='MOSFET Database 24V'!BW33 -> 0.3565972222 | BH71: ='MOSFET Database 24V'!BW61 -> 0.8005803858
F72: Note: If none of the FETs are meeting the requirement, reduce the startup load or select a stronger FET in cell H62
F73: Note: If none of the FETs are meeting the requirement, reduce the fault timer or select a stronger FET in cell H62
B75: Step 4: Startup | E75: Select preferred FET from the dropdown menu | F75: CSD19506KTT , 30.2 , $1.972
E78: Timer Overview
E79: Typical Start Time with Vinmax (Tstart) | F79: =IF(F75=F54,Start_up!M2,IF(F75=G54,Start_up!M121,IF(F75=H54,Start_up!M240))) -> 2362.5 | G79: ms
E80: IFET - ILOAD margin (lowest for Vout range) | F80: =IF(F75=F54,Start_up!O2,IF(F75=G54,Start_up!O121,IF(F75=H54,Start_up!O240))) -> 7.111060544e-06
E81: Target Fault Timer: Tstart + Margin | F81: =IF(F75=F54,Equations!F58,IF(F75=G54,Equations!G58,IF(F75=H54,Equations!H58))) -> 3543.75 | G81: ms
E82: Target Timer capacitance | F82: =IF(F75=F54,Equations!F59,IF(F75=G54,Equations!G59,IF(F75=H54,Equations!H59))) -> 75304.6875 | G82: nF
E83: Selected Timer capacitance | F83: 600 | G83: nF
E84: Final Fault Timer(Tfault) | F84: =IF(F75=F54,Equations!F61,IF(F75=G54,Equations!G61,IF(F75=H54,Equations!H61))) -> 28.23529412 | G84: ms
E85: Derated SOA / PLIM | F85: =_xlfn.SWITCH(F75,F54,Equations!F62,G54,Equations!G62,H54,Equations!H62) -> 4.278107717
E86: Can a "hot" board be hotplugged | F86: No
E87: Recommended slew Rate (max) | F87: =_xlfn.SWITCH(F75,F54,dv_dt_recommendations!J28,G54,dv_dt_recommendations!J73,H54,dv_dt_recommendations!J118) -> NA | G87: V/ms
E88: Recommended slew Rate (min) | F88: =_xlfn.SWITCH(F75,F54,dv_dt_recommendations!J29,G54,dv_dt_recommendations!J74,H54,dv_dt_recommendations!J119) -> NA | G88: V/ms
B89: Note: This is the typical dv/dt rate, but max value can be 1.4x. This is because the gate source current can vary from 16uA to 22uA. Thus TI recommends keeping the overall SOA margin during start-up >1.5 in order to compensate for this. | E89: dv/dt rate on Vout | F89: 10 | G89: V/ms
E90: calculated SS capacitance | F90: =_xlfn.SWITCH(F75,F54,Equations!F66,G54,Equations!G66,H54,Equations!H66) -> 1.6 | G90: nF
E91: actual SS capacitance | F91: 1500 | G91: nF
E92: actual typical dv/dt rate on Vout | F92: =_xlfn.SWITCH(F75,F54,Equations!F68,G54,Equations!G68,H54,Equations!H68) -> 0.01066666667 | G92: V/ms
E93: SOA margin during start-up | F93: =_xlfn.SWITCH(F75,F54,Equations!F75,G54,Equations!G75,H54,Equations!H75) -> 20.07711069
E94: Target Fault Time | F94: =F31 -> 0.1 | G94: ms
E95: Calculated Timer Capacitance | F95: =_xlfn.SWITCH(F75,F54,Equations!F80,G54,Equations!G80,H54,Equations!H80) -> 2.125 | G95: nF
E96: Actual Timer Capacitance ( pick one smaller than CT,CALC) | F96: 15 | G96: nF
E97: Actual Fault Time (Tfault) | F97: =_xlfn.SWITCH(F75,F54,Equations!F82,G54,Equations!G82,H54,Equations!H82) -> 0.7058823529 | G97: ms | AP97: Option A
E98: SOA margin during "hot-short" or "start-into short" | F98: =_xlfn.SWITCH(F75,F54,Equations!F84,G54,Equations!G84,H54,Equations!H84) -> 4.278107717 | AP98: Option B
E99: Resulting Typical Insertion Delay Time | F99: =_xlfn.SWITCH(F75,F54,Equations!F111,G54,Equations!G111,H54,Equations!H111) -> 10.90909091 | G99: ms | AP99: Option C
E100: Resulting Typical Restart Time | F100: =_xlfn.SWITCH(F75,F54,Equations!F114,G54,Equations!G114,H54,Equations!H114) -> 141.0970588 | G100: ms | AP100: Option D
B101: Step 5: UVLO, OVLO & PGD Thresholds | E101: Select Option A or Option B | F101: Option A
E102: Desired Upper UVLO Threshold | F102: 18 | G102: V
E103: Desired Lower UVLO Threshold | F103: 16 | G103: V
E104: Desired Upper OVLO Threshold | F104: 30 | G104: V
E105: Desired Lower OVLO Threshold | F105: 28 | G105: V
E106: Recommended Resistance for: R1 | F106: =IF(F101="Option A",Equations!F132,Equations!G132) -> 95.23809524 | G106: kW
E107: R2 | F107: =IF(F101="Option A",Equations!F133,Equations!G133) -> 8.230452675 | G107: kW
E108: R3 | F108: =IF(F101="Option A",Equations!F134,Equations!G134) -> 9.406231628 | G108: kW
E109: R4 | F109: =IF(F101="Option A",Equations!F135,Equations!G135) -> 0 | G109: kW
E110: Enter the Resistance for R1 | F110: 95.3 | G110: kW
E111: Enter the Resistance for R2 | F111: 8.25 | G111: kW
E112: Enter the Resistance for R3 | F112: 9.53 | G112: kW
E113: Enter the Resistance for R4 | F113: 3.74 | G113: kW
C115: Resulting Thresholds: | D115: Minimum | E115: Typical | F115: Maximum
C116: Resulting Upper UVLO Threshold = | D116: =IF($F$101="Option A",Equations!F136,Equations!G136) -> 16.72548976 | E116: =IF($F$101="Option A",Equations!F137,Equations!G137) -> 17.90118751 | F116: =IF($F$101="Option A",Equations!F138,Equations!G138) -> 19.07688526 | G116: V
C117: Resulting Lower UVLO Threshold = | D117: =IF($F$101="Option A",Equations!F139,Equations!G139) -> 15.58188976 | E117: =IF($F$101="Option A",Equations!F140,Equations!G140) -> 15.89988751 | F117: =IF($F$101="Option A",Equations!F141,Equations!G141) -> 16.21788526 | G117: V
C118: Resulting Upper OVLO Threshold = | D118: =IF($F$101="Option A",Equations!F142,Equations!G142) -> 29.07093389 | E118: =IF($F$101="Option A",Equations!F143,Equations!G143) -> 29.66421826 | F118: =IF($F$101="Option A",Equations!F144,Equations!G144) -> 30.25750262 | G118: V
C119: Resulting Lower OVLO Threshold = | D119: =IF($F$101="Option A",Equations!F145,Equations!G145) -> 25.96443389 | E119: =IF($F$101="Option A",Equations!F146,Equations!G146) -> 27.48966826 | F119: =IF($F$101="Option A",Equations!F147,Equations!G147) -> 29.01490262 | G119: V
C120: Note: If any of the cells above are yellow, then these values are outside of the device's operating range. This will result in the device turning either on or off at its operating limits rather than at the user selected values in yellow.
E123: Enter the Resistance for RPG | F123: 100 | G123: kW
B124: Design Summary | E124: RSNS = | F124: =Rs -> 1.5 | G124: mW
E125: RCL1 = | F125: =IF(RsMAX>Rs,"DNP",RDIV1) -> DNP | G125: W
E126: RCL2 = | F126: =IF(RsMAX>Rs,"0",RDIV2) -> 0 | G126: W
E127: RPWR = | F127: =F51 -> 33 | G127: kW
E128: CTIMER = | F128: =IF(F30="Soft Start", F96, F83) -> 15 | G128: nF | J128: Design Results
E129: R1 = | F129: =F110 -> 95.3 | G129: kW | J129: Settings | K129: Units | AJ129: Units
E130: R2 = | F130: =F111 -> 8.25 | G130: kW | I130: Current limit | J130: =F42 -> 40 | K130: A | AJ130: A
E131: R3 = | F131: =F112 -> 9.53 | G131: kW | I131: Power Limit | J131: =F52 -> 176 | K131: W | AJ131: W
E132: R4 = | F132: =IF(F101="Option A","N/A",F113) -> N/A | G132: kW | I132: Circuit Breaker Current | J132: =F42 -> 40 | K132: A | AJ132: A
E133: Cdv/dt = | F133: =IF(F30="Soft Start", F91, "DNP") -> 1500 | G133: nF | I133: Startup Time | J133: =IF(F30="Soft Start",Equations!F70,Start_up!M2) -> 2362.5 | K133: ms | AJ133: ms
E134: CIN = | F134: 0.01 | G134: µF | I134: Insertion Delay | J134: =TINSERT -> 10.90909091 | K134: ms | AJ134: ms
E135: D1 | F135: B380-13-F | I135: Fault Timeout | J135: =IF(F30="Soft Start", F97,F84) -> 0.7058823529 | K135: ms | AJ135: ms
E136: D2 | F136: =IF(F30="Soft Start","1N4148W-7-F","DNP") -> 1N4148W-7-F | I136: Restart Time During Fault | J136: =F100 -> 141.0970588 | K136: ms | AJ136: ms
E137: Q1 | F137: =F75 -> CSD19506KTT , 30.2 , $1.972 | I137: Upper UVLO Threshold | J137: =E116 -> 17.90118751 | K137: V | AJ137: V
E138: #FETs in parallel | F138: =MATCH(F137,F54:H54,F64:H64) -> 2 | I138: Lower UVLO Threshold | J138: =E117 -> 15.89988751 | K138: V | AJ138: V
E139: Q2 | F139: =IF(F30="Soft Start","MMBT5401LT1G","DNP") -> MMBT5401LT1G | I139: Upper OVLO Threshold | J139: =E118 -> 29.66421826 | K139: V | AJ139: V
E140: Z1 | F140: 5.0SMDxx | I140: Lower OVLO Threshold | J140: =E119 -> 27.48966826 | K140: V | AJ140: V
B143: Notes: | C143: 1. Although not mandatory, CIN provides transient suppression at the VIN pin
C144: 2. A TVS clamp from VIN to GND is absolutely mandatory to clamp the voltage overshoot upon MOSFET turn-off, e.g. during circuit breaker
C146: 3. Componet tolerances not accounted for in Min/Max Calculations.

Sheet Device Parameters (hidden)
C2: Min | D2: Typ | E2: Max | F2: Units
A3: Operating Conditions
B4: Junction Temperature | C4: -40 | E4: 125
B5: Input Voltage | C5: 9 | E5: 80 | F5: V
A6: Current Limit
C8: 48.5 | D8: 55 | E8: 61.5
B9: Sense input Current | D9: 23 | F9: uA
A11: Power Limit
B12: Systematic Offset | E12: 0.001 | F12: V
B13: Minimum Recommended Vsns | E13: 0.005 | F13: V | G13: <= I am assuming this would have +/- 50% error at best
B14: A_coeff | E14: 125000
B16: Key Equations: | C16: Vsns = Rpwr / (A*Vds) + Vos,syst | I16: Example: | J16: Vds | K16: Rpwr | L16: Rsns (m-ohm) | M16: Plim | N16: Vsns (mV) | P16: Plim | Q16: Rpwr
C17: Plim (Vds) = 1/Rs * [ Rpwr/A] | J17: 12 | K17: 25 | L17: =0.5 -> 0.5 | M17: =1/(0.001*L17)*(K17*1000/$E$14+J17*$E$12) -> 424 | N17: =K17*1000/$E$14/J17+$E$12 -> 0.01766666667 | P17: 82 | Q17: =E14*(P17*L17*0.001-J17*E12) -> 3625
C18: Rpwr = A * [PLIM(Vds) * Rs] | J18: 12 | K18: 5 | L18: =0.5 -> 0.5 | M18: =1/(0.001*L18)*(K18*1000/$E$14+J18*$E$12) -> 104 | N18: =K18*1000/$E$14/J18+$E$12*0.001 -> 0.003334333333
B19: How Plim varries vs Vds: | I19: Ex: Plim @ 13V = 100W, Rs = 0.5; Plim @ (Vds = 5V) = 100W - 7V * 1mV/0.5mili-ohm = 100W - 14W = 86W
A21: Timer
B22: Upper Threshold | C22: 3.76 | D22: 4 | E22: 4.16 | F22: V
B23: Insertion Time Current | C23: -8 | D23: -5.5 | E23: -3 | F23: uA
B24: timer_constant
B25: Fault detection current | C25: 120 | D25: 85 | E25: 51 | F25: uA
B26: Computed Start - Up Slop | D26: =SQRT(0.66^2+ ((120-90)/90)^2+ 0.1^2) -> 0.7461307601 | G26: <= mean root square(T_start_error_Plim, timer_error, cap_error); T_start proportional to 1/Plim => T_start_error_plim = 1/(1-Plim_err) - 1 = 1/(1-0.4) - 1 = 0.66
B27: Slop for calculations | D27: 0.5 | G27: Note: We get additional buffer, b/c this is designed for a Vinmax, while typically Vin = Vinnom
A29: Gate
B30: Gate Sourcing Current | C30: 10 | D30: 16 | E30: 22
A32: Circuit Breaker
A38: Timer Pin
B39: Upper Threshold | C39: 3.76 | D39: 4 | E39: 4.16
B40: Lower Threshold (Restart) | C40: 1.187 | D40: 1.25 | E40: 1.313
B41: End of Cycle | D41: 0.3
B42: Re-enable threshold | D42: 0.3
B43: Insertion time current | C43: 3 | D43: 5.5 | E43: 8
B44: Sink current, end of insertion | C44: 1 | D44: 1.5 | E44: 2
B45: Fault detection current | C45: 51 | D45: 85 | E45: 120
B46: Fault sink current | C46: 1.25 | D46: 2.5 | E46: 3.75
A48: Power Good
B49: PGVOL | D49: 60 | E49: 150 | F49: mV | G49: 2 | H49: mA sinking
A50: FB Pin
B51: FB Threshold | C51: 2.41 | D51: 2.46 | E51: 2.52 | F51: V
B52: FB Hysteresis Current | C52: 15 | D52: 20 | E52: 25 | F52: uA

Sheet Equations (hidden)
A13: Current Limit
D15: CLMIN = | E15: =IF('Design Calculator'!$F$32="26 mV",'Device Parameters'!C7,'Device Parameters'!C8) -> 48.5 | F15: mV
D16: CLNOM = | E16: =IF('Design Calculator'!$F$32="26 mV",'Device Parameters'!D7,'Device Parameters'!D8) -> 55 | F16: mV
D17: CLMAX = | E17: =IF('Design Calculator'!$F$32="26 mV",'Device Parameters'!E7,'Device Parameters'!E8) -> 61.5 | F17: mV
E20: Max Rs = | F20: =CLMIN_Threshold/('Design Calculator'!F22*1.01) -> 1.920792079
E21: RCL1 Recommended = | F21: =IF(Rs>RsMAX,10,"NA") -> NA
E22: RCL2 Recommmended = | F22: =IF(Rs>RsMAX,(((IOUTMAX*Rs)/CLMIN_Threshold)-1)*F21,"NA") -> NA
E23: Effective Rs = | F23: =IF(RsMAX>Rs,Rs,IF('Design Calculator'!F34="Yes",IF(Rs>RsMAX,Rs/(1+RDIV2/RDIV1),Rs),Rs)) -> 1.5
E24: Min. Current limit = | F24: =CLMIN_Threshold/RsEFF -> 32.33333333
E25: Typ. Current limit = | F25: =CLNOM_Threshold/RsEFF -> 36.66666667
E26: Max. Current limit = | F26: =CLMAX_Threshold/RsEFF -> 41
E27: Rs Power Diss. = | F27: =F26^2*'Design Calculator'!F35 -> 2521.5
A31: FET Selection
F32: Nominal | J32: Derated at TJDC
E33: 10us SOA Current Maximum Input Voltage | F33: =VINMAX*'Design Calculator'!F57 -> 10080 | G33: =VINMAX*'Design Calculator'!G57 -> 10080 | H33: =VINMAX*'Design Calculator'!H57 -> 6048 | I33: W | J33: =F33*($F$38-TJDC1)/($F$38-25) -> 5581.1 | K33: =G33*($G$38-TJDC2)/($G$38-25) -> 5414.36 | L33: =H33*($H$38-TJDC3)/($H$38-25) -> 3250.8
E34: 100us SOA Current Maximum Input Voltage | F34: =VINMAX*'Design Calculator'!F58 -> 9600 | G34: =VINMAX*'Design Calculator'!G58 -> 6024 | H34: =VINMAX*'Design Calculator'!H58 -> 882 | I34: W | J34: =F34*($F$38-TJDC1)/($F$38-25) -> 5315.333333 | K34: =G34*($G$38-TJDC2)/($G$38-25) -> 3235.724667 | L34: =H34*($H$38-TJDC3)/($H$38-25) -> 474.075
E35: 1ms SOA Current Maximum Input Voltage | F35: =VINMAX*'Design Calculator'!F59 -> 959.9119809 | G35: =VINMAX*'Design Calculator'!G59 -> 614.6091101 | H35: =VINMAX*'Design Calculator'!H59 -> 75.6 | I35: W | J35: =F35*($F$38-TJDC1)/($F$38-25) -> 531.4845989 | K35: =G35*($G$38-TJDC2)/($G$38-25) -> 330.1304545 | L35: =H35*($H$38-TJDC3)/($H$38-25) -> 40.635
E36: 10ms SOA Current at Maximum Input Voltage | F36: =VINMAX*'Design Calculator'!F60 -> 325.220523 | G36: =VINMAX*'Design Calculator'!G60 -> 185.2287497 | H36: =VINMAX*'Design Calculator'!H60 -> 50.4 | I36: W | J36: =F36*($F$38-TJDC1)/($F$38-25) -> 180.0682799 | K36: =G36*($G$38-TJDC2)/($G$38-25) -> 99.4935648 | L36: =H36*($H$38-TJDC3)/($H$38-25) -> 27.09
E37: 100ms SOA Current at Maximum Input Voltage | F37: =VINMAX*'Design Calculator'!F61 -> 167.7492609 | G37: =VINMAX*'Design Calculator'!G61 -> 113.5288818 | H37: =VINMAX*'Design Calculator'!H61 -> 2.52 | I37: W | J37: =F37*($F$38-TJDC1)/($F$38-25) -> 92.87950395 | K37: =G37*($G$38-TJDC2)/($G$38-25) -> 60.98077744 | L37: =H37*($H$38-TJDC3)/($H$38-25) -> 1.3545
E38: Maximum Junction Temperature | F38: ='Design Calculator'!F56 -> 175 | G38: ='Design Calculator'!G56 -> 175 | H38: ='Design Calculator'!H56 -> 175
E40: Minimum Power Limit= | F40: =VINMAX*'Device Parameters'!E13/RsEFF/0.001 -> 84 | G40: W
E41: Target PLIM | F41: ='Design Calculator'!F49 -> 100 | G41: W
E42: Rpwr | F42: ='Device Parameters'!E14*RsEFF*0.001*F41/1000 -> 18.75 | G42: k-ohm
E43: Rpwr actual | F43: =RPWR -> 33 | G43: k-ohm
E44: Final Plim | F44: =(1/RsEFF)*1000*(Equations!F43*1000/'Device Parameters'!E14) -> 176 | G44: W
E48: Resulting Typical Power Limit = | F48: =F49*(1-0.24) -> 133.76 | G48: 24% tolerance used in this calculation.
E49: Resulting Minimum Power Limit = | F49: =F44 -> 176
E50: Resulting Maximum Power Limit = | F50: =F49*(1+0.24) -> 218.24
A53: Startup
D54: With PLIM
F55: FET1 | G55: FET2 | H55: FET3
E56: Typical Start time | F56: =Start_up!M2 -> 2362.5 | G56: =Start_up!M121 -> 2362.5 | H56: =Start_up!M240 -> 2362.5 | I56: ms
E57: Start-slop | F57: ='Device Parameters'!D27 -> 0.5 | G57: ='Device Parameters'!D27 -> 0.5 | H57: ='Device Parameters'!D27 -> 0.5
E58: Target Fault Timer | F58: =F56*(1+F57) -> 3543.75 | G58: =G56*(1+G57) -> 3543.75 | H58: 3543.75 | I58: ms
E59: Target Timer capacitance | F59: ='Device Parameters'!D25/'Device Parameters'!D22*F58 -> 75304.6875 | G59: ='Device Parameters'!D25/'Device Parameters'!D22*G58 -> 75304.6875 | H59: ='Device Parameters'!D25/'Device Parameters'!D22*H58 -> 75304.6875 | I59: nF
E60: Selected Timer capacitance | F60: ='Design Calculator'!F83 -> 600 | G60: ='Design Calculator'!F83 -> 600 | H60: ='Design Calculator'!F83 -> 600 | I60: nF
E61: Final Fault Timer | F61: ='Device Parameters'!D22/'Device Parameters'!D25*F60 -> 28.23529412 | G61: ='Device Parameters'!D22/'Device Parameters'!D25*G60 -> 28.23529412 | H61: ='Device Parameters'!D22/'Device Parameters'!D25*H60 -> 28.23529412 | I61: ms
E62: SOA / PLIM | F62: =SOA!C29/F49 -> 4.278107717 | G62: =SOA!C77/F49 -> 2.64924697 | H62: =SOA!C125/F49 -> 0.3347974618
D63: With SS
F64: FET1 | G64: FET2 | H64: FET3
E65: dv/dt rate | F65: ='Design Calculator'!F89 -> 10 | G65: ='Design Calculator'!F89 -> 10 | H65: ='Design Calculator'!F89 -> 10 | I65: V/ms
E66: calculated SS capacitance | F66: ='Device Parameters'!D30/ss_rate -> 1.6 | G66: ='Device Parameters'!D30/G65 -> 1.6 | H66: ='Device Parameters'!D30/H65 -> 1.6 | I66: nF
E67: actual SS capacitance | F67: ='Design Calculator'!F91 -> 1500 | G67: ='Design Calculator'!F91 -> 1500 | H67: ='Design Calculator'!F91 -> 1500 | I67: nF
E68: actual dv/dt rate | F68: =ss_rate*F66/F67 -> 0.01066666667 | G68: =G65*G66/G67 -> 0.01066666667 | H68: =H65*H66/H67 -> 0.01066666667 | I68: V/ms
E69: I_Cout | F69: =COUTMAX*F68/1000 -> 0.0001066666667 | G69: =COUTMAX*G68/1000 -> 0.0001066666667 | H69: =COUTMAX*H68/1000 -> 0.0001066666667 | I69: A
E70: typical start time | F70: =VINMAX/F68 -> 2362.5 | G70: =VINMAX/G68 -> 2362.5 | H70: =VINMAX/H68 -> 2362.5 | I70: ms
E71: FET Energy dissipated at start-up (EFET) | F71: =Start_up!N5 -> 442.2222552 | G71: =Start_up!N124 -> 442.2222552 | H71: =Start_up!N243 -> 442.2222552 | I71: J
E72: Peak Power dissipated during start-up (PFET) | F72: =Start_up!Q4 -> 378.002688 | G72: =Start_up!Q123 -> 378.002688 | H72: =Start_up!Q242 -> 378.002688 | I72: W
E73: Equivalent time at peak power - EFET/PFET (t_power) | F73: =F71/F72*1000 -> 1169.891827 | G73: =G71/G72*1000 -> 1169.891827 | H73: 1169.891827 | I73: ms
E74: Available SOA for t_power at Vinmax | F74: =SOA!H31 -> 7589.201807 | G74: =SOA!H79 -> 4737.753605 | H74: =SOA!H127 -> 788.8367785 | I74: W
E75: SOA margin | F75: =F74/F72 -> 20.07711069 | G75: =G74/G72 -> 12.53365057 | H75: 2.086854945
F77: 1 | G77: ms
D78: Covering hot-short, start-into short for SS
E79: Target Fault Time | F79: ='Design Calculator'!F94 -> 0.1 | G79: ='Design Calculator'!F94 -> 0.1 | H79: ='Design Calculator'!F94 -> 0.1
E80: Calculated Timer Capacitance | F80: ='Device Parameters'!D25/'Device Parameters'!D22*F79 -> 2.125 | G80: ='Device Parameters'!D25/'Device Parameters'!D22*G79 -> 2.125 | H80: ='Device Parameters'!D25/'Device Parameters'!D22*H79 -> 2.125 | I80: nF
E81: Actual Timer Capacitance | F81: ='Design Calculator'!F96 -> 15 | G81: ='Design Calculator'!F96 -> 15 | H81: ='Design Calculator'!F96 -> 15 | I81: nF
E82: Actual Fault Time (Tfault) | F82: ='Device Parameters'!D22/'Device Parameters'!D25*F81 -> 0.7058823529 | G82: ='Device Parameters'!D22/'Device Parameters'!D25*G81 -> 0.7058823529 | H82: ='Device Parameters'!D22/'Device Parameters'!D25*H81 -> 0.7058823529 | I82: ms
E83: Available derated SOA for Tfault | F83: =SOA!C29 -> 752.9469583 | G83: =SOA!C73 -> 868.0575477 | H83: =SOA!C121 -> 109.6267038 | I83: W
E84: SOA margin | F84: =F83/F44 -> 4.278107717 | G84: =G83/F44 -> 4.932145157 | H84: =H83/F44 -> 0.6228789987
G101: 10% margin added in this calculation
I104: UVLO upper is F40 | L104: R1 is F48
G105: A
G106: V/S
G107: nF
E110: Min Insertion time = | F110: =IF('Design Calculator'!F30="Soft Start", Equations!F81, Equations!F60)*'Device Parameters'!C39*1000/'Device Parameters'!E43*0.001 -> 7.05 | G110: =IF('Design Calculator'!F30="Soft Start", Equations!G81, Equations!G60)*'Device Parameters'!C39*1000/'Device Parameters'!E43*0.001 -> 7.05 | H110: =IF('Design Calculator'!F30="Soft Start", Equations!H81, Equations!H60)*'Device Parameters'!C39*1000/'Device Parameters'!E43*0.001 -> 7.05 | I110: ms
E111: Typ. Insertion time = | F111: =IF('Design Calculator'!F30="Soft Start", Equations!F81, Equations!F60)*0.001*'Device Parameters'!D39*1000/'Device Parameters'!D43 -> 10.90909091 | G111: =IF('Design Calculator'!F30="Soft Start", Equations!G81, Equations!G60)*0.001*'Device Parameters'!D39*1000/'Device Parameters'!D43 -> 10.90909091 | H111: =IF('Design Calculator'!F30="Soft Start", Equations!H81, Equations!H60)*0.001*'Device Parameters'!D39*1000/'Device Parameters'!D43 -> 10.90909091 | I111: ms
E112: Max Insertion time = | F112: =IF('Design Calculator'!F30="Soft Start", Equations!F81, Equations!F60)*0.001*'Device Parameters'!E39*1000/'Device Parameters'!C43 -> 20.8 | G112: =IF('Design Calculator'!F30="Soft Start", Equations!G81, Equations!G60)*0.001*'Device Parameters'!E39*1000/'Device Parameters'!C43 -> 20.8 | H112: =IF('Design Calculator'!F30="Soft Start", Equations!H81, Equations!H60)*0.001*'Device Parameters'!E39*1000/'Device Parameters'!C43 -> 20.8 | I112: ms
E113: Min Restart time = | F113: =IF('Design Calculator'!F30="Soft Start", Equations!F81, Equations!F60)*(J113+K113+L113) -> 130.967125 | G113: =IF('Design Calculator'!F30="Soft Start", Equations!G81, Equations!G60)*(J113+K113+L113) -> 130.967125 | H113: =IF('Design Calculator'!F30="Soft Start", Equations!H81, Equations!H60)*(J113+K113+L113) -> 130.967125 | I113: ms | J113: =(('Device Parameters'!C39-'Device Parameters'!E40)/'Device Parameters'!E45)*7 -> 0.1427416667 | K113: =(('Device Parameters'!C39-'Device Parameters'!C40)/'Device Parameters'!D46)*8 -> 8.2336 | L113: =(('Device Parameters'!C40-'Device Parameters'!D41)/'Device Parameters'!D46) -> 0.3548
E114: Typ. Restart time = | F114: =IF('Design Calculator'!F30="Soft Start", Equations!F81, Equations!F60)*(J114+K114+L114) -> 141.0970588 | G114: =IF('Design Calculator'!F30="Soft Start", Equations!G81, Equations!G60)*(J114+K114+L114) -> 141.0970588 | H114: =IF('Design Calculator'!F30="Soft Start", Equations!H81, Equations!H60)*(J114+K114+L114) -> 141.0970588 | I114: ms | J114: =(('Device Parameters'!D39-'Device Parameters'!D40)/'Device Parameters'!D45)*7 -> 0.2264705882 | K114: =(('Device Parameters'!D39-'Device Parameters'!D40)/'Device Parameters'!D46)*8 -> 8.8 | L114: =(('Device Parameters'!D40-'Device Parameters'!D41)/'Device Parameters'!D46) -> 0.38
E115: Max Restart time = | F115: =IF('Design Calculator'!F30="Soft Start", Equations!F81, Equations!F60)*(J115+K115+L115) -> 148.8548824 | G115: =IF('Design Calculator'!F30="Soft Start", Equations!G81, Equations!G60)*(J115+K115+L115) -> 148.8548824 | H115: =IF('Design Calculator'!F30="Soft Start", Equations!H81, Equations!H60)*(J115+K115+L115) -> 148.8548824 | I115: ms | J115: =(('Device Parameters'!E39-'Device Parameters'!C40)/'Device Parameters'!C45)*7 -> 0.4080588235 | K115: =(('Device Parameters'!E39-'Device Parameters'!E40)/'Device Parameters'!D46)*8 -> 9.1104 | L115: =(('Device Parameters'!E40-'Device Parameters'!D41)/'Device Parameters'!D46) -> 0.4052
E116: Min PG Threshold = | F116: =(1+'Design Calculator'!#REF!/'Design Calculator'!#REF!)*'Device Parameters'!C51 -> 
E117: Nom PG Threshold = | F117: =(1+'Design Calculator'!#REF!/'Design Calculator'!#REF!)*'Device Parameters'!D51 -> 
E118: Max PG Threshold = | F118: =(1+'Design Calculator'!#REF!/'Design Calculator'!#REF!)*'Device Parameters'!E51 -> 
E119: Min PG Hysteresis = | F119: =('Design Calculator'!#REF!*'Device Parameters'!C52) -> 
E120: Nom PG Hysteresis = | F120: =('Design Calculator'!#REF!*'Device Parameters'!$D$52) -> 
E121: Max PG Hysteresis = | F121: =('Design Calculator'!#REF!*'Device Parameters'!$E$52) -> 
I124: UVLO lower is F41 | L124: R2 is F49
I125: OVLO upper is F42 | L125: R3 is F50
I126: OVLO lower is F43 | L126: R4 is F51
E129: Option A
E130: Option B
F131: A | G131: B | H131: C | I131: D
E132: R1 = | F132: =('Design Calculator'!F102-'Design Calculator'!F103)*1000/21 -> 95.23809524 | G132: =('Design Calculator'!F102-'Design Calculator'!F103)*1000/21 -> 95.23809524
E133: R2 = | F133: =2.5*F132/('Design Calculator'!F103-2.5)-F134 -> 8.230452675 | G133: =2.5*G132/('Design Calculator'!F103-2.5) -> 17.6366843
E134: R3 = | F134: =(F132*'Design Calculator'!F103*2.5)/('Design Calculator'!F104*('Design Calculator'!F103-2.5)) -> 9.406231628 | G134: =('Design Calculator'!F104-'Design Calculator'!F105)*1000/21 -> 95.23809524
E135: R4 = | G135: =2.5*G134/('Design Calculator'!F104-2.5) -> 8.658008658
E136: Resulting upper UVLO Threshold (min) = | F136: =2.45+('Design Calculator'!F$110*((2.45/('Design Calculator'!F$111+'Design Calculator'!F$112))+(12/1000))) -> 16.72548976 | G136: =2.45+('Design Calculator'!F$110*((2.45/'Design Calculator'!F$111)+(12/1000))) -> 31.89481212
E137: Resulting upper UVLO Threshold (typ) = | F137: =2.5+('Design Calculator'!F$110*((2.5/('Design Calculator'!F$111+'Design Calculator'!F$112))+(21/1000))) -> 17.90118751 | G137: =2.5+('Design Calculator'!F$110*((2.5/'Design Calculator'!F$111)+(21/1000))) -> 33.38008788
E138: Resulting upper UVLO Threshold (max) = | F138: =2.55+('Design Calculator'!F$110*((2.55/('Design Calculator'!F$111+'Design Calculator'!F$112))+(30/1000))) -> 19.07688526 | G138: =2.55+('Design Calculator'!F$110*((2.55/'Design Calculator'!F$111)+(30/1000))) -> 34.86536364
E139: Resulting lower UVLO Threshold (min) = | F139: =2.45*('Design Calculator'!F$110+'Design Calculator'!F$111+'Design Calculator'!F$112)/('Design Calculator'!F$111+'Design Calculator'!F$112) -> 15.58188976 | G139: =2.45*('Design Calculator'!F$110+'Design Calculator'!F$111)/'Design Calculator'!F$111 -> 30.75121212
E140: Resulting lower UVLO Threshold (typ) = | F140: =2.5*('Design Calculator'!F$110+'Design Calculator'!F$111+'Design Calculator'!F$112)/('Design Calculator'!F$111+'Design Calculator'!F$112) -> 15.89988751 | G140: =2.5*('Design Calculator'!F$110+'Design Calculator'!F$111)/'Design Calculator'!F$111 -> 31.37878788
E141: Resulting lower UVLO Threshold (max) = | F141: =2.55*('Design Calculator'!F$110+'Design Calculator'!F$111+'Design Calculator'!F$112)/('Design Calculator'!F$111+'Design Calculator'!F$112) -> 16.21788526 | G141: =2.55*('Design Calculator'!F$110+'Design Calculator'!F$111)/'Design Calculator'!F$111 -> 32.00636364
E142: Resulting upper OVLO Threshold (min) = | F142: =2.45*('Design Calculator'!F$110+'Design Calculator'!F$111+'Design Calculator'!F$112)/'Design Calculator'!F$112 -> 29.07093389 | G142: =2.45*('Design Calculator'!F$112+'Design Calculator'!F$113)/'Design Calculator'!F$113 -> 8.692914439
E143: Resulting upper OVLO Threshold (typ) = | F143: =2.5*('Design Calculator'!F$110+'Design Calculator'!F$111+'Design Calculator'!F$112)/'Design Calculator'!F$112 -> 29.66421826 | G143: =2.5*('Design Calculator'!F$112+'Design Calculator'!F$113)/'Design Calculator'!F$113 -> 8.870320856
E144: Resulting upper OVLO Threshold (max) = | F144: =2.55*('Design Calculator'!F$110+'Design Calculator'!F$111+'Design Calculator'!F$112)/'Design Calculator'!F$112 -> 30.25750262 | G144: =2.55*('Design Calculator'!F$112+'Design Calculator'!F$113)/'Design Calculator'!F$113 -> 9.047727273
E145: Resulting lower OVLO Threshold (min) = | F145: =2.45+(('Design Calculator'!F$110+'Design Calculator'!F$111)*((2.45/'Design Calculator'!F$112)-(30/1000))) -> 25.96443389 | G145: =2.45+('Design Calculator'!F$112*((2.45/'Design Calculator'!F$113)-(30/1000))) -> 8.407014439
E146: Resulting lower OVLO Threshold (typ) = | F146: =2.5+(('Design Calculator'!F$110+'Design Calculator'!F$111)*((2.5/'Design Calculator'!F$112)-(21/1000))) -> 27.48966826 | G146: =2.5+('Design Calculator'!F$112*((2.5/'Design Calculator'!F$113)-(21/1000))) -> 8.670190856
E147: Resulting lower OVLO Threshold (max) = | F147: =2.55+(('Design Calculator'!F$110+'Design Calculator'!F$111)*((2.55/'Design Calculator'!F$112)-(12/1000))) -> 29.01490262 | G147: =2.55+('Design Calculator'!F$112*((2.55/'Design Calculator'!F$113)-(12/1000))) -> 8.933367273
E155: Ramp time for output voltage | F155: ='Design Calculator'!#REF! ->  | G155: ms
E156: Nominal output voltage | F156: ='Design Calculator'!F20 -> 24 | G156: V
E157: Required soft-start capacitance | F157: =22/F156*F155 ->  | G157: nF
C178: GRAPH:
E179: Selected Rs = | F179: ='Design Calculator'!F35 -> 1.5
E180: Selected RPWR = | F180: ='Design Calculator'!F51 -> 33
E181: Max System voltage = | F181: ='Design Calculator'!F21 -> 25.2
E183: Current Lim (min) = | F183: =F24 -> 32.33333333
E184: Current Lim (typ) = | F184: =F25 -> 36.66666667
E185: Current Lim (max) = | F185: =F26 -> 41
E187: Power Limit (min) = | F187: =F48 -> 133.76
E188: Power Limit (typ) = | F188: =F49 -> 176 | Y188: W
E189: Power Limit (max) = | F189: =F50 -> 218.24
D194: A) This table calculates the Ids current based | I194: B) This table corrrects the table at left so no | N194: C) This table creates the | R194: D) This table changes ID values to zero for Vds>Vin(max)
D195: on power limit only - no current limit info. | I195: current is greater than the current limit. | N195: SOA data points from | R195: and adds the SOA curve. This data is plotted.
B196: PLIM | D196: Vds | E196: Min | F196: Typ | G196: Max | I196: Vds | J196: Min | K196: Typ | L196: Max | N196: the customer's SOA | R196: Vds | S196: Min | T196: Typ | U196: Max | V196: SOA | X196: Temp Derated SOA
B197: =D197*F197 -> 159.8666667 | D197: 1 | E197: =(1-$F$284)*F197 -> 119.9 | F197: =($F$188+(D197-VINMAX)*$E$281/$E$282)/D197 -> 159.8666667 | G197: =F197*(1+$F$284) -> 199.8333333 | I197: 1 | J197: =IF(E197>$F$183,$F$183,E197) -> 32.33333333 | K197: =IF(F197>$F$184,$F$184,F197) -> 36.66666667 | L197: =IF(G197>$F$185,$F$185,G197) -> 41 | N197: data he entered. | R197: 1 | S197: =IF($R197>$F$181,0.0000000005,J197) -> 32.33333333 | T197: =IF($R197>$F$181,0.0000000005,K197) -> 36.66666667 | U197: =IF($R197>$F$181,0.0000000005,L197) -> 41 | V197: =$X$197/R197 -> 752.9469583 | X197: =SOA!C29 -> 752.9469583
B198: =D198*F198 -> 160.5333333 | D198: 2 | E198: 60.2 | F198: 80.26666667 | G198: 100.3333333 | I198: 2 | J198: 32.33333333 | K198: 36.66666667 | L198: 41 | R198: 2 | S198: =IF($R198>$F$181,0.0000000005,J198) -> 32.33333333 | T198: =IF($R198>$F$181,0.0000000005,K198) -> 36.66666667 | U198: 41 | V198: 376.4734791
B199: 161.2 | D199: 3 | E199: 40.3 | F199: 53.73333333 | G199: 67.16666667 | I199: 3 | J199: 32.33333333 | K199: 36.66666667 | L199: 41 | O199: User's | R199: 3 | S199: 32.33333333 | T199: 36.66666667 | U199: 41 | V199: 250.9823194
B200: 161.8666667 | D200: 4 | E200: 30.35 | F200: 40.46666667 | G200: 50.58333333 | I200: 4 | J200: 30.35 | K200: 36.66666667 | L200: 41 | N200: Vds | O200: Ids | R200: 4 | S200: 30.35 | T200: 36.66666667 | U200: 41 | V200: 188.2367396
B201: 162.5333333 | D201: 5 | E201: 24.38 | F201: 32.50666667 | G201: 40.63333333 | I201: 5 | J201: 24.38 | K201: 32.50666667 | L201: 40.63333333 | N201: 1 | O201: =#REF! ->  | P201: x = customer's entry | R201: 5 | S201: 24.38 | T201: 32.50666667 | U201: 40.63333333 | V201: 150.5893917
B202: 163.2 | D202: 6 | E202: 20.4 | F202: 27.2 | G202: 34 | I202: 6 | J202: 20.4 | K202: 27.2 | L202: 34 | N202: 2 | O202: =O205+((O201-O205)*3/7) ->  | R202: 6 | S202: 20.4 | T202: 27.2 | U202: 34 | V202: 125.4911597
B203: 163.8666667 | D203: 7 | E203: 17.55714286 | F203: 23.40952381 | G203: 29.26190476 | I203: 7 | J203: 17.55714286 | K203: 23.40952381 | L203: 29.26190476 | N203: 3 | O203: =O205+((O201-O205)*2/8) ->  | R203: 7 | S203: 17.55714286 | T203: 23.40952381 | U203: 29.26190476 | V203: 107.5638512
B204: 164.5333333 | D204: 8 | E204: 15.425 | F204: 20.56666667 | G204: 25.70833333 | I204: 8 | J204: 15.425 | K204: 20.56666667 | L204: 25.70833333 | N204: 4 | O204: =O205+((O201-O205)*1/9) ->  | R204: 8 | S204: 15.425 | T204: 20.56666667 | U204: 25.70833333 | V204: 94.11836978
B205: 165.2 | D205: 9 | E205: 13.76666667 | F205: 18.35555556 | G205: 22.94444444 | I205: 9 | J205: 13.76666667 | K205: 18.35555556 | L205: 22.94444444 | N205: 5 | O205: =#REF! ->  | P205: x | R205: 9 | S205: 13.76666667 | T205: 18.35555556 | U205: 22.94444444 | V205: 83.66077314
B206: 165.8666667 | D206: 10 | E206: 12.44 | F206: 16.58666667 | G206: 20.73333333 | I206: 10 | J206: 12.44 | K206: 16.58666667 | L206: 20.73333333 | N206: 6 | O206: =O$210+((O$205-O$210)*4/6) ->  | R206: 10 | S206: 12.44 | T206: 16.58666667 | U206: 20.73333333 | V206: 75.29469583
B207: 166.5333333 | D207: 11 | E207: 11.35454545 | F207: 15.13939394 | G207: 18.92424242 | I207: 11 | J207: 11.35454545 | K207: 15.13939394 | L207: 18.92424242 | N207: 7 | O207: =O$210+((O$205-O$210)*3/7) ->  | R207: 11 | S207: 11.35454545 | T207: 15.13939394 | U207: 18.92424242 | V207: 68.44972348
B208: 167.2 | D208: 12 | E208: 10.45 | F208: 13.93333333 | G208: 17.41666667 | I208: 12 | J208: 10.45 | K208: 13.93333333 | L208: 17.41666667 | N208: 8 | O208: =O$210+((O$205-O$210)*2/8) ->  | R208: 12 | S208: 10.45 | T208: 13.93333333 | U208: 17.41666667 | V208: 62.74557985
B209: 167.8666667 | D209: 13 | E209: 9.684615385 | F209: 12.91282051 | G209: 16.14102564 | I209: 13 | J209: 9.684615385 | K209: 12.91282051 | L209: 16.14102564 | N209: 9 | O209: =O$210+((O$205-O$210)*1/9) ->  | R209: 13 | S209: 9.684615385 | T209: 12.91282051 | U209: 16.14102564 | V209: 57.91899679
B210: 168.5333333 | D210: 14 | E210: 9.028571429 | F210: 12.03809524 | G210: 15.04761905 | I210: 14 | J210: 9.028571429 | K210: 12.03809524 | L210: 15.04761905 | N210: 10 | O210: =#REF! ->  | P210: x | R210: 14 | S210: 9.028571429 | T210: 12.03809524 | U210: 15.04761905 | V210: 53.78192559
B211: 169.2 | D211: 15 | E211: 8.46 | F211: 11.28 | G211: 14.1 | I211: 15 | J211: 8.46 | K211: 11.28 | L211: 14.1 | N211: 11 | O211: =O$215+((O$210-O$215)*4/6) ->  | R211: 15 | S211: 8.46 | T211: 11.28 | U211: 14.1 | V211: 50.19646388
B212: 169.8666667 | D212: 16 | E212: 7.9625 | F212: 10.61666667 | G212: 13.27083333 | I212: 16 | J212: 7.9625 | K212: 10.61666667 | L212: 13.27083333 | N212: 12 | O212: =O$215+((O$210-O$215)*3/7) ->  | R212: 16 | S212: 7.9625 | T212: 10.61666667 | U212: 13.27083333 | V212: 47.05918489
B213: 170.5333333 | D213: 17 | E213: 7.523529412 | F213: 10.03137255 | G213: 12.53921569 | I213: 17 | J213: 7.523529412 | K213: 10.03137255 | L213: 12.53921569 | N213: 13 | O213: =O$215+((O$210-O$215)*2/8) ->  | R213: 17 | S213: 7.523529412 | T213: 10.03137255 | U213: 12.53921569 | V213: 44.29099754
B214: 171.2 | D214: 18 | E214: =(1-$F$284)*F214 -> 7.133333333 | F214: 9.511111111 | G214: =F214*(1+$F$284) -> 11.88888889 | I214: 18 | J214: =IF(E214>$F$183,$F$183,E214) -> 7.133333333 | K214: =IF(F214>$F$184,$F$184,F214) -> 9.511111111 | L214: =IF(G214>$F$185,$F$185,G214) -> 11.88888889 | N214: 14 | O214: =O$215+((O$210-O$215)*1/9) ->  | R214: 18 | S214: =IF($R214>$F$181,0.0000000005,J214) -> 7.133333333 | T214: =IF($R214>$F$181,0.0000000005,K214) -> 9.511111111 | U214: =IF($R214>$F$181,0.0000000005,L214) -> 11.88888889 | V214: =$X$197/R214 -> 41.83038657
B215: 171.8666667 | D215: 19 | E215: 6.784210526 | F215: 9.045614035 | G215: 11.30701754 | I215: 19 | J215: 6.784210526 | K215: 9.045614035 | L215: 11.30701754 | N215: 15 | O215: =#REF! ->  | P215: x | R215: 19 | S215: 6.784210526 | T215: 9.045614035 | U215: 11.30701754 | V215: 39.62878728
B216: 172.5333333 | D216: 20 | E216: 6.47 | F216: 8.626666667 | G216: 10.78333333 | I216: 20 | J216: 6.47 | K216: 8.626666667 | L216: 10.78333333 | N216: 16 | O216: =O$220+((O$215-O$220)*4/6) ->  | R216: 20 | S216: 6.47 | T216: 8.626666667 | U216: 10.78333333 | V216: 37.64734791
B217: 173.2 | D217: 21 | E217: 6.185714286 | F217: 8.247619048 | G217: 10.30952381 | I217: 21 | J217: 6.185714286 | K217: 8.247619048 | L217: 10.30952381 | N217: 17 | O217: =O$220+((O$215-O$220)*3/7) ->  | R217: 21 | S217: =IF($R217>$F$181,0.0000000005,J217) -> 6.185714286 | T217: =IF($R217>$F$181,0.0000000005,K217) -> 8.247619048 | U217: =IF($R217>$F$181,0.0000000005,L217) -> 10.30952381 | V217: =$X$197/R217 -> 35.85461706
B218: 173.8666667 | D218: 22 | E218: 5.927272727 | F218: 7.903030303 | G218: 9.878787879 | I218: 22 | J218: 5.927272727 | K218: 7.903030303 | L218: 9.878787879 | N218: 18 | O218: =O$220+((O$215-O$220)*2/8) ->  | R218: 22 | S218: 5.927272727 | T218: 7.903030303 | U218: 9.878787879 | V218: 34.22486174
B219: 174.5333333 | D219: 23 | E219: 5.691304348 | F219: 7.588405797 | G219: 9.485507246 | I219: 23 | J219: 5.691304348 | K219: 7.588405797 | L219: 9.485507246 | N219: 19 | O219: =O$220+((O$215-O$220)*1/9) ->  | R219: 23 | S219: 5.691304348 | T219: 7.588405797 | U219: 9.485507246 | V219: 32.73682427
B220: 175.2 | D220: 24 | E220: 5.475 | F220: 7.3 | G220: 9.125 | I220: 24 | J220: 5.475 | K220: 7.3 | L220: 9.125 | N220: 20 | O220: =#REF! ->  | P220: x | R220: 24 | S220: 5.475 | T220: 7.3 | U220: 9.125 | V220: 31.37278993
B221: 175.8666667 | D221: 25 | E221: 5.276 | F221: 7.034666667 | G221: 8.793333333 | I221: 25 | J221: 5.276 | K221: 7.034666667 | L221: 8.793333333 | R221: 25 | S221: 5.276 | T221: 7.034666667 | U221: 8.793333333 | V221: 30.11787833
B222: 176.5333333 | D222: 26 | E222: 5.092307692 | F222: 6.78974359 | G222: 8.487179487 | I222: 26 | J222: 5.092307692 | K222: 6.78974359 | L222: 8.487179487 | R222: 26 | S222: 5e-10 | T222: 5e-10 | U222: 5e-10 | V222: 28.95949839
B223: 177.2 | D223: 27 | E223: 4.922222222 | F223: 6.562962963 | G223: 8.203703704 | I223: 27 | J223: 4.922222222 | K223: 6.562962963 | L223: 8.203703704 | R223: 27 | S223: 5e-10 | T223: 5e-10 | U223: 5e-10 | V223: 27.88692438
B224: 177.8666667 | D224: 28 | E224: 4.764285714 | F224: 6.352380952 | G224: 7.94047619 | I224: 28 | J224: 4.764285714 | K224: 6.352380952 | L224: 7.94047619 | R224: 28 | S224: 5e-10 | T224: 5e-10 | U224: 5e-10 | V224: 26.89096279
B225: 178.5333333 | D225: 29 | E225: 4.617241379 | F225: 6.156321839 | G225: 7.695402299 | I225: 29 | J225: 4.617241379 | K225: 6.156321839 | L225: 7.695402299 | R225: 29 | S225: 5e-10 | T225: 5e-10 | U225: 5e-10 | V225: 25.96368822
B226: 179.2 | D226: 30 | E226: 4.48 | F226: 5.973333333 | G226: 7.466666667 | I226: 30 | J226: 4.48 | K226: 5.973333333 | L226: 7.466666667 | R226: 30 | S226: 5e-10 | T226: 5e-10 | U226: 5e-10 | V226: 25.09823194
B227: 179.8666667 | D227: 31 | E227: 4.351612903 | F227: 5.802150538 | G227: 7.252688172 | I227: 31 | J227: 4.351612903 | K227: 5.802150538 | L227: 7.252688172 | R227: 31 | S227: 5e-10 | T227: 5e-10 | U227: 5e-10 | V227: 24.28861156
B228: 180.5333333 | D228: 32 | E228: 4.23125 | F228: 5.641666667 | G228: 7.052083333 | I228: 32 | J228: 4.23125 | K228: 5.641666667 | L228: 7.052083333 | R228: 32 | S228: 5e-10 | T228: 5e-10 | U228: 5e-10 | V228: 23.52959245
B229: 181.2 | D229: 33 | E229: 4.118181818 | F229: =($F$188+(D229-VINMAX)*$E$281/$E$282)/D229 -> 5.490909091 | G229: 6.863636364 | I229: 33 | J229: 4.118181818 | K229: 5.490909091 | L229: 6.863636364 | R229: 33 | S229: 5e-10 | T229: 5e-10 | U229: 5e-10 | V229: 22.81657449
B230: 181.8666667 | D230: 34 | E230: 4.011764706 | F230: 5.349019608 | G230: 6.68627451 | I230: 34 | J230: 4.011764706 | K230: 5.349019608 | L230: 6.68627451 | R230: 34 | S230: 5e-10 | T230: 5e-10 | U230: 5e-10 | V230: 22.14549877
B231: 182.5333333 | D231: 35 | E231: 3.911428571 | F231: 5.215238095 | G231: 6.519047619 | I231: 35 | J231: 3.911428571 | K231: 5.215238095 | L231: 6.519047619 | R231: 35 | S231: 5e-10 | T231: 5e-10 | U231: 5e-10 | V231: 21.51277024
B232: 183.2 | D232: 36 | E232: 3.816666667 | F232: 5.088888889 | G232: 6.361111111 | I232: 36 | J232: 3.816666667 | K232: 5.088888889 | L232: 6.361111111 | R232: 36 | S232: 5e-10 | T232: 5e-10 | U232: 5e-10 | V232: 20.91519328
B233: 183.8666667 | D233: 37 | E233: 3.727027027 | F233: 4.969369369 | G233: 6.211711712 | I233: 37 | J233: 3.727027027 | K233: 4.969369369 | L233: 6.211711712 | R233: 37 | S233: =IF($R233>$F$181,0.0000000005,J233) -> 5e-10 | T233: =IF($R233>$F$181,0.0000000005,K233) -> 5e-10 | U233: =IF($R233>$F$181,0.0000000005,L233) -> 5e-10 | V233: =$X$197/R233 -> 20.34991779
B234: 184.5333333 | D234: 38 | E234: 3.642105263 | F234: 4.856140351 | G234: 6.070175439 | I234: 38 | J234: 3.642105263 | K234: 4.856140351 | L234: 6.070175439 | R234: 38 | S234: 5e-10 | T234: 5e-10 | U234: 5e-10 | V234: 19.81439364
B235: 185.2 | D235: 39 | E235: 3.561538462 | F235: 4.748717949 | G235: 5.935897436 | I235: 39 | J235: 3.561538462 | K235: 4.748717949 | L235: 5.935897436 | R235: 39 | S235: 5e-10 | T235: 5e-10 | U235: 5e-10 | V235: 19.30633226
B236: 185.8666667 | D236: 40 | E236: 3.485 | F236: 4.646666667 | G236: 5.808333333 | I236: 40 | J236: 3.485 | K236: 4.646666667 | L236: 5.808333333 | R236: 40 | S236: 5e-10 | T236: 5e-10 | U236: 5e-10 | V236: 18.82367396
B237: 186.5333333 | D237: 41 | E237: 3.412195122 | F237: 4.549593496 | G237: 5.68699187 | I237: 41 | J237: 3.412195122 | K237: 4.549593496 | L237: 5.68699187 | R237: 41 | S237: 5e-10 | T237: 5e-10 | U237: 5e-10 | V237: 18.36455996
B238: 187.2 | D238: 42 | E238: 3.342857143 | F238: 4.457142857 | G238: 5.571428571 | I238: 42 | J238: 3.342857143 | K238: 4.457142857 | L238: 5.571428571 | R238: 42 | S238: =IF($R238>$F$181,0.0000000005,J238) -> 5e-10 | T238: =IF($R238>$F$181,0.0000000005,K238) -> 5e-10 | U238: =IF($R238>$F$181,0.0000000005,L238) -> 5e-10 | V238: 17.92730853
B239: 187.8666667 | D239: 43 | E239: 3.276744186 | F239: 4.368992248 | G239: 5.46124031 | I239: 43 | J239: 3.276744186 | K239: 4.368992248 | L239: 5.46124031 | R239: 43 | S239: 5e-10 | T239: 5e-10 | U239: 5e-10 | V239: 17.51039438
B240: 188.5333333 | D240: 44 | E240: 3.213636364 | F240: 4.284848485 | G240: 5.356060606 | I240: 44 | J240: 3.213636364 | K240: 4.284848485 | L240: 5.356060606 | R240: 44 | S240: 5e-10 | T240: 5e-10 | U240: 5e-10 | V240: 17.11243087
B241: 189.2 | D241: 45 | E241: 3.153333333 | F241: 4.204444444 | G241: 5.255555556 | I241: 45 | J241: 3.153333333 | K241: 4.204444444 | L241: 5.255555556 | R241: 45 | S241: 5e-10 | T241: 5e-10 | U241: 5e-10 | V241: 16.73215463
B242: 189.8666667 | D242: 46 | E242: 3.095652174 | F242: 4.127536232 | G242: 5.15942029 | I242: 46 | J242: 3.095652174 | K242: 4.127536232 | L242: 5.15942029 | R242: 46 | S242: 5e-10 | T242: 5e-10 | U242: 5e-10 | V242: 16.36841214
B243: 190.5333333 | D243: 47 | E243: 3.040425532 | F243: 4.053900709 | G243: 5.067375887 | I243: 47 | J243: 3.040425532 | K243: 4.053900709 | L243: 5.067375887 | R243: 47 | S243: 5e-10 | T243: 5e-10 | U243: 5e-10 | V243: 16.02014805
B244: 191.2 | D244: 48 | E244: 2.9875 | F244: 3.983333333 | G244: 4.979166667 | I244: 48 | J244: 2.9875 | K244: 3.983333333 | L244: 4.979166667 | R244: 48 | S244: 5e-10 | T244: 5e-10 | U244: 5e-10 | V244: 15.68639496
B245: 191.8666667 | D245: 49 | E245: 2.936734694 | F245: 3.915646259 | G245: 4.894557823 | I245: 49 | J245: 2.936734694 | K245: 3.915646259 | L245: 4.894557823 | R245: 49 | S245: 5e-10 | T245: 5e-10 | U245: 5e-10 | V245: 15.36626445
B246: 192.5333333 | D246: 50 | E246: 2.888 | F246: 3.850666667 | G246: 4.813333333 | I246: 50 | J246: 2.888 | K246: 3.850666667 | L246: 4.813333333 | R246: 50 | S246: 5e-10 | T246: 5e-10 | U246: 5e-10 | V246: 15.05893917
B247: 193.2 | D247: 51 | E247: 2.841176471 | F247: 3.788235294 | G247: 4.735294118 | I247: 51 | J247: 2.841176471 | K247: 3.788235294 | L247: 4.735294118 | R247: 51 | S247: 5e-10 | T247: 5e-10 | U247: 5e-10 | V247: 14.76366585
B248: 193.8666667 | D248: 52 | E248: 2.796153846 | F248: 3.728205128 | G248: 4.66025641 | I248: 52 | J248: 2.796153846 | K248: 3.728205128 | L248: 4.66025641 | R248: 52 | S248: 5e-10 | T248: 5e-10 | U248: 5e-10 | V248: 14.4797492
B249: 194.5333333 | D249: 53 | E249: 2.752830189 | F249: 3.670440252 | G249: 4.588050314 | I249: 53 | J249: 2.752830189 | K249: 3.670440252 | L249: 4.588050314 | R249: 53 | S249: 5e-10 | T249: 5e-10 | U249: 5e-10 | V249: 14.20654638
B250: 195.2 | D250: 54 | E250: 2.711111111 | F250: 3.614814815 | G250: 4.518518519 | I250: 54 | J250: 2.711111111 | K250: 3.614814815 | L250: 4.518518519 | R250: 54 | S250: 5e-10 | T250: 5e-10 | U250: 5e-10 | V250: 13.94346219
B251: 195.8666667 | D251: 55 | E251: 2.670909091 | F251: 3.561212121 | G251: 4.451515152 | I251: 55 | J251: 2.670909091 | K251: 3.561212121 | L251: 4.451515152 | R251: 55 | S251: 5e-10 | T251: 5e-10 | U251: 5e-10 | V251: 13.6899447
B252: 196.5333333 | D252: 56 | E252: 2.632142857 | F252: 3.50952381 | G252: 4.386904762 | I252: 56 | J252: 2.632142857 | K252: 3.50952381 | L252: 4.386904762 | R252: 56 | S252: 5e-10 | T252: 5e-10 | U252: 5e-10 | V252: 13.4454814
B253: 197.2 | D253: 57 | E253: 2.594736842 | F253: 3.459649123 | G253: 4.324561404 | I253: 57 | J253: 2.594736842 | K253: 3.459649123 | L253: 4.324561404 | R253: 57 | S253: 5e-10 | T253: 5e-10 | U253: 5e-10 | V253: 13.20959576
B254: 197.8666667 | D254: 58 | E254: 2.55862069 | F254: 3.411494253 | G254: 4.264367816 | I254: 58 | J254: 2.55862069 | K254: 3.411494253 | L254: 4.264367816 | R254: 58 | S254: =IF($R254>$F$181,0.0000000005,J254) -> 5e-10 | T254: =IF($R254>$F$181,0.0000000005,K254) -> 5e-10 | U254: =IF($R254>$F$181,0.0000000005,L254) -> 5e-10 | V254: =$X$197/R254 -> 12.98184411
B255: 198.5333333 | D255: 59 | E255: 2.523728814 | F255: 3.364971751 | G255: 4.206214689 | I255: 59 | J255: 2.523728814 | K255: 3.364971751 | L255: 4.206214689 | R255: 59 | S255: 5e-10 | T255: 5e-10 | U255: 5e-10 | V255: 12.76181285
B256: 199.2 | D256: 60 | E256: 2.49 | F256: 3.32 | G256: 4.15 | I256: 60 | J256: 2.49 | K256: 3.32 | L256: 4.15 | R256: 60 | S256: 5e-10 | T256: 5e-10 | U256: 5e-10 | V256: 12.54911597
B257: 199.8666667 | D257: 61 | E257: 2.457377049 | F257: 3.276502732 | G257: 4.095628415 | I257: 61 | J257: 2.457377049 | K257: 3.276502732 | L257: 4.095628415 | R257: 61 | S257: 5e-10 | T257: 5e-10 | U257: 5e-10 | V257: 12.34339276
B258: 200.5333333 | D258: 62 | E258: 2.425806452 | F258: 3.234408602 | G258: 4.043010753 | I258: 62 | J258: 2.425806452 | K258: 3.234408602 | L258: 4.043010753 | R258: 62 | S258: 5e-10 | T258: 5e-10 | U258: 5e-10 | V258: 12.14430578
B259: 201.2 | D259: 63 | E259: 2.395238095 | F259: 3.193650794 | G259: 3.992063492 | I259: 63 | J259: 2.395238095 | K259: 3.193650794 | L259: 3.992063492 | R259: 63 | S259: 5e-10 | T259: 5e-10 | U259: 5e-10 | V259: 11.95153902
B260: 201.8666667 | D260: 64 | E260: 2.365625 | F260: 3.154166667 | G260: 3.942708333 | I260: 64 | J260: 2.365625 | K260: 3.154166667 | L260: 3.942708333 | R260: 64 | S260: 5e-10 | T260: 5e-10 | U260: 5e-10 | V260: 11.76479622
B261: 202.5333333 | D261: 65 | E261: 2.336923077 | F261: =($F$188+(D261-VINMAX)*$E$281/$E$282)/D261 -> 3.115897436 | G261: 3.894871795 | I261: 65 | J261: 2.336923077 | K261: 3.115897436 | L261: 3.894871795 | R261: 65 | S261: 5e-10 | T261: 5e-10 | U261: 5e-10 | V261: 11.58379936
B262: =D262*F262 -> 203.2 | D262: 66 | E262: 2.309090909 | F262: 3.078787879 | G262: 3.848484848 | I262: 66 | J262: 2.309090909 | K262: 3.078787879 | L262: 3.848484848 | R262: 66 | S262: 5e-10 | T262: 5e-10 | U262: 5e-10 | V262: 11.40828725
B263: 203.8666667 | D263: 67 | E263: 2.282089552 | F263: 3.04278607 | G263: 3.803482587 | I263: 67 | J263: 2.282089552 | K263: 3.04278607 | L263: 3.803482587 | R263: 67 | S263: 5e-10 | T263: 5e-10 | U263: 5e-10 | V263: 11.2380143
B264: 204.5333333 | D264: 68 | E264: 2.255882353 | F264: 3.007843137 | G264: 3.759803922 | I264: 68 | J264: 2.255882353 | K264: 3.007843137 | L264: 3.759803922 | R264: 68 | S264: 5e-10 | T264: 5e-10 | U264: 5e-10 | V264: 11.07274939
B265: 205.2 | D265: 69 | E265: 2.230434783 | F265: 2.973913043 | G265: 3.717391304 | I265: 69 | J265: 2.230434783 | K265: 2.973913043 | L265: 3.717391304 | R265: 69 | S265: 5e-10 | T265: 5e-10 | U265: 5e-10 | V265: 10.91227476
B266: 205.8666667 | D266: 70 | E266: 2.205714286 | F266: 2.940952381 | G266: 3.676190476 | I266: 70 | J266: 2.205714286 | K266: 2.940952381 | L266: 3.676190476 | R266: 70 | S266: 5e-10 | T266: 5e-10 | U266: 5e-10 | V266: 10.75638512
B267: 206.5333333 | D267: 71 | E267: 2.181690141 | F267: 2.908920188 | G267: 3.636150235 | I267: 71 | J267: 2.181690141 | K267: 2.908920188 | L267: 3.636150235 | R267: 71 | S267: 5e-10 | T267: 5e-10 | U267: 5e-10 | V267: 10.60488674
B268: 207.2 | D268: 72 | E268: 2.158333333 | F268: 2.877777778 | G268: 3.597222222 | I268: 72 | J268: 2.158333333 | K268: 2.877777778 | L268: 3.597222222 | R268: 72 | S268: 5e-10 | T268: 5e-10 | U268: 5e-10 | V268: 10.45759664
B269: 207.8666667 | D269: 73 | E269: 2.135616438 | F269: 2.847488584 | G269: 3.559360731 | I269: 73 | J269: 2.135616438 | K269: 2.847488584 | L269: 3.559360731 | R269: 73 | S269: 5e-10 | T269: 5e-10 | U269: 5e-10 | V269: 10.31434189
B270: 208.5333333 | D270: 74 | E270: 2.113513514 | F270: 2.818018018 | G270: 3.522522523 | I270: 74 | J270: 2.113513514 | K270: 2.818018018 | L270: 3.522522523 | R270: 74 | S270: 5e-10 | T270: 5e-10 | U270: 5e-10 | V270: 10.1749589
B271: 209.2 | D271: 75 | E271: 2.092 | F271: 2.789333333 | G271: 3.486666667 | I271: 75 | J271: 2.092 | K271: 2.789333333 | L271: 3.486666667 | R271: 75 | S271: 5e-10 | T271: 5e-10 | U271: 5e-10 | V271: 10.03929278
B272: 209.8666667 | D272: 76 | E272: 2.071052632 | F272: 2.761403509 | G272: 3.451754386 | I272: 76 | J272: 2.071052632 | K272: 2.761403509 | L272: 3.451754386 | R272: 76 | S272: 5e-10 | T272: 5e-10 | U272: 5e-10 | V272: 9.907196819
B273: 210.5333333 | D273: 77 | E273: 2.050649351 | F273: 2.734199134 | G273: 3.417748918 | I273: 77 | J273: 2.050649351 | K273: 2.734199134 | L273: 3.417748918 | R273: 77 | S273: 5e-10 | T273: 5e-10 | U273: 5e-10 | V273: 9.778531925
B274: 211.2 | D274: 78 | E274: 2.030769231 | F274: 2.707692308 | G274: 3.384615385 | I274: 78 | J274: 2.030769231 | K274: 2.707692308 | L274: 3.384615385 | R274: 78 | S274: 5e-10 | T274: 5e-10 | U274: 5e-10 | V274: 9.653166131
B275: 211.8666667 | D275: 79 | E275: 2.011392405 | F275: 2.68185654 | G275: 3.352320675 | I275: 79 | J275: 2.011392405 | K275: 2.68185654 | L275: 3.352320675 | R275: 79 | S275: 5e-10 | T275: 5e-10 | U275: 5e-10 | V275: 9.530974155
B276: 212.5333333 | D276: 80 | E276: 1.9925 | F276: 2.656666667 | G276: 3.320833333 | I276: 80 | J276: 1.9925 | K276: 2.656666667 | L276: 3.320833333 | R276: 80 | S276: 5e-10 | T276: 5e-10 | U276: 5e-10 | V276: 9.411836978
D279: Note: I added an adjustment for the systematic offset
D281: Vos syst | E281: ='Device Parameters'!E12 -> 0.001
D282: Rs (ohm) | E282: =RsEFF*0.001 -> 0.0015
D283: Vin, max | E283: =VINMAX -> 25.2
D284: Plim tolerance | F284: 0.25
D286: Plim (Vds) = Plim (Vin,max) + (Vds - Vin,max)*Vos,syst/Rs

Sheet MOSFET Database 24V (hidden)
B4: ='Design Calculator'!H54 -> NON-TI MOSFET | C4: 1 | F4: CSD18536KTT | G4: 2 | J4: CSD18535KTT | K4: 3 | N4: CSD18540Q5B | O4: 4 | R4: CSD19506KTT | S4: 5 | V4: CSD19505KTT | W4: 6 | Z4: CSD18532Q5B | AA4: 7 | AD4: CSD18532NQ5B | AE4: 8 | AH4: CSD18542KTT | AI4: 9 | AL4: CSD19502Q5B | AM4: 10 | AP4: CSD18532KCS | AQ4: 11 | AT4: CSD18531Q5A | AU4: 12 | AX4: CSD18533Q5A | AY4: 13 | BB4: CSD19501KCS | BC4: 14 | BF4: CSD18563Q5A | BG4: 15 | BJ4: CSD19503KCS | BK4: 16 | BN4: CSD18534Q5A | BO4: 17 | BR4: CSD18543Q3A | BS4: 18 | BV4: CSD18537NQ5A | BW4: 19
B5: Webpage | C5: Enter webpage link | F5: Webpage | G5: https://www.ti.com/product/CSD18536KTT | J5: Webpage | K5: https://www.ti.com/product/CSD18535KTT | N5: Webpage | O5: https://www.ti.com/product/CSD18540Q5B | R5: Webpage | S5: https://www.ti.com/product/CSD19506KTT | V5: Webpage | W5: https://www.ti.com/product/CSD19505KTT | Z5: Webpage | AA5: https://www.ti.com/product/CSD18532Q5B | AD5: Webpage | AE5: https://www.ti.com/product/CSD18532NQ5B | AH5: Webpage | AI5: https://www.ti.com/product/CSD18542KTT | AL5: Webpage | AM5: https://www.ti.com/product/CSD19502Q5B | AP5: Webpage | AQ5: https://www.ti.com/product/CSD18532KCS | AT5: Webpage | AU5: https://www.ti.com/product/CSD18531Q5A | AX5: Webpage | AY5: https://www.ti.com/product/CSD18533Q5A | BB5: Webpage | BC5: https://www.ti.com/product/CSD19501KCS | BF5: Webpage | BG5: https://www.ti.com/product/CSD18563Q5A | BJ5: Webpage | BK5: https://www.ti.com/product/CSD19503KCS | BN5: Webpage | BO5: https://www.ti.com/product/CSD18534Q5A | BR5: Webpage | BS5: https://www.ti.com/product/CSD18543Q3A | BV5: Webpage | BW5: https://www.ti.com/product/CSD18537NQ5A
B6: Maximum Junction Temperature | C6: ='Design Calculator'!H56 -> 175 | D6: °C | F6: Maximum Junction Temperature | G6: 175 | H6: °C | J6: Maximum Junction Temperature | K6: 175 | L6: °C | N6: Maximum Junction Temperature | O6: 175 | P6: °C | R6: Maximum Junction Temperature | S6: 175 | T6: °C | V6: Maximum Junction Temperature | W6: 175 | X6: °C | Z6: Maximum Junction Temperature | AA6: 150 | AB6: °C | AD6: Maximum Junction Temperature | AE6: 150 | AF6: °C | AH6: Maximum Junction Temperature | AI6: 175 | AJ6: °C | AL6: Maximum Junction Temperature | AM6: 150 | AN6: °C | AP6: Maximum Junction Temperature | AQ6: 175 | AR6: °C | AT6: Maximum Junction Temperature | AU6: 150 | AV6: °C | AX6: Maximum Junction Temperature | AY6: 150 | AZ6: °C | BB6: Maximum Junction Temperature | BC6: 175 | BD6: °C | BF6: Maximum Junction Temperature | BG6: 150 | BH6: °C | BJ6: Maximum Junction Temperature | BK6: 175 | BL6: °C | BN6: Maximum Junction Temperature | BO6: 150 | BP6: °C | BR6: Maximum Junction Temperature | BS6: 150 | BT6: °C | BV6: Maximum Junction Temperature | BW6: 150 | BX6: °C
B7: Maximum Rds(on) | C7: ='Design Calculator'!H55 -> 2 | D7: mΩ | F7: Maximum Rds(on) | G7: 1.6 | H7: mΩ | J7: Maximum Rds(on) | K7: 2 | L7: mΩ | N7: Maximum Rds(on) | O7: 2.2 | P7: mΩ | R7: Maximum Rds(on) | S7: 2.3 | T7: mΩ | V7: Maximum Rds(on) | W7: 3.1 | X7: mΩ | Z7: Maximum Rds(on) | AA7: 3.2 | AB7: mΩ | AD7: Maximum Rds(on) | AE7: 3.4 | AF7: mΩ | AH7: Maximum Rds(on) | AI7: 4 | AJ7: mΩ | AL7: Maximum Rds(on) | AM7: 4.1 | AN7: mΩ | AP7: Maximum Rds(on) | AQ7: 4.2 | AR7: mΩ | AT7: Maximum Rds(on) | AU7: 4.6 | AV7: mΩ | AX7: Maximum Rds(on) | AY7: 5.9 | AZ7: mΩ | BB7: Maximum Rds(on) | BC7: 6.6 | BD7: mΩ | BF7: Maximum Rds(on) | BG7: 6.8 | BH7: mΩ | BJ7: Maximum Rds(on) | BK7: 9.2 | BL7: mΩ | BN7: Maximum Rds(on) | BO7: 9.8 | BP7: mΩ | BR7: Maximum Rds(on) | BS7: 9.9 | BT7: mΩ | BV7: Maximum Rds(on) | BW7: 13 | BX7: mΩ
B9: Rds(on) vs Temperature | F9: Rds(on) vs Temperature | J9: Rds(on) vs Temperature | N9: Rds(on) vs Temperature | R9: Rds(on) vs Temperature | V9: Rds(on) vs Temperature | Z9: Rds(on) vs Temperature | AD9: Rds(on) vs Temperature | AH9: Rds(on) vs Temperature | AL9: Rds(on) vs Temperature | AP9: Rds(on) vs Temperature | AT9: Rds(on) vs Temperature | AX9: Rds(on) vs Temperature | BB9: Rds(on) vs Temperature | BF9: Rds(on) vs Temperature | BJ9: Rds(on) vs Temperature | BN9: Rds(on) vs Temperature | BR9: Rds(on) vs Temperature | BV9: Rds(on) vs Temperature
B11: 70 | F11: 70 | G11: 1.23 | J11: 70 | K11: 1.23 | N11: 70 | O11: 1.24 | R11: 70 | S11: 1.26 | V11: 70 | W11: 1.26 | Z11: 70 | AA11: 1.33 | AD11: 70 | AE11: 1.31 | AH11: 70 | AI11: 1.26 | AL11: 70 | AM11: 1.28 | AP11: 70 | AQ11: 1.27 | AT11: 70 | AU11: 1.3 | AX11: 70 | AY11: 1.29 | BB11: 70 | BC11: 1.27 | BF11: 70 | BG11: 1.31 | BJ11: 70 | BK11: 1.32 | BN11: 70 | BO11: 1.29 | BR11: 70 | BS11: 1.27 | BV11: 70 | BW11: 1.33
B12: 75 | F12: 75 | G12: 1.26 | J12: 75 | K12: 1.26 | N12: 75 | O12: 1.26 | R12: 75 | S12: 1.29 | V12: 75 | W12: 1.29 | Z12: 75 | AA12: 1.37 | AD12: 75 | AE12: 1.35 | AH12: 75 | AI12: 1.3 | AL12: 75 | AM12: 1.31 | AP12: 75 | AQ12: 1.3 | AT12: 75 | AU12: 1.33 | AX12: 75 | AY12: 1.33 | BB12: 75 | BC12: 1.3 | BF12: 75 | BG12: 1.35 | BJ12: 75 | BK12: 1.36 | BN12: 75 | BO12: 1.32 | BR12: 75 | BS12: 1.3 | BV12: 75 | BW12: 1.37
B13: 80 | F13: 80 | G13: 1.28 | J13: 80 | K13: 1.29 | N13: 80 | O13: 1.29 | R13: 80 | S13: 1.32 | V13: 80 | W13: 1.32 | Z13: 80 | AA13: 1.41 | AD13: 80 | AE13: 1.39 | AH13: 80 | AI13: 1.33 | AL13: 80 | AM13: 1.35 | AP13: 80 | AQ13: 1.34 | AT13: 80 | AU13: 1.36 | AX13: 80 | AY13: 1.36 | BB13: 80 | BC13: 1.33 | BF13: 80 | BG13: 1.39 | BJ13: 80 | BK13: 1.41 | BN13: 80 | BO13: 1.36 | BR13: 80 | BS13: 1.33 | BV13: 80 | BW13: 1.41
B14: 85 | F14: 85 | G14: 1.31 | J14: 85 | K14: 1.31 | N14: 85 | O14: 1.32 | R14: 85 | S14: 1.35 | V14: 85 | W14: 1.36 | Z14: 85 | AA14: 1.46 | AD14: 85 | AE14: 1.43 | AH14: 85 | AI14: 1.36 | AL14: 85 | AM14: 1.38 | AP14: 85 | AQ14: 1.37 | AT14: 85 | AU14: 1.4 | AX14: 85 | AY14: 1.4 | BB14: 85 | BC14: 1.37 | BF14: 85 | BG14: 1.43 | BJ14: 85 | BK14: 1.45 | BN14: 85 | BO14: 1.39 | BR14: 85 | BS14: 1.36 | BV14: 85 | BW14: 1.45
B15: 90 | F15: 90 | G15: 1.34 | J15: 90 | K15: 1.34 | N15: 90 | O15: 1.35 | R15: 90 | S15: 1.38 | V15: 90 | W15: 1.39 | Z15: 90 | AA15: 1.5 | AD15: 90 | AE15: 1.47 | AH15: 90 | AI15: 1.4 | AL15: 90 | AM15: 1.41 | AP15: 90 | AQ15: 1.4 | AT15: 90 | AU15: 1.43 | AX15: 90 | AY15: 1.43 | BB15: 90 | BC15: 1.4 | BF15: 90 | BG15: 1.47 | BJ15: 90 | BK15: 1.49 | BN15: 90 | BO15: 1.43 | BR15: 90 | BS15: 1.4 | BV15: 90 | BW15: 1.49
B16: 95 | F16: 95 | G16: 1.37 | J16: 95 | K16: 1.37 | N16: 95 | O16: 1.38 | R16: 95 | S16: 1.42 | V16: 95 | W16: 1.42 | Z16: 95 | AA16: 1.55 | AD16: 95 | AE16: 1.52 | AH16: 95 | AI16: 1.43 | AL16: 95 | AM16: 1.45 | AP16: 95 | AQ16: 1.44 | AT16: 95 | AU16: 1.47 | AX16: 95 | AY16: 1.47 | BB16: 95 | BC16: 1.43 | BF16: 95 | BG16: 1.51 | BJ16: 95 | BK16: 1.54 | BN16: 95 | BO16: 1.46 | BR16: 95 | BS16: 1.43 | BV16: 95 | BW16: 1.54
B17: 100 | F17: 100 | G17: 1.4 | J17: 100 | K17: 1.4 | N17: 100 | O17: 1.42 | R17: 100 | S17: 1.45 | V17: 100 | W17: 1.46 | Z17: 100 | AA17: 1.59 | AD17: 100 | AE17: 1.56 | AH17: 100 | AI17: 1.47 | AL17: 100 | AM17: 1.48 | AP17: 100 | AQ17: 1.48 | AT17: 100 | AU17: 1.51 | AX17: 100 | AY17: 1.5 | BB17: 100 | BC17: 1.47 | BF17: 100 | BG17: 1.56 | BJ17: 100 | BK17: 1.58 | BN17: 100 | BO17: 1.5 | BR17: 100 | BS17: 1.46 | BV17: 100 | BW17: 1.58
B18: 105 | F18: 105 | G18: 1.43 | J18: 105 | K18: 1.44 | N18: 105 | O18: 1.45 | R18: 105 | S18: 1.48 | V18: 105 | W18: 1.49 | Z18: 105 | AA18: 1.64 | AD18: 105 | AE18: 1.61 | AH18: 105 | AI18: 1.5 | AL18: 105 | AM18: 1.52 | AP18: 105 | AQ18: 1.51 | AT18: 105 | AU18: 1.54 | AX18: 105 | AY18: 1.54 | BB18: 105 | BC18: 1.5 | BF18: 105 | BG18: 1.6 | BJ18: 105 | BK18: 1.63 | BN18: 105 | BO18: 1.54 | BR18: 105 | BS18: 1.5 | BV18: 105 | BW18: 1.63
B19: 110 | F19: 110 | G19: 1.46 | J19: 110 | K19: 1.47 | N19: 110 | O19: 1.48 | R19: 110 | S19: 1.52 | V19: 110 | W19: 1.53 | Z19: 110 | AA19: 1.69 | AD19: 110 | AE19: 1.65 | AH19: 110 | AI19: 1.54 | AL19: 110 | AM19: 1.56 | AP19: 110 | AQ19: 1.55 | AT19: 110 | AU19: 1.58 | AX19: 110 | AY19: 1.58 | BB19: 110 | BC19: 1.54 | BF19: 110 | BG19: 1.65 | BJ19: 110 | BK19: 1.68 | BN19: 110 | BO19: 1.58 | BR19: 110 | BS19: 1.53 | BV19: 110 | BW19: 1.67
B20: 115 | F20: 115 | G20: 1.49 | J20: 115 | K20: 1.5 | N20: 115 | O20: 1.51 | R20: 115 | S20: 1.55 | V20: 115 | W20: 1.56 | Z20: 115 | AA20: 1.74 | AD20: 115 | AE20: 1.7 | AH20: 115 | AI20: 1.57 | AL20: 115 | AM20: 1.59 | AP20: 115 | AQ20: 1.59 | AT20: 115 | AU20: 1.62 | AX20: 115 | AY20: 1.62 | BB20: 115 | BC20: 1.58 | BF20: 115 | BG20: 1.69 | BJ20: 115 | BK20: 1.72 | BN20: 115 | BO20: 1.61 | BR20: 115 | BS20: 1.57 | BV20: 115 | BW20: 1.72
B21: 120 | F21: 120 | G21: 1.52 | J21: 120 | K21: 1.53 | N21: 120 | O21: 1.55 | R21: 120 | S21: 1.59 | V21: 120 | W21: 1.6 | Z21: 120 | AA21: 1.79 | AD21: 120 | AE21: 1.75 | AH21: 120 | AI21: 1.61 | AL21: 120 | AM21: 1.63 | AP21: 120 | AQ21: 1.62 | AT21: 120 | AU21: 1.66 | AX21: 120 | AY21: 1.65 | BB21: 120 | BC21: 1.61 | BF21: 120 | BG21: 1.74 | BJ21: 120 | BK21: 1.77 | BN21: 120 | BO21: 1.65 | BR21: 120 | BS21: 1.6 | BV21: 120 | BW21: 1.77
B22: 125 | F22: 125 | G22: 1.56 | J22: 125 | K22: 1.56 | N22: 125 | O22: 1.58 | R22: 125 | S22: 1.62 | V22: 125 | W22: 1.64 | Z22: 125 | AA22: 1.84 | AD22: 125 | AE22: 1.8 | AH22: 125 | AI22: 1.65 | AL22: 125 | AM22: 1.67 | AP22: 125 | AQ22: 1.66 | AT22: 125 | AU22: 1.7 | AX22: 125 | AY22: 1.69 | BB22: 125 | BC22: 1.65 | BF22: 125 | BG22: 1.79 | BJ22: 125 | BK22: 1.82 | BN22: 125 | BO22: 1.69 | BR22: 125 | BS22: 1.64 | BV22: 125 | BW22: 1.82
B23: 130 | F23: 130 | G23: 1.59 | J23: 130 | K23: 1.6 | N23: 130 | O23: 1.61 | R23: 130 | S23: 1.66 | V23: 130 | W23: 1.67 | Z23: 130 | AA23: 1.89 | AD23: 130 | AE23: 1.85 | AH23: 130 | AI23: 1.68 | AL23: 130 | AM23: 1.71 | AP23: 130 | AQ23: 1.7 | AT23: 130 | AU23: 1.73 | AX23: 130 | AY23: 1.73 | BB23: 130 | BC23: 1.69 | BF23: 130 | BG23: 1.84 | BJ23: 130 | BK23: 1.88 | BN23: 130 | BO23: 1.73 | BR23: 130 | BS23: 1.68 | BV23: 130 | BW23: 1.87
B25: Maximum Load Current | C25: =IOUTMAX -> 25 | D25: A | F25: Maximum Load Current | G25: =IOUTMAX -> 25 | H25: A | J25: Maximum Load Current | K25: =IOUTMAX -> 25 | L25: A | N25: Maximum Load Current | O25: =IOUTMAX -> 25 | P25: A | R25: Maximum Load Current | S25: =IOUTMAX -> 25 | T25: A | V25: Maximum Load Current | W25: =IOUTMAX -> 25 | X25: A | Z25: Maximum Load Current | AA25: =IOUTMAX -> 25 | AB25: A | AD25: Maximum Load Current | AE25: =IOUTMAX -> 25 | AF25: A | AH25: Maximum Load Current | AI25: =IOUTMAX -> 25 | AJ25: A | AL25: Maximum Load Current | AM25: =IOUTMAX -> 25 | AN25: A | AP25: Maximum Load Current | AQ25: =IOUTMAX -> 25 | AR25: A | AT25: Maximum Load Current | AU25: =IOUTMAX -> 25 | AV25: A | AX25: Maximum Load Current | AY25: =IOUTMAX -> 25 | AZ25: A | BB25: Maximum Load Current | BC25: =IOUTMAX -> 25 | BD25: A | BF25: Maximum Load Current | BG25: =IOUTMAX -> 25 | BH25: A | BJ25: Maximum Load Current | BK25: =IOUTMAX -> 25 | BL25: A | BN25: Maximum Load Current | BO25: =IOUTMAX -> 25 | BP25: A | BR25: Maximum Load Current | BS25: =IOUTMAX -> 25 | BT25: A | BV25: Maximum Load Current | BW25: =IOUTMAX -> 25 | BX25: A
B26: Maximum Ambient Temperature | C26: =TAMB -> 85 | D26: °C | F26: Maximum Ambient Temperature | G26: =TAMB -> 85 | H26: °C | J26: Maximum Ambient Temperature | K26: =TAMB -> 85 | L26: °C | N26: Maximum Ambient Temperature | O26: =TAMB -> 85 | P26: °C | R26: Maximum Ambient Temperature | S26: =TAMB -> 85 | T26: °C | V26: Maximum Ambient Temperature | W26: =TAMB -> 85 | X26: °C | Z26: Maximum Ambient Temperature | AA26: =TAMB -> 85 | AB26: °C | AD26: Maximum Ambient Temperature | AE26: =TAMB -> 85 | AF26: °C | AH26: Maximum Ambient Temperature | AI26: =TAMB -> 85 | AJ26: °C | AL26: Maximum Ambient Temperature | AM26: =TAMB -> 85 | AN26: °C | AP26: Maximum Ambient Temperature | AQ26: =TAMB -> 85 | AR26: °C | AT26: Maximum Ambient Temperature | AU26: =TAMB -> 85 | AV26: °C | AX26: Maximum Ambient Temperature | AY26: =TAMB -> 85 | AZ26: °C | BB26: Maximum Ambient Temperature | BC26: =TAMB -> 85 | BD26: °C | BF26: Maximum Ambient Temperature | BG26: =TAMB -> 85 | BH26: °C | BJ26: Maximum Ambient Temperature | BK26: =TAMB -> 85 | BL26: °C | BN26: Maximum Ambient Temperature | BO26: =TAMB -> 85 | BP26: °C | BR26: Maximum Ambient Temperature | BS26: =TAMB -> 85 | BT26: °C | BV26: Maximum Ambient Temperature | BW26: =TAMB -> 85 | BX26: °C
B27: RQJA | C27: =ThetaJA -> 30 | D27: °C/W | F27: RQJA | G27: =ThetaJA -> 30 | H27: °C/W | J27: RQJA | K27: =ThetaJA -> 30 | L27: °C/W | N27: RQJA | O27: =ThetaJA -> 30 | P27: °C/W | R27: RQJA | S27: =ThetaJA -> 30 | T27: °C/W | V27: RQJA | W27: =ThetaJA -> 30 | X27: °C/W | Z27: RQJA | AA27: =ThetaJA -> 30 | AB27: °C/W | AD27: RQJA | AE27: =ThetaJA -> 30 | AF27: °C/W | AH27: RQJA | AI27: =ThetaJA -> 30 | AJ27: °C/W | AL27: RQJA | AM27: =ThetaJA -> 30 | AN27: °C/W | AP27: RQJA | AQ27: =ThetaJA -> 30 | AR27: °C/W | AT27: RQJA | AU27: =ThetaJA -> 30 | AV27: °C/W | AX27: RQJA | AY27: =ThetaJA -> 30 | AZ27: °C/W | BB27: RQJA | BC27: =ThetaJA -> 30 | BD27: °C/W | BF27: RQJA | BG27: =ThetaJA -> 30 | BH27: °C/W | BJ27: RQJA | BK27: =ThetaJA -> 30 | BL27: °C/W | BN27: RQJA | BO27: =ThetaJA -> 30 | BP27: °C/W | BR27: RQJA | BS27: =ThetaJA -> 30 | BT27: °C/W | BV27: RQJA | BW27: =ThetaJA -> 30 | BX27: °C/W
B28: Operation Temp required | C28: ='Design Calculator'!F25 -> 100 | D28: °C | F28: Operation Temp required | G28: ='Design Calculator'!F25 -> 100 | H28: °C | J28: Operation Temp required | K28: ='Design Calculator'!F25 -> 100 | L28: °C | N28: Operation Temp required | O28: ='Design Calculator'!F25 -> 100 | P28: °C | R28: Operation Temp required | S28: ='Design Calculator'!F25 -> 100 | T28: °C | V28: Operation Temp required | W28: ='Design Calculator'!F25 -> 100 | X28: °C | Z28: Operation Temp required | AA28: ='Design Calculator'!F25 -> 100 | AB28: °C | AD28: Operation Temp required | AE28: ='Design Calculator'!F25 -> 100 | AF28: °C | AH28: Operation Temp required | AI28: ='Design Calculator'!F25 -> 100 | AJ28: °C | AL28: Operation Temp required | AM28: ='Design Calculator'!F25 -> 100 | AN28: °C | AP28: Operation Temp required | AQ28: ='Design Calculator'!F25 -> 100 | AR28: °C | AT28: Operation Temp required | AU28: ='Design Calculator'!F25 -> 100 | AV28: °C | AX28: Operation Temp required | AY28: ='Design Calculator'!F25 -> 100 | AZ28: °C | BB28: Operation Temp required | BC28: ='Design Calculator'!F25 -> 100 | BD28: °C | BF28: Operation Temp required | BG28: ='Design Calculator'!F25 -> 100 | BH28: °C | BJ28: Operation Temp required | BK28: ='Design Calculator'!F25 -> 100 | BL28: °C | BN28: Operation Temp required | BO28: ='Design Calculator'!F25 -> 100 | BP28: °C | BR28: Operation Temp required | BS28: ='Design Calculator'!F25 -> 100 | BT28: °C | BV28: Operation Temp required | BW28: ='Design Calculator'!F25 -> 100 | BX28: °C
G29: =LOOKUP(G28,F11:F23,G11:G23) -> 1.4 | K29: =LOOKUP(K28,J11:J23,K11:K23) -> 1.4 | O29: =LOOKUP(O28,N11:N23,O11:O23) -> 1.42 | S29: =LOOKUP(S28,R11:R23,S11:S23) -> 1.45 | W29: =LOOKUP(W28,V11:V23,W11:W23) -> 1.46 | AA29: =LOOKUP(AA28,Z11:Z23,AA11:AA23) -> 1.59 | AE29: =LOOKUP(AE28,AD11:AD23,AE11:AE23) -> 1.56 | AI29: =LOOKUP(AI28,AH11:AH23,AI11:AI23) -> 1.47 | AM29: =LOOKUP(AM28,AL11:AL23,AM11:AM23) -> 1.48 | AQ29: =LOOKUP(AQ28,AP11:AP23,AQ11:AQ23) -> 1.48 | AU29: =LOOKUP(AU28,AT11:AT23,AU11:AU23) -> 1.51 | AY29: =LOOKUP(AY28,AX11:AX23,AY11:AY23) -> 1.5 | BC29: =LOOKUP(BC28,BB11:BB23,BC11:BC23) -> 1.47 | BG29: =LOOKUP(BG28,BF11:BF23,BG11:BG23) -> 1.56 | BK29: =LOOKUP(BK28,BJ11:BJ23,BK11:BK23) -> 1.58 | BO29: =LOOKUP(BO28,BN11:BN23,BO11:BO23) -> 1.5 | BS29: =LOOKUP(BS28,BR11:BR23,BS11:BS23) -> 1.46 | BW29: =LOOKUP(BW28,BV11:BV23,BW11:BW23) -> 1.58
B30: datasheet | C30: Not Applicable | F30: datasheet | G30: https://www.ti.com/lit/gpn/csd18536ktt | J30: datasheet | K30: https://www.ti.com/lit/gpn/csd18535ktt | N30: datasheet | O30: https://www.ti.com/lit/gpn/csd18540q5b | R30: datasheet | S30: https://www.ti.com/lit/gpn/csd19506ktt | V30: datasheet | W30: https://www.ti.com/lit/gpn/csd19505ktt | Z30: datasheet | AA30: https://www.ti.com/lit/gpn/csd18532q5b | AD30: datasheet | AE30: https://www.ti.com/lit/gpn/csd18532nq5b | AH30: datasheet | AI30: https://www.ti.com/lit/gpn/csd18542ktt | AL30: datasheet | AM30: https://www.ti.com/lit/gpn/csd19502q5b | AP30: datasheet | AQ30: https://www.ti.com/lit/gpn/csd18532kcs | AT30: datasheet | AU30: https://www.ti.com/lit/gpn/csd18531q5a | AX30: datasheet | AY30: https://www.ti.com/lit/gpn/csd18533q5a | BB30: datasheet | BC30: https://www.ti.com/lit/gpn/csd19501kcs | BF30: datasheet | BG30: https://www.ti.com/lit/gpn/csd18563q5a | BJ30: datasheet | BK30: https://www.ti.com/lit/gpn/csd19503kcs | BN30: datasheet | BO30: https://www.ti.com/lit/gpn/csd18534q5a | BR30: datasheet | BS30: https://www.ti.com/lit/gpn/csd18543q3a | BV30: datasheet | BW30: https://www.ti.com/lit/gpn/csd18537nq5a
B31: Number of FETs | C31: =SQRT((C25*C25*C7*C27)/(1000*(C28-C26))) -> 1.58113883 | F31: Number of FETs | G31: =SQRT((G25*G25*G29*G7*G27)/(1000*(G28-G26))) -> 1.673320053 | J31: Number of FETs | K31: =SQRT((K25*K25*K29*K7*K27)/(1000*(K28-K26))) -> 1.870828693 | N31: Number of FETs | O31: =SQRT((O25*O25*O29*O7*O27)/(1000*(O28-O26))) -> 1.976107285 | R31: Number of FETs | S31: =SQRT((S25*S25*S29*S7*S27)/(1000*(S28-S26))) -> 2.041751699 | V31: Number of FETs | W31: =SQRT((W25*W25*W29*W7*W27)/(1000*(W28-W26))) -> 2.378549978 | Z31: Number of FETs | AA31: =SQRT((AA25*AA25*AA29*AA7*AA27)/(1000*(AA28-AA26))) -> 2.521904043 | AD31: Number of FETs | AE31: =SQRT((AE25*AE25*AE29*AE7*AE27)/(1000*(AE28-AE26))) -> 2.574878638 | AH31: Number of FETs | AI31: =SQRT((AI25*AI25*AI29*AI7*AI27)/(1000*(AI28-AI26))) -> 2.711088342 | AL31: Number of FETs | AM31: =SQRT((AM25*AM25*AM29*AM7*AM27)/(1000*(AM28-AM26))) -> 2.754087871 | AP31: Number of FETs | AQ31: =SQRT((AQ25*AQ25*AQ29*AQ7*AQ27)/(1000*(AQ28-AQ26))) -> 2.787471973 | AT31: Number of FETs | AU31: =SQRT((AU25*AU25*AU29*AU7*AU27)/(1000*(AU28-AU26))) -> 2.94660822 | AX31: Number of FETs | AY31: =SQRT((AY25*AY25*AY29*AY7*AY27)/(1000*(AY28-AY26))) -> 3.326033674 | BB31: Number of FETs | BC31: =SQRT((BC25*BC25*BC29*BC7*BC27)/(1000*(BC28-BC26))) -> 3.48245603 | BF31: Number of FETs | BG31: =SQRT((BG25*BG25*BG29*BG7*BG27)/(1000*(BG28-BG26))) -> 3.641428291 | BJ31: Number of FETs | BK31: =SQRT((BK25*BK25*BK29*BK7*BK27)/(1000*(BK28-BK26))) -> 4.262628297 | BN31: Number of FETs | BO31: =SQRT((BO25*BO25*BO29*BO7*BO27)/(1000*(BO28-BO26))) -> 4.28660705 | BR31: Number of FETs | BS31: =SQRT((BS25*BS25*BS29*BS7*BS27)/(1000*(BS28-BS26))) -> 4.250588195 | BV31: Number of FETs | BW31: =SQRT((BW25*BW25*BW29*BW7*BW27)/(1000*(BW28-BW26))) -> 5.067050424
B32: FET round-up | C32: =CEILING(C31,1) -> 2 | F32: FET round-up | G32: =CEILING(G31,1) -> 2 | J32: FET round-up | K32: =CEILING(K31,1) -> 2 | N32: FET round-up | O32: =CEILING(O31,1) -> 2 | R32: FET round-up | S32: =CEILING(S31,1) -> 3 | V32: FET round-up | W32: =CEILING(W31,1) -> 3 | Z32: FET round-up | AA32: =CEILING(AA31,1) -> 3 | AD32: FET round-up | AE32: =CEILING(AE31,1) -> 3 | AH32: FET round-up | AI32: =CEILING(AI31,1) -> 3 | AL32: FET round-up | AM32: =CEILING(AM31,1) -> 3 | AP32: FET round-up | AQ32: =CEILING(AQ31,1) -> 3 | AT32: FET round-up | AU32: =CEILING(AU31,1) -> 3 | AX32: FET round-up | AY32: =CEILING(AY31,1) -> 4 | BB32: FET round-up | BC32: =CEILING(BC31,1) -> 4 | BF32: FET round-up | BG32: =CEILING(BG31,1) -> 4 | BJ32: FET round-up | BK32: =CEILING(BK31,1) -> 5 | BN32: FET round-up | BO32: =CEILING(BO31,1) -> 5 | BR32: FET round-up | BS32: =CEILING(BS31,1) -> 5 | BV32: FET round-up | BW32: =CEILING(BW31,1) -> 6
B33: FET power dissipation | C33: =C25*C25*C7/(1000*C32*C32) -> 0.3125 | D33: W | F33: FET power dissipation | G33: =G25*G25*G29*G7/(1000*G32*G32) -> 0.35 | H33: W | J33: FET power dissipation | K33: =K25*K25*K29*K7/(1000*K32*K32) -> 0.4375 | L33: W | N33: FET power dissipation | O33: =O25*O25*O29*O7/(1000*O32*O32) -> 0.488125 | P33: W | R33: FET power dissipation | S33: =S25*S25*S29*S7/(1000*S32*S32) -> 0.2315972222 | T33: W | V33: FET power dissipation | W33: =W25*W25*W29*W7/(1000*W32*W32) -> 0.3143055556 | X33: W | Z33: FET power dissipation | AA33: =AA25*AA25*AA29*AA7/(1000*AA32*AA32) -> 0.3533333333 | AB33: W | AD33: FET power dissipation | AE33: =AE25*AE25*AE29*AE7/(1000*AE32*AE32) -> 0.3683333333 | AF33: W | AH33: FET power dissipation | AI33: =AI25*AI25*AI29*AI7/(1000*AI32*AI32) -> 0.4083333333 | AJ33: W | AL33: FET power dissipation | AM33: =AM25*AM25*AM29*AM7/(1000*AM32*AM32) -> 0.4213888889 | AN33: W | AP33: FET power dissipation | AQ33: =AQ25*AQ25*AQ29*AQ7/(1000*AQ32*AQ32) -> 0.4316666667 | AR33: W | AT33: FET power dissipation | AU33: =AU25*AU25*AU29*AU7/(1000*AU32*AU32) -> 0.4823611111 | AV33: W | AX33: FET power dissipation | AY33: =AY25*AY25*AY29*AY7/(1000*AY32*AY32) -> 0.345703125 | AZ33: W | BB33: FET power dissipation | BC33: =BC25*BC25*BC29*BC7/(1000*BC32*BC32) -> 0.378984375 | BD33: W | BF33: FET power dissipation | BG33: =BG25*BG25*BG29*BG7/(1000*BG32*BG32) -> 0.414375 | BH33: W | BJ33: FET power dissipation | BK33: =BK25*BK25*BK29*BK7/(1000*BK32*BK32) -> 0.3634 | BL33: W | BN33: FET power dissipation | BO33: =BO25*BO25*BO29*BO7/(1000*BO32*BO32) -> 0.3675 | BP33: W | BR33: FET power dissipation | BS33: =BS25*BS25*BS29*BS7/(1000*BS32*BS32) -> 0.36135 | BT33: W | BV33: FET power dissipation | BW33: =BW25*BW25*BW29*BW7/(1000*BW32*BW32) -> 0.3565972222 | BX33: W
B34: Operating Temperature | C34: =C26+C33*C27 -> 94.375 | D34: °C | F34: Operating Temperature | G34: =G26+G33*G27 -> 95.5 | H34: °C | J34: Operating Temperature | K34: =K26+K33*K27 -> 98.125 | L34: °C | N34: Operating Temperature | O34: =O26+O33*O27 -> 99.64375 | P34: °C | R34: Operating Temperature | S34: =S26+S33*S27 -> 91.94791667 | T34: °C | V34: Operating Temperature | W34: =W26+W33*W27 -> 94.42916667 | X34: °C | Z34: Operating Temperature | AA34: =AA26+AA33*AA27 -> 95.6 | AB34: °C | AD34: Operating Temperature | AE34: =AE26+AE33*AE27 -> 96.05 | AF34: °C | AH34: Operating Temperature | AI34: =AI26+AI33*AI27 -> 97.25 | AJ34: °C | AL34: Operating Temperature | AM34: =AM26+AM33*AM27 -> 97.64166667 | AN34: °C | AP34: Operating Temperature | AQ34: =AQ26+AQ33*AQ27 -> 97.95 | AR34: °C | AT34: Operating Temperature | AU34: =AU26+AU33*AU27 -> 99.47083333 | AV34: °C | AX34: Operating Temperature | AY34: =AY26+AY33*AY27 -> 95.37109375 | AZ34: °C | BB34: Operating Temperature | BC34: =BC26+BC33*BC27 -> 96.36953125 | BD34: °C | BF34: Operating Temperature | BG34: =BG26+BG33*BG27 -> 97.43125 | BH34: °C | BJ34: Operating Temperature | BK34: =BK26+BK33*BK27 -> 95.902 | BL34: °C | BN34: Operating Temperature | BO34: =BO26+BO33*BO27 -> 96.025 | BP34: °C | BR34: Operating Temperature | BS34: =BS26+BS33*BS27 -> 95.8405 | BT34: °C | BV34: Operating Temperature | BW34: =BW26+BW33*BW27 -> 95.69791667 | BX34: °C
B35: cost 1k USD | C35: Enter cost details | F35: cost 1k USD | G35: 1.894 | J35: cost 1k USD | K35: 1.266 | N35: cost 1k USD | O35: 0.867 | R35: cost 1k USD | S35: 1.972 | V35: cost 1k USD | W35: 1.313 | Z35: cost 1k USD | AA35: 0.845 | AD35: cost 1k USD | AE35: 0.845 | AH35: cost 1k USD | AI35: 0.861 | AL35: cost 1k USD | AM35: 0.896 | AP35: cost 1k USD | AQ35: 0.818 | AT35: cost 1k USD | AU35: 0.589 | AX35: cost 1k USD | AY35: 0.464 | BB35: cost 1k USD | BC35: 0.719 | BF35: cost 1k USD | BG35: 0.477 | BJ35: cost 1k USD | BK35: 0.587 | BN35: cost 1k USD | BO35: 0.326 | BR35: cost 1k USD | BS35: 0.258 | BV35: cost 1k USD | BW35: 0.273
B37: SOA
B38: Time(ms) | F38: Time(ms) | J38: Time(ms) | N38: Time(ms) | R38: Time(ms) | V38: Time(ms) | Z38: Time(ms) | AD38: Time(ms) | AH38: Time(ms) | AL38: Time(ms) | AP38: Time(ms) | AT38: Time(ms) | AX38: Time(ms) | BB38: Time(ms) | BF38: Time(ms) | BJ38: Time(ms) | BN38: Time(ms) | BR38: Time(ms) | BV38: Time(ms)
B39: 0.01 | C39: ='Design Calculator'!H57 -> 240 | D39: A | F39: 0.01 | G39: 400 | H39: A | J39: 0.01 | K39: 400 | L39: A | N39: 0.01 | O39: 400 | P39: A | R39: 0.01 | S39: 400 | T39: A | V39: 0.01 | W39: 400 | X39: A | Z39: 0.01 | AA39: =36326*VINMAX^-1.677 -> 162.2067309 | AB39: A | AD39: 0.01 | AE39: 400 | AF39: A | AH39: 0.01 | AI39: 400 | AJ39: A | AL39: 0.01 | AM39: =30220*VINMAX^-1.615 -> 164.8286064 | AN39: A | AP39: 0.01 | AQ39: 400 | AR39: A | AT39: 0.01 | AU39: =20185*VINMAX^-1.526 -> 146.7207467 | AV39: A | AX39: 0.01 | AY39: =19093*VINMAX^-1.564 -> 122.767589 | AZ39: A | BB39: 0.01 | BC39: =26533.896*VINMAX^-1.640895 -> 133.1220149 | BD39: A | BF39: 0.01 | BG39: =2759.3*VINMAX^-1 -> 109.4960317 | BH39: A | BJ39: 0.01 | BK39: =3718*VINMAX^-1 -> 147.5396825 | BL39: A | BN39: 0.01 | BO39: =5949.5*VINMAX^-1 -> 236.0912698 | BP39: A | BR39: 0.01 | BS39: 156 | BT39: A | BV39: 0.01 | BW39: =6156.5*VINMAX^-1.437 -> 59.63775777 | BX39: A
B40: 0.1 | C40: ='Design Calculator'!H58 -> 35 | D40: A | F40: 0.1 | G40: =7200*VINMAX^-1 -> 285.7142857 | H40: A | J40: 0.1 | K40: =7200*VINMAX^-1 -> 285.7142857 | L40: A | N40: 0.1 | O40: =210787.85*VINMAX^-2.205 -> 171.3000074 | P40: A | R40: 0.1 | S40: =9600*VINMAX^-1 -> 380.952381 | T40: A | V40: 0.1 | W40: =6024*VINMAX^-1 -> 239.047619 | X40: A | Z40: 0.1 | AA40: =9058.8*VINMAX^-1.677 -> 40.45032027 | AB40: A | AD40: 0.1 | AE40: =254877.35*VINMAX^-2.292 -> 156.4304172 | AF40: A | AH40: 0.1 | AI40: =23236.2*VINMAX^-1.559 -> 151.8384154 | AJ40: A | AL40: 0.1 | AM40: =7262.7*VINMAX^-1.615 -> 39.61286298 | AN40: A | AP40: 0.1 | AQ40: =25472*VINMAX^-1.733 -> 94.93708852 | AR40: A | AT40: 0.1 | AU40: =5027.2*VINMAX^-1.526 -> 36.54171601 | AV40: A | AX40: 0.1 | AY40: =3987.9*VINMAX^-1.564 -> 25.64211323 | AZ40: A | BB40: 0.1 | BC40: =450*VINMAX^-1 -> 17.85714286 | BD40: A | BF40: 0.1 | BG40: =2213.6*VINMAX^-1.334 -> 29.8972212 | BH40: A | BJ40: 0.1 | BK40: =2786.8*VINMAX^-1.436 -> 27.08286627 | BL40: A | BN40: 0.1 | BO40: =3055.1*VINMAX^-1.399 -> 33.45538821 | BP40: A | BR40: 0.1 | BS40: =8287.2884*VINMAX^-1.6338 -> 42.54066251 | BT40: A | BV40: 0.1 | BW40: =1328.6*VINMAX^-1.437 -> 12.87009258 | BX40: A
B41: 1 | C41: ='Design Calculator'!H59 -> 3 | D41: A | F41: 1 | G41: =18540.6*VINMAX^-1.848 -> 47.67992736 | H41: A | J41: 1 | K41: =10892.05*VINMAX^-1.811 -> 31.56263456 | L41: A | N41: 1 | O41: =5035.355*VINMAX^-1.742 -> 18.23015463 | P41: A | R41: 1 | S41: =8530.6*VINMAX^-1.677 -> 38.09174527 | T41: A | V41: 1 | W41: =4926.09*VINMAX^-1.645 -> 24.3892504 | X41: A | Z41: 1 | AA41: =2847.4*VINMAX^-1.677 -> 12.71451428 | AB41: A | AD41: 1 | AE41: =3649.035*VINMAX^-1.776 -> 11.83833617 | AF41: A | AH41: 1 | AI41: =4614.61*VINMAX^-1.711 -> 18.46454786 | AJ41: A | AL41: 1 | AM41: =2213.6*VINMAX^-1.615 -> 12.0736136 | AN41: A | AP41: 1 | AQ41: =5126.7*VINMAX^-1.733 -> 19.10780354 | AR41: A | AT41: 1 | AU41: =1653.3*VINMAX^-1.526 -> 12.01750857 | AV41: A | AX41: 1 | AY41: =1139.3*VINMAX^-1.564 -> 7.325675069 | AZ41: A | BB41: 1 | BC41: =270.803*VINMAX^-1.12 -> 7.296000676 | BD41: A | BF41: 1 | BG41: =700*VINMAX^-1.334 -> 9.454307392 | BH41: A | BJ41: 1 | BK41: =700*VINMAX^-1.436 -> 6.802786849 | BL41: A | BN41: 1 | BO41: =556.03*VINMAX^-1.399 -> 6.088900365 | BP41: A | BR41: 1 | BS41: =1050.9707*VINMAX^-1.64545 -> 5.195843825 | BT41: A | BV41: 1 | BW41: =412.19*VINMAX^-1.437 -> 3.992867274 | BX41: A
B42: 10 | C42: ='Design Calculator'!H60 -> 2 | D42: A | F42: 10 | G42: =4210.83*VINMAX^-1.786 -> 13.22715195 | H42: A | J42: 10 | K42: =2539.81*VINMAX^-1.762 -> 8.620520242 | L42: A | N42: 10 | O42: =1366.82*VINMAX^-1.659 -> 6.46826535 | P42: A | R42: 10 | S42: =1565.525*VINMAX^-1.487 -> 12.90557631 | T42: A | V42: 10 | W42: =1494.22*VINMAX^-1.647 -> 7.35034721 | X42: A | Z42: 10 | AA42: =1085.4*VINMAX^-1.677 -> 4.846643884 | AB42: A | AD42: 10 | AE42: =1388.79*VINMAX^-1.801 -> 4.15637005 | AF42: A | AH42: 10 | AI42: =1390.155*VINMAX^-1.765 -> 4.672951479 | AJ42: A | AL42: 10 | AM42: =822.43*VINMAX^-1.615 -> 4.485770706 | AN42: A | AP42: 10 | AQ42: =1760.7*VINMAX^-1.733 -> 6.562332434 | AR42: A | AT42: 10 | AU42: =679.18*VINMAX^-1.526 -> 4.936824213 | AV42: A | AX42: 10 | AY42: =418.17*VINMAX^-1.564 -> 2.688824316 | AZ42: A | BB42: 10 | BC42: =407.4016*VINMAX^-1.56317 -> 2.626609114 | BD42: A | BF42: 10 | BG42: =278.68*VINMAX^-1.334 -> 3.763894834 | BH42: A | BJ42: 10 | BK42: =226.52*VINMAX^-1.436 -> 2.201381824 | BL42: A | BN42: 10 | BO42: =197.29*VINMAX^-1.399 -> 2.160457445 | BP42: A | BR42: 10 | BS42: =13.3098*VINMAX^-0.761056 -> 1.141897809 | BT42: A | BV42: 10 | BW42: =167.92*VINMAX^-1.437 -> 1.62663401 | BX42: A
B43: 100 | C43: ='Design Calculator'!H61 -> 0.1 | D43: A | F43: 100 | G43: =795.6*VINMAX^-1.492 -> 6.453646418 | H43: A | J43: 100 | K43: =1006.005*VINMAX^-1.605 -> 5.666987716 | L43: A | N43: 100 | O43: =108.017*VINMAX^-1.122 -> 2.891483408 | P43: A | R43: 100 | S43: =334.6265*VINMAX^-1.214 -> 6.656716701 | T43: A | V43: 100 | W43: =351.234*VINMAX^-1.35 -> 4.505114358 | X43: A | Z43: 100 | AA43: =314.18*VINMAX^-1.677 -> 1.402910057 | AB43: A | AD43: 100 | AE43: =144.5275*VINMAX^-1.28 -> 2.323580902 | AF43: A | AH43: 100 | AI43: =695.825*VINMAX^-1.644 -> 3.456189442 | AJ43: A | AL43: 100 | AM43: =266.13*VINMAX^-1.615 -> 1.451549868 | AN43: A | AP43: 100 | AQ43: =1037.9*VINMAX^-1.733 -> 3.86837328 | AR43: A | AT43: 100 | AU43: =180.1*VINMAX^-1.526 -> 1.309111047 | AV43: A | AX43: 100 | AY43: =157.27*VINMAX^-1.564 -> 1.011242797 | AZ43: A | BB43: 100 | BC43: =111.1856*VINMAX^-1.2291 -> 2.106624542 | BD43: A | BF43: 100 | BG43: =124.48*VINMAX^-1.334 -> 1.681245977 | BH43: A | BJ43: 100 | BK43: =175.83*VINMAX^-1.436 -> 1.708762874 | BL43: A | BN43: 100 | BO43: =116.17*VINMAX^-1.399 -> 1.272139193 | BP43: A | BR43: 100 | BS43: =87.16708*VINMAX^-1.583 -> 0.5271514941 | BT43: A | BV43: 100 | BW43: =84.159*VINMAX^-1.437 -> 0.8152447098 | BX43: A
B45: Timer Duration | C45: =IF('Design Calculator'!F30="Soft Start",'Design Calculator'!F31-0.00001,'Design Calculator'!F79) -> 0.09999 | D45: ms | F45: Timer Duration | G45: =IF('Design Calculator'!F30="Soft Start",'Design Calculator'!F31-0.00001,'Design Calculator'!F79) -> 0.09999 | H45: ms | J45: Timer Duration | K45: =IF('Design Calculator'!F30="Soft Start",'Design Calculator'!F31-0.00001,'Design Calculator'!F79) -> 0.09999 | L45: ms | N45: Timer Duration | O45: =IF('Design Calculator'!F30="Soft Start",'Design Calculator'!F31-0.00001,'Design Calculator'!F79) -> 0.09999 | P45: ms | R45: Timer Duration | S45: =IF('Design Calculator'!F30="Soft Start",'Design Calculator'!F31-0.00001,'Design Calculator'!F79) -> 0.09999 | T45: ms | V45: Timer Duration | W45: =IF('Design Calculator'!F30="Soft Start",'Design Calculator'!F31-0.00001,'Design Calculator'!F79) -> 0.09999 | X45: ms | Z45: Timer Duration | AA45: =IF('Design Calculator'!F30="Soft Start",'Design Calculator'!F31-0.00001,'Design Calculator'!F79) -> 0.09999 | AB45: ms | AD45: Timer Duration | AE45: =IF('Design Calculator'!F30="Soft Start",'Design Calculator'!F31-0.00001,'Design Calculator'!F79) -> 0.09999 | AF45: ms | AH45: Timer Duration | AI45: =IF('Design Calculator'!F30="Soft Start",'Design Calculator'!F31-0.00001,'Design Calculator'!F79) -> 0.09999 | AJ45: ms | AL45: Timer Duration | AM45: =IF('Design Calculator'!F30="Soft Start",'Design Calculator'!F31-0.00001,'Design Calculator'!F79) -> 0.09999 | AN45: ms | AP45: Timer Duration | AQ45: =IF('Design Calculator'!F30="Soft Start",'Design Calculator'!F31-0.00001,'Design Calculator'!F79) -> 0.09999 | AR45: ms | AT45: Timer Duration | AU45: =IF('Design Calculator'!F30="Soft Start",'Design Calculator'!F31-0.00001,'Design Calculator'!F79) -> 0.09999 | AV45: ms | AX45: Timer Duration | AY45: =IF('Design Calculator'!F30="Soft Start",'Design Calculator'!F31-0.00001,'Design Calculator'!F79) -> 0.09999 | AZ45: ms | BB45: Timer Duration | BC45: =IF('Design Calculator'!F30="Soft Start",'Design Calculator'!F31-0.00001,'Design Calculator'!F79) -> 0.09999 | BD45: ms | BF45: Timer Duration | BG45: =IF('Design Calculator'!F30="Soft Start",'Design Calculator'!F31-0.00001,'Design Calculator'!F79) -> 0.09999 | BH45: ms | BJ45: Timer Duration | BK45: =IF('Design Calculator'!F30="Soft Start",'Design Calculator'!F31-0.00001,'Design Calculator'!F79) -> 0.09999 | BL45: ms | BN45: Timer Duration | BO45: =IF('Design Calculator'!F30="Soft Start",'Design Calculator'!F31-0.00001,'Design Calculator'!F79) -> 0.09999 | BP45: ms | BR45: Timer Duration | BS45: =IF('Design Calculator'!F30="Soft Start",'Design Calculator'!F31-0.00001,'Design Calculator'!F79) -> 0.09999 | BT45: ms | BV45: Timer Duration | BW45: =IF('Design Calculator'!F30="Soft Start",'Design Calculator'!F31-0.00001,'Design Calculator'!F79) -> 0.09999 | BX45: ms
B47: Lower time | C47: =IF(C45>B42,10,IF(C45>B41,1,IF(C45>B40,0.1,0.01))) -> 0.01 | D47: ms | F47: Lower time | G47: =IF(G45>F42,10,IF(G45>F41,1,IF(G45>F40,0.1,0.01))) -> 0.01 | H47: ms | J47: Lower time | K47: =IF(K45>J42,10,IF(K45>J41,1,IF(K45>J40,0.1,0.01))) -> 0.01 | L47: ms | N47: Lower time | O47: =IF(O45>N42,10,IF(O45>N41,1,IF(O45>N40,0.1,0.01))) -> 0.01 | P47: ms | R47: Lower time | S47: =IF(S45>R42,10,IF(S45>R41,1,IF(S45>R40,0.1,0.01))) -> 0.01 | T47: ms | V47: Lower time | W47: =IF(W45>V42,10,IF(W45>V41,1,IF(W45>V40,0.1,0.01))) -> 0.01 | X47: ms | Z47: Lower time | AA47: =IF(AA45>Z42,10,IF(AA45>Z41,1,IF(AA45>Z40,0.1,0.01))) -> 0.01 | AB47: ms | AD47: Lower time | AE47: =IF(AE45>AD42,10,IF(AE45>AD41,1,IF(AE45>AD40,0.1,0.01))) -> 0.01 | AF47: ms | AH47: Lower time | AI47: =IF(AI45>AH42,10,IF(AI45>AH41,1,IF(AI45>AH40,0.1,0.01))) -> 0.01 | AJ47: ms | AL47: Lower time | AM47: =IF(AM45>AL42,10,IF(AM45>AL41,1,IF(AM45>AL40,0.1,0.01))) -> 0.01 | AN47: ms | AP47: Lower time | AQ47: =IF(AQ45>AP42,10,IF(AQ45>AP41,1,IF(AQ45>AP40,0.1,0.01))) -> 0.01 | AR47: ms | AT47: Lower time | AU47: =IF(AU45>AT42,10,IF(AU45>AT41,1,IF(AU45>AT40,0.1,0.01))) -> 0.01 | AV47: ms | AX47: Lower time | AY47: =IF(AY45>AX42,10,IF(AY45>AX41,1,IF(AY45>AX40,0.1,0.01))) -> 0.01 | AZ47: ms | BB47: Lower time | BC47: =IF(BC45>BB42,10,IF(BC45>BB41,1,IF(BC45>BB40,0.1,0.01))) -> 0.01 | BD47: ms | BF47: Lower time | BG47: =IF(BG45>BF42,10,IF(BG45>BF41,1,IF(BG45>BF40,0.1,0.01))) -> 0.01 | BH47: ms | BJ47: Lower time | BK47: =IF(BK45>BJ42,10,IF(BK45>BJ41,1,IF(BK45>BJ40,0.1,0.01))) -> 0.01 | BL47: ms | BN47: Lower time | BO47: =IF(BO45>BN42,10,IF(BO45>BN41,1,IF(BO45>BN40,0.1,0.01))) -> 0.01 | BP47: ms | BR47: Lower time | BS47: =IF(BS45>BR42,10,IF(BS45>BR41,1,IF(BS45>BR40,0.1,0.01))) -> 0.01 | BT47: ms | BV47: Lower time | BW47: =IF(BW45>BV42,10,IF(BW45>BV41,1,IF(BW45>BV40,0.1,0.01))) -> 0.01 | BX47: ms
B48: Lower Current | C48: =LOOKUP(C47,B39:B43,C39:C43) -> 240 | D48: A | F48: Lower Current | G48: =LOOKUP(G47,F39:F43,G39:G43) -> 400 | H48: A | J48: Lower Current | K48: =LOOKUP(K47,J39:J43,K39:K43) -> 400 | L48: A | N48: Lower Current | O48: =LOOKUP(O47,N39:N43,O39:O43) -> 400 | P48: A | R48: Lower Current | S48: =LOOKUP(S47,R39:R43,S39:S43) -> 400 | T48: A | V48: Lower Current | W48: =LOOKUP(W47,V39:V43,W39:W43) -> 400 | X48: A | Z48: Lower Current | AA48: =LOOKUP(AA47,Z39:Z43,AA39:AA43) -> 162.2067309 | AB48: A | AD48: Lower Current | AE48: =LOOKUP(AE47,AD39:AD43,AE39:AE43) -> 400 | AF48: A | AH48: Lower Current | AI48: =LOOKUP(AI47,AH39:AH43,AI39:AI43) -> 400 | AJ48: A | AL48: Lower Current | AM48: =LOOKUP(AM47,AL39:AL43,AM39:AM43) -> 164.8286064 | AN48: A | AP48: Lower Current | AQ48: =LOOKUP(AQ47,AP39:AP43,AQ39:AQ43) -> 400 | AR48: A | AT48: Lower Current | AU48: =LOOKUP(AU47,AT39:AT43,AU39:AU43) -> 146.7207467 | AV48: A | AX48: Lower Current | AY48: =LOOKUP(AY47,AX39:AX43,AY39:AY43) -> 122.767589 | AZ48: A | BB48: Lower Current | BC48: =LOOKUP(BC47,BB39:BB43,BC39:BC43) -> 133.1220149 | BD48: A | BF48: Lower Current | BG48: =LOOKUP(BG47,BF39:BF43,BG39:BG43) -> 109.4960317 | BH48: A | BJ48: Lower Current | BK48: =LOOKUP(BK47,BJ39:BJ43,BK39:BK43) -> 147.5396825 | BL48: A | BN48: Lower Current | BO48: =LOOKUP(BO47,BN39:BN43,BO39:BO43) -> 236.0912698 | BP48: A | BR48: Lower Current | BS48: =LOOKUP(BS47,BR39:BR43,BS39:BS43) -> 156 | BT48: A | BV48: Lower Current | BW48: =LOOKUP(BW47,BV39:BV43,BW39:BW43) -> 59.63775777 | BX48: A
B49: Higher Timer | C49: =IF(C45<B39,0.01,IF(C45<B40,0.1,IF(C45<B41,1,IF(C45<B42,10,100)))) -> 0.1 | D49: ms | F49: Higher Timer | G49: =IF(G45<F39,0.01,IF(G45<F40,0.1,IF(G45<F41,1,IF(G45<F42,10,100)))) -> 0.1 | H49: ms | J49: Higher Timer | K49: =IF(K45<J39,0.01,IF(K45<J40,0.1,IF(K45<J41,1,IF(K45<J42,10,100)))) -> 0.1 | L49: ms | N49: Higher Timer | O49: =IF(O45<N39,0.01,IF(O45<N40,0.1,IF(O45<N41,1,IF(O45<N42,10,100)))) -> 0.1 | P49: ms | R49: Higher Timer | S49: =IF(S45<R39,0.01,IF(S45<R40,0.1,IF(S45<R41,1,IF(S45<R42,10,100)))) -> 0.1 | T49: ms | V49: Higher Timer | W49: =IF(W45<V39,0.01,IF(W45<V40,0.1,IF(W45<V41,1,IF(W45<V42,10,100)))) -> 0.1 | X49: ms | Z49: Higher Timer | AA49: =IF(AA45<Z39,0.01,IF(AA45<Z40,0.1,IF(AA45<Z41,1,IF(AA45<Z42,10,100)))) -> 0.1 | AB49: ms | AD49: Higher Timer | AE49: =IF(AE45<AD39,0.01,IF(AE45<AD40,0.1,IF(AE45<AD41,1,IF(AE45<AD42,10,100)))) -> 0.1 | AF49: ms | AH49: Higher Timer | AI49: =IF(AI45<AH39,0.01,IF(AI45<AH40,0.1,IF(AI45<AH41,1,IF(AI45<AH42,10,100)))) -> 0.1 | AJ49: ms | AL49: Higher Timer | AM49: =IF(AM45<AL39,0.01,IF(AM45<AL40,0.1,IF(AM45<AL41,1,IF(AM45<AL42,10,100)))) -> 0.1 | AN49: ms | AP49: Higher Timer | AQ49: =IF(AQ45<AP39,0.01,IF(AQ45<AP40,0.1,IF(AQ45<AP41,1,IF(AQ45<AP42,10,100)))) -> 0.1 | AR49: ms | AT49: Higher Timer | AU49: =IF(AU45<AT39,0.01,IF(AU45<AT40,0.1,IF(AU45<AT41,1,IF(AU45<AT42,10,100)))) -> 0.1 | AV49: ms | AX49: Higher Timer | AY49: =IF(AY45<AX39,0.01,IF(AY45<AX40,0.1,IF(AY45<AX41,1,IF(AY45<AX42,10,100)))) -> 0.1 | AZ49: ms | BB49: Higher Timer | BC49: =IF(BC45<BB39,0.01,IF(BC45<BB40,0.1,IF(BC45<BB41,1,IF(BC45<BB42,10,100)))) -> 0.1 | BD49: ms | BF49: Higher Timer | BG49: =IF(BG45<BF39,0.01,IF(BG45<BF40,0.1,IF(BG45<BF41,1,IF(BG45<BF42,10,100)))) -> 0.1 | BH49: ms | BJ49: Higher Timer | BK49: =IF(BK45<BJ39,0.01,IF(BK45<BJ40,0.1,IF(BK45<BJ41,1,IF(BK45<BJ42,10,100)))) -> 0.1 | BL49: ms | BN49: Higher Timer | BO49: =IF(BO45<BN39,0.01,IF(BO45<BN40,0.1,IF(BO45<BN41,1,IF(BO45<BN42,10,100)))) -> 0.1 | BP49: ms | BR49: Higher Timer | BS49: =IF(BS45<BR39,0.01,IF(BS45<BR40,0.1,IF(BS45<BR41,1,IF(BS45<BR42,10,100)))) -> 0.1 | BT49: ms | BV49: Higher Timer | BW49: =IF(BW45<BV39,0.01,IF(BW45<BV40,0.1,IF(BW45<BV41,1,IF(BW45<BV42,10,100)))) -> 0.1 | BX49: ms
B50: Higher Current | C50: =LOOKUP(C49,B39:B43,C39:C43) -> 35 | D50: A | F50: Higher Current | G50: =LOOKUP(G49,F39:F43,G39:G43) -> 285.7142857 | H50: A | J50: Higher Current | K50: =LOOKUP(K49,J39:J43,K39:K43) -> 285.7142857 | L50: A | N50: Higher Current | O50: =LOOKUP(O49,N39:N43,O39:O43) -> 171.3000074 | P50: A | R50: Higher Current | S50: =LOOKUP(S49,R39:R43,S39:S43) -> 380.952381 | T50: A | V50: Higher Current | W50: =LOOKUP(W49,V39:V43,W39:W43) -> 239.047619 | X50: A | Z50: Higher Current | AA50: =LOOKUP(AA49,Z39:Z43,AA39:AA43) -> 40.45032027 | AB50: A | AD50: Higher Current | AE50: =LOOKUP(AE49,AD39:AD43,AE39:AE43) -> 156.4304172 | AF50: A | AH50: Higher Current | AI50: =LOOKUP(AI49,AH39:AH43,AI39:AI43) -> 151.8384154 | AJ50: A | AL50: Higher Current | AM50: =LOOKUP(AM49,AL39:AL43,AM39:AM43) -> 39.61286298 | AN50: A | AP50: Higher Current | AQ50: =LOOKUP(AQ49,AP39:AP43,AQ39:AQ43) -> 94.93708852 | AR50: A | AT50: Higher Current | AU50: =LOOKUP(AU49,AT39:AT43,AU39:AU43) -> 36.54171601 | AV50: A | AX50: Higher Current | AY50: =LOOKUP(AY49,AX39:AX43,AY39:AY43) -> 25.64211323 | AZ50: A | BB50: Higher Current | BC50: =LOOKUP(BC49,BB39:BB43,BC39:BC43) -> 17.85714286 | BD50: A | BF50: Higher Current | BG50: =LOOKUP(BG49,BF39:BF43,BG39:BG43) -> 29.8972212 | BH50: A | BJ50: Higher Current | BK50: =LOOKUP(BK49,BJ39:BJ43,BK39:BK43) -> 27.08286627 | BL50: A | BN50: Higher Current | BO50: =LOOKUP(BO49,BN39:BN43,BO39:BO43) -> 33.45538821 | BP50: A | BR50: Higher Current | BS50: =LOOKUP(BS49,BR39:BR43,BS39:BS43) -> 42.54066251 | BT50: A | BV50: Higher Current | BW50: =LOOKUP(BW49,BV39:BV43,BW39:BW43) -> 12.87009258 | BX50: A
B52: a | C52: =C48/C47^C53 -> 5.104166667 | F52: a | G52: =G48/G47^G53 -> 204.0816327 | J52: a | K52: =K48/K47^K53 -> 204.0816327 | N52: a | O52: =O48/O47^O53 -> 73.35923133 | R52: a | S52: =S48/S47^S53 -> 362.8117914 | V52: a | W52: =W48/W47^W53 -> 142.8594104 | Z52: a | AA52: =AA48/AA47^AA53 -> 10.08730279 | AD52: a | AE52: =AE48/AE47^AE53 -> 61.17618857 | AH52: a | AI52: =AI48/AI47^AI53 -> 57.63726099 | AL52: a | AM52: =AM48/AM47^AM53 -> 9.520064196 | AP52: a | AQ52: =AQ48/AQ47^AQ53 -> 22.53262694 | AT52: a | AU52: =AU48/AU47^AU53 -> 9.100942023 | AX52: a | AY52: =AY48/AY47^AY53 -> 5.355794447 | BB52: a | BC52: =BC48/BC47^BC53 -> 2.39537804 | BF52: a | BG52: =BG48/BG47^BG53 -> 8.163253239 | BJ52: a | BK52: =BK48/BK47^BK53 -> 4.971419437 | BN52: a | BO52: =BO48/BO47^BO53 -> 4.740806387 | BR52: a | BS52: =BS48/BS47^BS53 -> 11.6006921 | BV52: a | BW52: =BW48/BW47^BW53 -> 2.777423049
B53: m | C53: =IF(C49=C47,0.00000000000001,LOG(C48/C50)/LOG(C47/C49)) -> -0.8361431974 | F53: m | G53: =IF(G49=G47,0.00000000000001,LOG(G48/G50)/LOG(G47/G49)) -> -0.1461280357 | J53: m | K53: =IF(K49=K47,0.00000000000001,LOG(K48/K50)/LOG(K47/K49)) -> -0.1461280357 | N53: m | O53: =IF(O49=O47,0.00000000000001,LOG(O48/O50)/LOG(O47/O49)) -> -0.3683026096 | R53: m | S53: =IF(S49=S47,0.00000000000001,LOG(S48/S50)/LOG(S47/S49)) -> -0.02118929907 | V53: m | W53: =IF(W49=W47,0.00000000000001,LOG(W48/W50)/LOG(W47/W49)) -> -0.2235755689 | Z53: m | AA53: =IF(AA49=AA47,0.00000000000001,LOG(AA48/AA50)/LOG(AA47/AA49)) -> -0.6031469072 | AD53: m | AE53: =IF(AE49=AE47,0.00000000000001,LOG(AE48/AE50)/LOG(AE47/AE49)) -> -0.4077387877 | AH53: m | AI53: =IF(AI49=AI47,0.00000000000001,LOG(AI48/AI50)/LOG(AI47/AI49)) -> -0.4206783285 | AL53: m | AM53: =IF(AM49=AM47,0.00000000000001,LOG(AM48/AM50)/LOG(AM47/AM49)) -> -0.6191963549 | AP53: m | AQ53: =IF(AQ49=AQ47,0.00000000000001,LOG(AQ48/AQ50)/LOG(AQ47/AQ49)) -> -0.6246240824 | AT53: m | AU53: =IF(AU49=AU47,0.00000000000001,LOG(AU48/AU50)/LOG(AU47/AU49)) -> -0.6037025904 | AX53: m | AY53: =IF(AY49=AY47,0.00000000000001,LOG(AY48/AY50)/LOG(AY47/AY49)) -> -0.6801299131 | BB53: m | BC53: =IF(BC49=BC47,0.00000000000001,LOG(BC48/BC50)/LOG(BC47/BC49)) -> -0.8724379092 | BF53: m | BG53: =IF(BG49=BG47,0.00000000000001,LOG(BG48/BG50)/LOG(BG47/BG49)) -> -0.5637675554 | BJ53: m | BK53: =IF(BK49=BK47,0.00000000000001,LOG(BK48/BK50)/LOG(BK47/BK49)) -> -0.7362142194 | BN53: m | BO53: =IF(BO49=BO47,0.00000000000001,LOG(BO48/BO50)/LOG(BO47/BO49)) -> -0.8486138544 | BR53: m | BS53: =IF(BS49=BS47,0.00000000000001,LOG(BS48/BS50)/LOG(BS47/BS49)) -> -0.5643203492 | BV53: m | BW53: =IF(BW49=BW47,0.00000000000001,LOG(BW48/BW50)/LOG(BW47/BW49)) -> -0.6659396357
B55: Current | C55: =C52*C45^C53 -> 35.00292677 | D55: A | F55: Current | G55: =G52*G45^G53 -> 285.718461 | H55: A | J55: Current | K55: =K52*K45^K53 -> 285.718461 | L55: A | N55: Current | O55: =O52*O45^O53 -> 171.3063169 | P55: A | R55: Current | S55: =S52*S45^S53 -> 380.9531882 | T55: A | V55: Current | W55: =W52*W45^W53 -> 239.0529639 | X55: A | Z55: Current | AA55: =AA52*AA45^AA53 -> 40.45276021 | AB55: A | AD55: Current | AE55: =AE52*AE45^AE53 -> 156.4367959 | AF55: A | AH55: Current | AI55: =AI52*AI45^AI53 -> 151.8448034 | AJ55: A | AL55: Current | AM55: =AM52*AM45^AM53 -> 39.615316 | AN55: A | AP55: Current | AQ55: =AQ52*AQ45^AQ53 -> 94.943019 | AR55: A | AT55: Current | AU55: =AU52*AU45^AU53 -> 36.54392222 | AV55: A | AX55: Current | AY55: =AY52*AY45^AY53 -> 25.64385738 | AZ55: A | BB55: Current | BC55: =BC52*BC45^BC53 -> 17.85870093 | BD55: A | BF55: Current | BG55: =BG52*BG45^BG53 -> 29.89890685 | BH55: A | BJ55: Current | BK55: =BK52*BK45^BK53 -> 27.08486032 | BL55: A | BN55: Current | BO55: =BO52*BO45^BO53 -> 33.45822754 | BP55: A | BR55: Current | BS55: =BS52*BS45^BS53 -> 42.54306336 | BT55: A | BV55: Current | BW55: =BW52*BW45^BW53 -> 12.87094972 | BX55: A
B56: Power | C56: =C55*VINMAX -> 882.0737546 | D56: W | F56: Power | G56: =G55*VINMAX -> 7200.105218 | H56: W | J56: Power | K56: =K55*VINMAX -> 7200.105218 | L56: W | N56: Power | O56: =O55*VINMAX -> 4316.919185 | P56: W | R56: Power | S56: =S55*VINMAX -> 9600.020343 | T56: W | V56: Power | W56: =W55*VINMAX -> 6024.13469 | X56: W | Z56: Power | AA56: =AA55*VINMAX -> 1019.409557 | AB56: W | AD56: Power | AE56: =AE55*VINMAX -> 3942.207257 | AF56: W | AH56: Power | AI56: =AI55*VINMAX -> 3826.489045 | AJ56: W | AL56: Power | AM56: =AM55*VINMAX -> 998.3059631 | AN56: W | AP56: Power | AQ56: =AQ55*VINMAX -> 2392.564079 | AR56: W | AT56: Power | AU56: =AU55*VINMAX -> 920.90684 | AV56: W | AX56: Power | AY56: =AY55*VINMAX -> 646.2252059 | AZ56: W | BB56: Power | BC56: =BC55*VINMAX -> 450.0392634 | BD56: W | BF56: Power | BG56: =BG55*VINMAX -> 753.4524525 | BH56: W | BJ56: Power | BK56: =BK55*VINMAX -> 682.5384802 | BL56: W | BN56: Power | BO56: =BO55*VINMAX -> 843.147334 | BP56: W | BR56: Power | BS56: =BS55*VINMAX -> 1072.085197 | BT56: W | BV56: Power | BW56: =BW55*VINMAX -> 324.347933 | BX56: W
B58: Derating Factor | C58: =(C6-C34)/(C6-25) -> 0.5375 | F58: Derating Factor | G58: =(G6-G34)/(G6-25) -> 0.53 | J58: Derating Factor | K58: =(K6-K34)/(K6-25) -> 0.5125 | N58: Derating Factor | O58: =(O6-O34)/(O6-25) -> 0.502375 | R58: Derating Factor | S58: =(S6-S34)/(S6-25) -> 0.5536805556 | V58: Derating Factor | W58: =(W6-W34)/(W6-25) -> 0.5371388889 | Z58: Derating Factor | AA58: =(AA6-AA34)/(AA6-25) -> 0.4352 | AD58: Derating Factor | AE58: =(AE6-AE34)/(AE6-25) -> 0.4316 | AH58: Derating Factor | AI58: =(AI6-AI34)/(AI6-25) -> 0.5183333333 | AL58: Derating Factor | AM58: =(AM6-AM34)/(AM6-25) -> 0.4188666667 | AP58: Derating Factor | AQ58: =(AQ6-AQ34)/(AQ6-25) -> 0.5136666667 | AT58: Derating Factor | AU58: =(AU6-AU34)/(AU6-25) -> 0.4042333333 | AX58: Derating Factor | AY58: =(AY6-AY34)/(AY6-25) -> 0.43703125 | BB58: Derating Factor | BC58: =(BC6-BC34)/(BC6-25) -> 0.524203125 | BF58: Derating Factor | BG58: =(BG6-BG34)/(BG6-25) -> 0.42055 | BJ58: Derating Factor | BK58: =(BK6-BK34)/(BK6-25) -> 0.52732 | BN58: Derating Factor | BO58: =(BO6-BO34)/(BO6-25) -> 0.4318 | BR58: Derating Factor | BS58: =(BS6-BS34)/(BS6-25) -> 0.433276 | BV58: Derating Factor | BW58: =(BW6-BW34)/(BW6-25) -> 0.4344166667
B59: Power at Hot-Short | C59: =C58*C56 -> 474.1146431 | D59: W | F59: Power at Hot-Short | G59: =G58*G56 -> 3816.055766 | H59: W | J59: Power at Hot-Short | K59: =K58*K56 -> 3690.053924 | L59: W | N59: Power at Hot-Short | O59: =O58*O56 -> 2168.712275 | P59: W | R59: Power at Hot-Short | S59: =S58*S56 -> 5315.344597 | T59: W | V59: Power at Hot-Short | W59: =W58*W56 -> 3235.797014 | X59: W | Z59: Power at Hot-Short | AA59: =AA58*AA56 -> 443.6470394 | AB59: W | AD59: Power at Hot-Short | AE59: =AE58*AE56 -> 1701.456652 | AF59: W | AH59: Power at Hot-Short | AI59: =AI58*AI56 -> 1983.396822 | AJ59: W | AL59: Power at Hot-Short | AM59: =AM58*AM56 -> 418.1570911 | AN59: W | AP59: Power at Hot-Short | AQ59: =AQ58*AQ56 -> 1228.980415 | AR59: W | AT59: Power at Hot-Short | AU59: =AU58*AU56 -> 372.2612416 | AV59: W | AX59: Power at Hot-Short | AY59: =AY58*AY56 -> 282.4206095 | AZ59: W | BB59: Power at Hot-Short | BC59: =BC58*BC56 -> 235.9119882 | BD59: W | BF59: Power at Hot-Short | BG59: =BG58*BG56 -> 316.8644289 | BH59: W | BJ59: Power at Hot-Short | BK59: =BK58*BK56 -> 359.9161914 | BL59: W | BN59: Power at Hot-Short | BO59: =BO58*BO56 -> 364.0710188 | BP59: W | BR59: Power at Hot-Short | BS59: =BS58*BS56 -> 464.5087856 | BT59: W | BV59: Power at Hot-Short | BW59: =BW58*BW56 -> 140.9021479 | BX59: W
B61: Margin | C61: =C59/'Design Calculator'!F52 -> 2.693833199 | F61: Margin | G61: =G59/'Design Calculator'!F52 -> 21.68213503 | J61: Margin | K61: =K59/'Design Calculator'!F52 -> 20.96621548 | N61: Margin | O61: =O59/'Design Calculator'!F52 -> 12.32222884 | R61: Margin | S61: =S59/'Design Calculator'!F52 -> 30.20082157 | V61: Margin | W61: =W59/'Design Calculator'!F52 -> 18.38521031 | Z61: Margin | AA61: =AA59/'Design Calculator'!F52 -> 2.520721815 | AD61: Margin | AE61: =AE59/'Design Calculator'!F52 -> 9.667367343 | AH61: Margin | AI61: =AI59/'Design Calculator'!F52 -> 11.26930012 | AL61: Margin | AM61: =AM59/'Design Calculator'!F52 -> 2.375892563 | AP61: Margin | AQ61: =AQ59/'Design Calculator'!F52 -> 6.982843268 | AT61: Margin | AU61: =AU59/'Design Calculator'!F52 -> 2.115120691 | AX61: Margin | AY61: =AY59/'Design Calculator'!F52 -> 1.604662554 | BB61: Margin | BC61: =BC59/'Design Calculator'!F52 -> 1.340409024 | BF61: Margin | BG61: =BG59/'Design Calculator'!F52 -> 1.800366073 | BJ61: Margin | BK61: =BK59/'Design Calculator'!F52 -> 2.04497836 | BN61: Margin | BO61: =BO59/'Design Calculator'!F52 -> 2.068585334 | BR61: Margin | BS61: =BS59/'Design Calculator'!F52 -> 2.639254464 | BV61: Margin | BW61: =BW59/'Design Calculator'!F52 -> 0.8005803858
B63: Selected FET | C63: =IF(C61>1.3,1,0) -> 1 | F63: Selected FET | G63: =IF(G61>1.3,1,0) -> 1 | J63: Selected FET | K63: =IF(K61>1.3,1,0) -> 1 | N63: Selected FET | O63: =IF(O61>1.3,1,0) -> 1 | R63: Selected FET | S63: =IF(S61>1.3,1,0) -> 1 | V63: Selected FET | W63: =IF(W61>1.3,1,0) -> 1 | Z63: Selected FET | AA63: =IF(AA61>1.3,1,0) -> 1 | AD63: Selected FET | AE63: =IF(AE61>1.3,1,0) -> 1 | AH63: Selected FET | AI63: =IF(AI61>1.3,1,0) -> 1 | AL63: Selected FET | AM63: =IF(AM61>1.3,1,0) -> 1 | AP63: Selected FET | AQ63: =IF(AQ61>1.3,1,0) -> 1 | AT63: Selected FET | AU63: =IF(AU61>1.3,1,0) -> 1 | AX63: Selected FET | AY63: =IF(AY61>1.3,1,0) -> 1 | BB63: Selected FET | BC63: =IF(BC61>1.3,1,0) -> 1 | BF63: Selected FET | BG63: =IF(BG61>1.3,1,0) -> 1 | BJ63: Selected FET | BK63: =IF(BK61>1.3,1,0) -> 1 | BN63: Selected FET | BO63: =IF(BO61>1.3,1,0) -> 1 | BR63: Selected FET | BS63: =IF(BS61>1.3,1,0) -> 1 | BV63: Selected FET | BW63: =IF(BW61>1.3,1,0) -> 0
C64: =COLUMN() -> 3 | G64: =COLUMN() -> 7 | K64: =COLUMN() -> 11 | O64: =COLUMN() -> 15 | S64: =COLUMN() -> 19 | W64: =COLUMN() -> 23 | AA64: =COLUMN() -> 27 | AE64: =COLUMN() -> 31 | AI64: =COLUMN() -> 35 | AM64: =COLUMN() -> 39 | AQ64: =COLUMN() -> 43 | AU64: =COLUMN() -> 47 | AY64: =COLUMN() -> 51 | BC64: =COLUMN() -> 55 | BG64: =COLUMN() -> 59 | BK64: =COLUMN() -> 63 | BO64: =COLUMN() -> 67 | BS64: =COLUMN() -> 71 | BW64: =COLUMN() -> 75
B67: FET1 | C67: =LEFT('Design Calculator'!F54,FIND(" ",'Design Calculator'!F54)-1) -> CSD19506KTT | F67: FET2 | G67: =LEFT('Design Calculator'!G54,FIND(" ",'Design Calculator'!G54)-1) -> CSD19505KTT | J67: FET3 | K67: =B4 -> NON-TI MOSFET
B68: Column Number | C68: =MATCH(SFET24_1,B4:BV4,0)+2 -> 19 | F68: Column Number | G68: =MATCH(SFET24_2,B4:BV4,0)+2 -> 23 | J68: Column Number | K68: =COLUMN(C:C) -> 3
B70: 0.01 | C70: =INDIRECT(ADDRESS(39,C68)) -> 400 | D70: A | F70: 0.01 | G70: =INDIRECT(ADDRESS(39,G68)) -> 400 | H70: A | J70: 0.01 | K70: =INDIRECT(ADDRESS(39,K68)) -> 240 | L70: A
B71: 0.1 | C71: =INDIRECT(ADDRESS(40,C68)) -> 380.952381 | D71: A | F71: 0.1 | G71: =INDIRECT(ADDRESS(40,G68)) -> 239.047619 | H71: A | J71: 0.1 | K71: =INDIRECT(ADDRESS(40,K68)) -> 35 | L71: A
B72: 1 | C72: =INDIRECT(ADDRESS(41,C68)) -> 38.09174527 | D72: A | F72: 1 | G72: =INDIRECT(ADDRESS(41,G68)) -> 24.3892504 | H72: A | J72: 1 | K72: =INDIRECT(ADDRESS(41,K68)) -> 3 | L72: A
B73: 10 | C73: =INDIRECT(ADDRESS(42,C68)) -> 12.90557631 | D73: A | F73: 10 | G73: =INDIRECT(ADDRESS(42,G68)) -> 7.35034721 | H73: A | J73: 10 | K73: =INDIRECT(ADDRESS(42,K68)) -> 2 | L73: A
B74: 100 | C74: =INDIRECT(ADDRESS(43,C68)) -> 6.656716701 | D74: A | F74: 100 | G74: =INDIRECT(ADDRESS(43,G68)) -> 4.505114358 | H74: A | J74: 100 | K74: =INDIRECT(ADDRESS(43,K68)) -> 0.1 | L74: A
B76: MOSFET Power Dissipation | C76: =INDIRECT(ADDRESS(33,C68)) -> 0.2315972222 | D76: W | F76: MOSFET Power Dissipation | G76: =INDIRECT(ADDRESS(33,G68)) -> 0.3143055556 | H76: W | J76: MOSFET Power Dissipation | K76: =INDIRECT(ADDRESS(33,K68)) -> 0.3125 | L76: W
B77: Number of FETs | C77: =INDIRECT(ADDRESS(32,C68)) -> 3 | F77: Number of FETs | G77: =INDIRECT(ADDRESS(32,G68)) -> 3 | J77: Number of FETs | K77: =INDIRECT(ADDRESS(32,K68)) -> 2
B78: Junction Temperature | C78: =INDIRECT(ADDRESS(34,C68)) -> 91.94791667 | D78: °C | F78: Junction Temperature | G78: =INDIRECT(ADDRESS(34,G68)) -> 94.42916667 | H78: °C | J78: Junction Temperature | K78: =INDIRECT(ADDRESS(34,K68)) -> 94.375 | L78: °C
B79: Maximum Junction Temperature | C79: =INDIRECT(ADDRESS(6,C68)) -> 175 | D79: °C | F79: Maximum Junction Temperature | G79: =INDIRECT(ADDRESS(6,G68)) -> 175 | H79: °C | J79: Maximum Junction Temperature | K79: =INDIRECT(ADDRESS(6,K68)) -> 175 | L79: °C
B80: On resistance at Junction temp | C80: =INDIRECT(ADDRESS(7,C68))*INDIRECT(ADDRESS(29,C68)) -> 3.335 | D80: mΩ | F80: On resistance at Junction temp | G80: =INDIRECT(ADDRESS(7,G68))*INDIRECT(ADDRESS(29,G68)) -> 4.526 | H80: mΩ | J80: On resistance at Junction temp | K80: =INDIRECT(ADDRESS(7,K68)) -> 2 | L80: mΩ
B81: Margin | C81: =INDIRECT(ADDRESS(61,C68)) -> 30.20082157 | F81: Margin | G81: =INDIRECT(ADDRESS(61,G68)) -> 18.38521031 | J81: Margin | K81: =INDIRECT(ADDRESS(61,K68)) -> 2.693833199
B82: webpage link | C82: =HYPERLINK(INDIRECT(ADDRESS(5,C68))) -> https://www.ti.com/product/CSD19506KTT | F82: webpage link | G82: =HYPERLINK(INDIRECT(ADDRESS(5,G68))) -> https://www.ti.com/product/CSD19505KTT | J82: webpage link | K82: =INDIRECT(ADDRESS(5,K68)) -> Enter webpage link
B83: datasheet link | C83: =HYPERLINK(INDIRECT(ADDRESS(30,C68))) -> https://www.ti.com/lit/gpn/csd19506ktt | F83: datasheet link | G83: =HYPERLINK(INDIRECT(ADDRESS(30,G68))) -> https://www.ti.com/lit/gpn/csd19505ktt | J83: datasheet link | K83: =INDIRECT(ADDRESS(30,K68)) -> Not Applicable
B84: cost 1k USD | C84: =INDIRECT(ADDRESS(35,C68)) -> 1.972 | D84: $ | F84: cost 1k USD | G84: =INDIRECT(ADDRESS(35,G68)) -> 1.313 | H84: $ | J84: cost 1k USD | K84: =INDIRECT(ADDRESS(35,K68)) -> Enter cost details | L84: $

Sheet MOSFET Database 48V (hidden)
B4: CSD19536KTT | C4: 1 | F4: CSD19535KTT | G4: 2 | J4: CSD19532Q5B | K4: 3 | N4: CSD19532KTT | O4: 4 | R4: CSD19531Q5A | S4: 5 | V4: CSD19533Q5A | W4: 6 | Z4: CSD19537Q3 | AA4: 7 | AD4: CSD19534Q5A | AE4: 8 | AH4: CSD19538Q2 | AI4: 9 | AL4: CSD19538Q3A | AM4: 10
B5: Webpage | C5: https://www.ti.com/product/CSD19536KTT | F5: Webpage | G5: https://www.ti.com/product/CSD19535KTT | J5: Webpage | K5: https://www.ti.com/product/CSD19532Q5B | N5: Webpage | O5: https://www.ti.com/product/CSD19532KTT | R5: Webpage | S5: https://www.ti.com/product/CSD19531Q5A | V5: Webpage | W5: https://www.ti.com/product/CSD19533Q5A | Z5: Webpage | AA5: https://www.ti.com/product/CSD19537Q3 | AD5: Webpage | AE5: https://www.ti.com/product/CSD19534Q5A | AH5: Webpage | AI5: https://www.ti.com/product/CSD19538Q2 | AL5: Webpage | AM5: https://www.ti.com/product/CSD19538Q3A
B6: Maximum Junction Temperature | C6: 175 | D6: °C | F6: Maximum Junction Temperature | G6: 175 | H6: °C | J6: Maximum Junction Temperature | K6: 150 | L6: °C | N6: Maximum Junction Temperature | O6: 175 | P6: °C | R6: Maximum Junction Temperature | S6: 150 | T6: °C | V6: Maximum Junction Temperature | W6: 150 | X6: °C | Z6: Maximum Junction Temperature | AA6: 150 | AB6: °C | AD6: Maximum Junction Temperature | AE6: 150 | AF6: °C | AH6: Maximum Junction Temperature | AI6: 150 | AJ6: °C | AL6: Maximum Junction Temperature | AM6: 150 | AN6: °C
B7: Maximum Rds(on) | C7: 2.4 | D7: mΩ | F7: Maximum Rds(on) | G7: 3.4 | H7: mΩ | J7: Maximum Rds(on) | K7: 4.9 | L7: mΩ | N7: Maximum Rds(on) | O7: 5.6 | P7: mΩ | R7: Maximum Rds(on) | S7: 6.4 | T7: mΩ | V7: Maximum Rds(on) | W7: 9.4 | X7: mΩ | Z7: Maximum Rds(on) | AA7: 14.5 | AB7: mΩ | AD7: Maximum Rds(on) | AE7: 15.1 | AF7: mΩ | AH7: Maximum Rds(on) | AI7: 59 | AJ7: mΩ | AL7: Maximum Rds(on) | AM7: 59 | AN7: mΩ
B9: Rds(on) vs Temperature | F9: Rds(on) vs Temperature | J9: Rds(on) vs Temperature | N9: Rds(on) vs Temperature | R9: Rds(on) vs Temperature | V9: Rds(on) vs Temperature | Z9: Rds(on) vs Temperature | AD9: Rds(on) vs Temperature | AH9: Rds(on) vs Temperature | AL9: Rds(on) vs Temperature
B11: 70 | C11: 1.25 | F11: 70 | G11: 1.33 | J11: 70 | K11: 1.33 | N11: 70 | O11: 1.33 | R11: 70 | S11: 1.31 | V11: 70 | W11: 1.34 | Z11: 70 | AA11: 1.34 | AD11: 70 | AE11: 1.3 | AH11: 70 | AI11: 1.32 | AL11: 70 | AM11: 1.28
B12: 75 | C12: 1.28 | F12: 75 | G12: 1.37 | J12: 75 | K12: 1.37 | N12: 75 | O12: 1.37 | R12: 75 | S12: 1.35 | V12: 75 | W12: 1.38 | Z12: 75 | AA12: 1.38 | AD12: 75 | AE12: 1.34 | AH12: 75 | AI12: 1.36 | AL12: 75 | AM12: 1.32
B13: 80 | C13: 1.31 | F13: 80 | G13: 1.41 | J13: 80 | K13: 1.41 | N13: 80 | O13: 1.42 | R13: 80 | S13: 1.39 | V13: 80 | W13: 1.42 | Z13: 80 | AA13: 1.43 | AD13: 80 | AE13: 1.38 | AH13: 80 | AI13: 1.4 | AL13: 80 | AM13: 1.35
B14: 85 | C14: 1.35 | F14: 85 | G14: 1.45 | J14: 85 | K14: 1.46 | N14: 85 | O14: 1.46 | R14: 85 | S14: 1.43 | V14: 85 | W14: 1.46 | Z14: 85 | AA14: 1.47 | AD14: 85 | AE14: 1.41 | AH14: 85 | AI14: 1.45 | AL14: 85 | AM14: 1.39
B15: 90 | C15: 1.38 | F15: 90 | G15: 1.49 | J15: 90 | K15: 1.5 | N15: 90 | O15: 1.51 | R15: 90 | S15: 1.47 | V15: 90 | W15: 1.51 | Z15: 90 | AA15: 1.52 | AD15: 90 | AE15: 1.45 | AH15: 90 | AI15: 1.49 | AL15: 90 | AM15: 1.42
B16: 95 | C16: 1.41 | F16: 95 | G16: 1.54 | J16: 95 | K16: 1.55 | N16: 95 | O16: 1.55 | R16: 95 | S16: 1.52 | V16: 95 | W16: 1.56 | Z16: 95 | AA16: 1.56 | AD16: 95 | AE16: 1.49 | AH16: 95 | AI16: 1.53 | AL16: 95 | AM16: 1.46
B17: 100 | C17: 1.44 | F17: 100 | G17: 1.58 | J17: 100 | K17: 1.59 | N17: 100 | O17: 1.6 | R17: 100 | S17: 1.56 | V17: 100 | W17: 1.6 | Z17: 100 | AA17: 1.61 | AD17: 100 | AE17: 1.53 | AH17: 100 | AI17: 1.58 | AL17: 100 | AM17: 1.5
B18: 105 | C18: 1.48 | F18: 105 | G18: 1.63 | J18: 105 | K18: 1.64 | N18: 105 | O18: 1.64 | R18: 105 | S18: 1.61 | V18: 105 | W18: 1.65 | Z18: 105 | AA18: 1.66 | AD18: 105 | AE18: 1.57 | AH18: 105 | AI18: 1.63 | AL18: 105 | AM18: 1.53
B19: 110 | C19: 1.51 | F19: 110 | G19: 1.68 | J19: 110 | K19: 1.69 | N19: 110 | O19: 1.69 | R19: 110 | S19: 1.65 | V19: 110 | W19: 1.7 | Z19: 110 | AA19: 1.71 | AD19: 110 | AE19: 1.6 | AH19: 110 | AI19: 1.67 | AL19: 110 | AM19: 1.57
B20: 115 | C20: 1.55 | F20: 115 | G20: 1.73 | J20: 115 | K20: 1.74 | N20: 115 | O20: 1.74 | R20: 115 | S20: 1.7 | V20: 115 | W20: 1.75 | Z20: 115 | AA20: 1.76 | AD20: 115 | AE20: 1.64 | AH20: 115 | AI20: 1.72 | AL20: 115 | AM20: 1.61
B21: 120 | C21: 1.58 | F21: 120 | G21: 1.78 | J21: 120 | K21: 1.79 | N21: 120 | O21: 1.79 | R21: 120 | S21: 1.75 | V21: 120 | W21: 1.8 | Z21: 120 | AA21: 1.81 | AD21: 120 | AE21: 1.68 | AH21: 120 | AI21: 1.77 | AL21: 120 | AM21: 1.65
B22: 125 | C22: 1.62 | F22: 125 | G22: 1.83 | J22: 125 | K22: 1.84 | N22: 125 | O22: 1.84 | R22: 125 | S22: 1.8 | V22: 125 | W22: 1.85 | Z22: 125 | AA22: 1.86 | AD22: 125 | AE22: 1.73 | AH22: 125 | AI22: 1.82 | AL22: 125 | AM22: 1.69
B23: 130 | C23: 1.65 | F23: 130 | G23: 1.88 | J23: 130 | K23: 1.89 | N23: 130 | O23: 1.9 | R23: 130 | S23: 1.85 | V23: 130 | W23: 1.91 | Z23: 130 | AA23: 1.91 | AD23: 130 | AE23: 1.77 | AH23: 130 | AI23: 1.87 | AL23: 130 | AM23: 1.73
B25: Maximum Load Current | C25: =IOUTMAX -> 25 | D25: A | F25: Maximum Load Current | G25: =IOUTMAX -> 25 | H25: A | J25: Maximum Load Current | K25: =IOUTMAX -> 25 | L25: A | N25: Maximum Load Current | O25: =IOUTMAX -> 25 | P25: A | R25: Maximum Load Current | S25: =IOUTMAX -> 25 | T25: A | V25: Maximum Load Current | W25: =IOUTMAX -> 25 | X25: A | Z25: Maximum Load Current | AA25: =IOUTMAX -> 25 | AB25: A | AD25: Maximum Load Current | AE25: =IOUTMAX -> 25 | AF25: A | AH25: Maximum Load Current | AI25: =IOUTMAX -> 25 | AJ25: A | AL25: Maximum Load Current | AM25: =IOUTMAX -> 25 | AN25: A
B26: Maximum Ambient Temperature | C26: =TAMB -> 85 | D26: °C | F26: Maximum Ambient Temperature | G26: =TAMB -> 85 | H26: °C | J26: Maximum Ambient Temperature | K26: =TAMB -> 85 | L26: °C | N26: Maximum Ambient Temperature | O26: =TAMB -> 85 | P26: °C | R26: Maximum Ambient Temperature | S26: =TAMB -> 85 | T26: °C | V26: Maximum Ambient Temperature | W26: =TAMB -> 85 | X26: °C | Z26: Maximum Ambient Temperature | AA26: =TAMB -> 85 | AB26: °C | AD26: Maximum Ambient Temperature | AE26: =TAMB -> 85 | AF26: °C | AH26: Maximum Ambient Temperature | AI26: =TAMB -> 85 | AJ26: °C | AL26: Maximum Ambient Temperature | AM26: =TAMB -> 85 | AN26: °C
B27: RQJA | C27: =ThetaJA -> 30 | D27: °C/W | F27: RQJA | G27: =ThetaJA -> 30 | H27: °C/W | J27: RQJA | K27: =ThetaJA -> 30 | L27: °C/W | N27: RQJA | O27: =ThetaJA -> 30 | P27: °C/W | R27: RQJA | S27: =ThetaJA -> 30 | T27: °C/W | V27: RQJA | W27: =ThetaJA -> 30 | X27: °C/W | Z27: RQJA | AA27: =ThetaJA -> 30 | AB27: °C/W | AD27: RQJA | AE27: =ThetaJA -> 30 | AF27: °C/W | AH27: RQJA | AI27: =ThetaJA -> 30 | AJ27: °C/W | AL27: RQJA | AM27: =ThetaJA -> 30 | AN27: °C/W
B28: Operation Temp required | C28: ='Design Calculator'!F25 -> 100 | D28: °C | F28: Operation Temp required | G28: ='Design Calculator'!F25 -> 100 | H28: °C | J28: Operation Temp required | K28: ='Design Calculator'!F25 -> 100 | L28: °C | N28: Operation Temp required | O28: ='Design Calculator'!F25 -> 100 | P28: °C | R28: Operation Temp required | S28: ='Design Calculator'!F25 -> 100 | T28: °C | V28: Operation Temp required | W28: ='Design Calculator'!F25 -> 100 | X28: °C | Z28: Operation Temp required | AA28: ='Design Calculator'!F25 -> 100 | AB28: °C | AD28: Operation Temp required | AE28: ='Design Calculator'!F25 -> 100 | AF28: °C | AH28: Operation Temp required | AI28: ='Design Calculator'!F25 -> 100 | AJ28: °C | AL28: Operation Temp required | AM28: ='Design Calculator'!F25 -> 100 | AN28: °C
C29: =LOOKUP(C28,B11:B23,C11:C23) -> 1.44 | G29: =LOOKUP(G28,F11:F23,G11:G23) -> 1.58 | K29: =LOOKUP(K28,J11:J23,K11:K23) -> 1.59 | O29: =LOOKUP(O28,N11:N23,O11:O23) -> 1.6 | S29: =LOOKUP(S28,R11:R23,S11:S23) -> 1.56 | W29: =LOOKUP(W28,V11:V23,W11:W23) -> 1.6 | AA29: =LOOKUP(AA28,Z11:Z23,AA11:AA23) -> 1.61 | AE29: =LOOKUP(AE28,AD11:AD23,AE11:AE23) -> 1.53 | AI29: =LOOKUP(AI28,AH11:AH23,AI11:AI23) -> 1.58 | AM29: =LOOKUP(AM28,AL11:AL23,AM11:AM23) -> 1.5
B30: datasheet | C30: https://www.ti.com/lit/gpn/csd19536ktt | F30: datasheet | G30: https://www.ti.com/lit/gpn/csd19535ktt | J30: datasheet | K30: https://www.ti.com/lit/gpn/csd19532q5b | N30: datasheet | O30: https://www.ti.com/lit/gpn/csd19532ktt | R30: datasheet | S30: https://www.ti.com/lit/gpn/csd19531q5a | V30: datasheet | W30: https://www.ti.com/lit/gpn/csd19533q5a | Z30: datasheet | AA30: https://www.ti.com/lit/gpn/csd19537q3 | AD30: datasheet | AE30: https://www.ti.com/lit/gpn/csd19534q5a | AH30: datasheet | AI30: https://www.ti.com/lit/gpn/csd19538q2 | AL30: datasheet | AM30: https://www.ti.com/lit/gpn/csd19538q3a
B31: Number of FETs | C31: =SQRT((C25*C25*C29*C7*C27)/(1000*(C28-C26))) -> 2.078460969 | F31: Number of FETs | G31: =SQRT((G25*G25*G29*G7*G27)/(1000*(G28-G26))) -> 2.591331704 | J31: Number of FETs | K31: =SQRT((K25*K25*K29*K7*K27)/(1000*(K28-K26))) -> 3.120697038 | N31: Number of FETs | O31: =SQRT((O25*O25*O29*O7*O27)/(1000*(O28-O26))) -> 3.346640106 | R31: Number of FETs | S31: =SQRT((S25*S25*S29*S7*S27)/(1000*(S28-S26))) -> 3.532704347 | V31: Number of FETs | W31: =SQRT((W25*W25*W29*W7*W27)/(1000*(W28-W26))) -> 4.335896678 | Z31: Number of FETs | AA31: =SQRT((AA25*AA25*AA29*AA7*AA27)/(1000*(AA28-AA26))) -> 5.401967234 | AD31: Number of FETs | AE31: =SQRT((AE25*AE25*AE29*AE7*AE27)/(1000*(AE28-AE26))) -> 5.373895235 | AH31: Number of FETs | AI31: =SQRT((AI25*AI25*AI29*AI7*AI27)/(1000*(AI28-AI26))) -> 10.79467461 | AL31: Number of FETs | AM31: =SQRT((AM25*AM25*AM29*AM7*AM27)/(1000*(AM28-AM26))) -> 10.51784198
B32: FET round-up | C32: =CEILING(C31,1) -> 3 | F32: FET round-up | G32: =CEILING(G31,1) -> 3 | J32: FET round-up | K32: =CEILING(K31,1) -> 4 | N32: FET round-up | O32: =CEILING(O31,1) -> 4 | R32: FET round-up | S32: =CEILING(S31,1) -> 4 | V32: FET round-up | W32: =CEILING(W31,1) -> 5 | Z32: FET round-up | AA32: =CEILING(AA31,1) -> 6 | AD32: FET round-up | AE32: =CEILING(AE31,1) -> 6 | AH32: FET round-up | AI32: =CEILING(AI31,1) -> 11 | AL32: FET round-up | AM32: =CEILING(AM31,1) -> 11
B33: FET power dissipation | C33: =C25*C25*C29*C7/(1000*C32*C32) -> 0.24 | D33: W | F33: FET power dissipation | G33: =G25*G25*G29*G7/(1000*G32*G32) -> 0.3730555556 | H33: W | J33: FET power dissipation | K33: =K25*K25*K29*K7/(1000*K32*K32) -> 0.3043359375 | L33: W | N33: FET power dissipation | O33: =O25*O25*O29*O7/(1000*O32*O32) -> 0.35 | P33: W | R33: FET power dissipation | S33: =S25*S25*S29*S7/(1000*S32*S32) -> 0.39 | T33: W | V33: FET power dissipation | W33: =W25*W25*W29*W7/(1000*W32*W32) -> 0.376 | X33: W | Z33: FET power dissipation | AA33: =AA25*AA25*AA29*AA7/(1000*AA32*AA32) -> 0.4052951389 | AB33: W | AD33: FET power dissipation | AE33: =AE25*AE25*AE29*AE7/(1000*AE32*AE32) -> 0.40109375 | AF33: W | AH33: FET power dissipation | AI33: =AI25*AI25*AI29*AI7/(1000*AI32*AI32) -> 0.4815082645 | AJ33: W | AL33: FET power dissipation | AM33: =AM25*AM25*AM29*AM7/(1000*AM32*AM32) -> 0.4571280992 | AN33: W
B34: Operating Temperature | C34: =C26+C33*C27 -> 92.2 | D34: °C | F34: Operating Temperature | G34: =G26+G33*G27 -> 96.19166667 | H34: °C | J34: Operating Temperature | K34: =K26+K33*K27 -> 94.13007812 | L34: °C | N34: Operating Temperature | O34: =O26+O33*O27 -> 95.5 | P34: °C | R34: Operating Temperature | S34: =S26+S33*S27 -> 96.7 | T34: °C | V34: Operating Temperature | W34: =W26+W33*W27 -> 96.28 | X34: °C | Z34: Operating Temperature | AA34: =AA26+AA33*AA27 -> 97.15885417 | AB34: °C | AD34: Operating Temperature | AE34: =AE26+AE33*AE27 -> 97.0328125 | AF34: °C | AH34: Operating Temperature | AI34: =AI26+AI33*AI27 -> 99.44524793 | AJ34: °C | AL34: Operating Temperature | AM34: =AM26+AM33*AM27 -> 98.71384298 | AN34: °C
B35: cost 1k USD | C35: 1.972 | F35: cost 1k USD | G35: 1.313 | J35: cost 1k USD | K35: 0.896 | N35: cost 1k USD | O35: 0.914 | R35: cost 1k USD | S35: 0.611 | V35: cost 1k USD | W35: 0.48 | Z35: cost 1k USD | AA35: 0.401 | AD35: cost 1k USD | AE35: 0.335 | AH35: cost 1k USD | AI35: 0.162 | AL35: cost 1k USD | AM35: 0.162
B38: Time(ms) | F38: Time(ms) | J38: Time(ms) | N38: Time(ms) | R38: Time(ms) | V38: Time(ms) | Z38: Time(ms) | AD38: Time(ms) | AH38: Time(ms) | AL38: Time(ms)
B39: 0.01 | C39: 400 | D39: A | F39: 0.01 | G39: 400 | H39: A | J39: 0.01 | K39: =30220*VINMAX^-1.615 -> 164.8286064 | L39: A | N39: 0.01 | O39: =17178*VINMAX^-1 -> 681.6666667 | P39: A | R39: 0.01 | S39: =52855*VINMAX^-1.635 -> 270.268974 | T39: A | V39: 0.01 | W39: =14788*VINMAX^-1.324 -> 206.2790516 | X39: A | Z39: 0.01 | AA39: =8327.2*VINMAX^-1 -> 330.4444444 | AB39: A | AD39: 0.01 | AE39: =11099*VINMAX^-1.441 -> 106.1367224 | AF39: A | AH39: 0.01 | AI39: 34.4 | AJ39: A | AL39: 0.01 | AM39: 37 | AN39: A
B40: 0.1 | C40: =81187*VINMAX^-1.57 -> 512.0208482 | D40: A | F40: 0.1 | G40: =21797*VINMAX^-1.499 -> 172.8611164 | H40: A | J40: 0.1 | K40: =7262.7*VINMAX^-1.615 -> 39.61286298 | L40: A | N40: 0.1 | O40: =89244.4*VINMAX^-1.866 -> 216.5546756 | P40: A | R40: 0.1 | S40: =10071*VINMAX^-1.635 -> 51.49709275 | T40: A | V40: 0.1 | W40: =2234.1*VINMAX^-1.324 -> 31.16364817 | X40: A | Z40: 0.1 | AA40: =6972.3*VINMAX^-1.544 -> 47.8204469 | AB40: A | AD40: 0.1 | AE40: =2301*VINMAX^-1.441 -> 22.00383803 | AF40: A | AH40: 0.1 | AI40: =6382.61*VINMAX^-1.811 -> 18.49532337 | AJ40: A | AL40: 0.1 | AM40: =7915.7*VINMAX^-1.854 -> 19.96607618 | AN40: A
B41: 1 | C41: =7406.1*VINMAX^-1.57 -> 46.70794098 | D41: A | F41: 1 | G41: =2910.8*VINMAX^-1.499 -> 23.08410046 | H41: A | J41: 1 | K41: =2213.6*VINMAX^-1.615 -> 12.0736136 | L41: A | N41: 1 | O41: =4961.45*VINMAX^-1.771 -> 16.35792683 | P41: A | R41: 1 | S41: =2529.8*VINMAX^-1.635 -> 12.93588971 | T41: A | V41: 1 | W41: =462.49*VINMAX^-1.324 -> 6.451311777 | X41: A | Z41: 1 | AA41: =780.45*VINMAX^-1.544 -> 5.352820129 | AB41: A | AD41: 1 | AE41: =620.07*VINMAX^-1.441 -> 5.929560993 | AF41: A | AH41: 1 | AI41: =297.466*VINMAX^-1.587 -> 1.775884331 | AJ41: A | AL41: 1 | AM41: =417.872*VINMAX^-1.615 -> 2.279194553 | AN41: A
B42: 10 | C42: =2304.5*VINMAX^-1.57 -> 14.53375596 | D42: A | F42: 10 | G42: =868.34*VINMAX^-1.499 -> 6.886370686 | H42: A | J42: 10 | K42: =822.43*VINMAX^-1.615 -> 4.485770706 | L42: A | N42: 10 | O42: =700.975*VINMAX^-1.653 -> 3.382107717 | P42: A | R42: 10 | S42: =800*VINMAX^-1.635 -> 4.090723285 | T42: A | V42: 10 | W42: =124.48*VINMAX^-1.324 -> 1.736381954 | X42: A | Z42: 10 | AA42: =294.05*VINMAX^-1.544 -> 2.016781035 | AB42: A | AD42: 10 | AE42: =207.91*VINMAX^-1.441 -> 1.98818686 | AF42: A | AH42: 10 | AI42: =58.33815*VINMAX^-1.39 -> 0.6576667736 | AJ42: A | AL42: 10 | AM42: =100.1*VINMAX^-1.471 -> 0.8689081725 | AN42: A
B43: 100 | C43: =1175.8*VINMAX^-1.57 -> 7.415400413 | D43: A | F43: 100 | G43: =509.52*VINMAX^-1.499 -> 4.040748545 | H43: A | J43: 100 | K43: =266.13*VINMAX^-1.615 -> 1.451549868 | L43: A | N43: 100 | O43: =284.092*VINMAX^-1.545 -> 1.942205451 | P43: A | R43: 100 | S43: =241.6*VINMAX^-1.635 -> 1.235398432 | T43: A | V43: 100 | W43: =75.006*VINMAX^-1.324 -> 1.046264981 | X43: A | Z43: 100 | AA43: =75.64*VINMAX^-1.312 -> 1.096766081 | AB43: A | AD43: 100 | AE43: =103.96*VINMAX^-1.441 -> 0.9941412435 | AF43: A | AH43: 100 | AI43: =15.90615*VINMAX^-1.222 -> 0.3083568587 | AJ43: A | AL43: 100 | AM43: =20.2878*VINMAX^-1.191 -> 0.43467725 | AN43: A
B45: Timer Duration | C45: =IF('Design Calculator'!F30="Soft Start",'Design Calculator'!F31-0.00001,'Design Calculator'!F79) -> 0.09999 | D45: ms | F45: Timer Duration | G45: =IF('Design Calculator'!F30="Soft Start",'Design Calculator'!F31-0.00001,'Design Calculator'!F79) -> 0.09999 | H45: ms | J45: Timer Duration | K45: =IF('Design Calculator'!F30="Soft Start",'Design Calculator'!F31-0.00001,'Design Calculator'!F79) -> 0.09999 | L45: ms | N45: Timer Duration | O45: =IF('Design Calculator'!F30="Soft Start",'Design Calculator'!F31-0.00001,'Design Calculator'!F79) -> 0.09999 | P45: ms | R45: Timer Duration | S45: =IF('Design Calculator'!F30="Soft Start",'Design Calculator'!F31-0.00001,'Design Calculator'!F79) -> 0.09999 | T45: ms | V45: Timer Duration | W45: =IF('Design Calculator'!F30="Soft Start",'Design Calculator'!F31-0.00001,'Design Calculator'!F79) -> 0.09999 | X45: ms | Z45: Timer Duration | AA45: =IF('Design Calculator'!F30="Soft Start",'Design Calculator'!F31-0.00001,'Design Calculator'!F79) -> 0.09999 | AB45: ms | AD45: Timer Duration | AE45: =IF('Design Calculator'!F30="Soft Start",'Design Calculator'!F31-0.00001,'Design Calculator'!F79) -> 0.09999 | AF45: ms | AH45: Timer Duration | AI45: =IF('Design Calculator'!F30="Soft Start",'Design Calculator'!F31-0.00001,'Design Calculator'!F79) -> 0.09999 | AJ45: ms | AL45: Timer Duration | AM45: =IF('Design Calculator'!F30="Soft Start",'Design Calculator'!F31-0.00001,'Design Calculator'!F79) -> 0.09999 | AN45: ms
B47: Lower time | C47: =IF(C45>B42,10,IF(C45>B41,1,IF(C45>B40,0.1,0.01))) -> 0.01 | D47: ms | F47: Lower time | G47: =IF(G45>F42,10,IF(G45>F41,1,IF(G45>F40,0.1,0.01))) -> 0.01 | H47: ms | J47: Lower time | K47: =IF(K45>J42,10,IF(K45>J41,1,IF(K45>J40,0.1,0.01))) -> 0.01 | L47: ms | N47: Lower time | O47: =IF(O45>N42,10,IF(O45>N41,1,IF(O45>N40,0.1,0.01))) -> 0.01 | P47: ms | R47: Lower time | S47: =IF(S45>R42,10,IF(S45>R41,1,IF(S45>R40,0.1,0.01))) -> 0.01 | T47: ms | V47: Lower time | W47: =IF(W45>V42,10,IF(W45>V41,1,IF(W45>V40,0.1,0.01))) -> 0.01 | X47: ms | Z47: Lower time | AA47: =IF(AA45>Z42,10,IF(AA45>Z41,1,IF(AA45>Z40,0.1,0.01))) -> 0.01 | AB47: ms | AD47: Lower time | AE47: =IF(AE45>AD42,10,IF(AE45>AD41,1,IF(AE45>AD40,0.1,0.01))) -> 0.01 | AF47: ms | AH47: Lower time | AI47: =IF(AI45>AH42,10,IF(AI45>AH41,1,IF(AI45>AH40,0.1,0.01))) -> 0.01 | AJ47: ms | AL47: Lower time | AM47: =IF(AM45>AL42,10,IF(AM45>AL41,1,IF(AM45>AL40,0.1,0.01))) -> 0.01 | AN47: ms
B48: Lower Current | C48: =LOOKUP(C47,B39:B43,C39:C43) -> 400 | D48: A | F48: Lower Current | G48: =LOOKUP(G47,F39:F43,G39:G43) -> 400 | H48: A | J48: Lower Current | K48: =LOOKUP(K47,J39:J43,K39:K43) -> 164.8286064 | L48: A | N48: Lower Current | O48: =LOOKUP(O47,N39:N43,O39:O43) -> 681.6666667 | P48: A | R48: Lower Current | S48: =LOOKUP(S47,R39:R43,S39:S43) -> 270.268974 | T48: A | V48: Lower Current | W48: =LOOKUP(W47,V39:V43,W39:W43) -> 206.2790516 | X48: A | Z48: Lower Current | AA48: =LOOKUP(AA47,Z39:Z43,AA39:AA43) -> 330.4444444 | AB48: A | AD48: Lower Current | AE48: =LOOKUP(AE47,AD39:AD43,AE39:AE43) -> 106.1367224 | AF48: A | AH48: Lower Current | AI48: =LOOKUP(AI47,AH39:AH43,AI39:AI43) -> 34.4 | AJ48: A | AL48: Lower Current | AM48: =LOOKUP(AM47,AL39:AL43,AM39:AM43) -> 37 | AN48: A
B49: Higher Timer | C49: =IF(C45<B39,0.01,IF(C45<B40,0.1,IF(C45<B41,1,IF(C45<B42,10,100)))) -> 0.1 | D49: ms | F49: Higher Timer | G49: =IF(G45<F39,0.01,IF(G45<F40,0.1,IF(G45<F41,1,IF(G45<F42,10,100)))) -> 0.1 | H49: ms | J49: Higher Timer | K49: =IF(K45<J39,0.01,IF(K45<J40,0.1,IF(K45<J41,1,IF(K45<J42,10,100)))) -> 0.1 | L49: ms | N49: Higher Timer | O49: =IF(O45<N39,0.01,IF(O45<N40,0.1,IF(O45<N41,1,IF(O45<N42,10,100)))) -> 0.1 | P49: ms | R49: Higher Timer | S49: =IF(S45<R39,0.01,IF(S45<R40,0.1,IF(S45<R41,1,IF(S45<R42,10,100)))) -> 0.1 | T49: ms | V49: Higher Timer | W49: =IF(W45<V39,0.01,IF(W45<V40,0.1,IF(W45<V41,1,IF(W45<V42,10,100)))) -> 0.1 | X49: ms | Z49: Higher Timer | AA49: =IF(AA45<Z39,0.01,IF(AA45<Z40,0.1,IF(AA45<Z41,1,IF(AA45<Z42,10,100)))) -> 0.1 | AB49: ms | AD49: Higher Timer | AE49: =IF(AE45<AD39,0.01,IF(AE45<AD40,0.1,IF(AE45<AD41,1,IF(AE45<AD42,10,100)))) -> 0.1 | AF49: ms | AH49: Higher Timer | AI49: =IF(AI45<AH39,0.01,IF(AI45<AH40,0.1,IF(AI45<AH41,1,IF(AI45<AH42,10,100)))) -> 0.1 | AJ49: ms | AL49: Higher Timer | AM49: =IF(AM45<AL39,0.01,IF(AM45<AL40,0.1,IF(AM45<AL41,1,IF(AM45<AL42,10,100)))) -> 0.1 | AN49: ms
B50: Higher Current | C50: =LOOKUP(C49,B39:B43,C39:C43) -> 512.0208482 | D50: A | F50: Higher Current | G50: =LOOKUP(G49,F39:F43,G39:G43) -> 172.8611164 | H50: A | J50: Higher Current | K50: =LOOKUP(K49,J39:J43,K39:K43) -> 39.61286298 | L50: A | N50: Higher Current | O50: =LOOKUP(O49,N39:N43,O39:O43) -> 216.5546756 | P50: A | R50: Higher Current | S50: =LOOKUP(S49,R39:R43,S39:S43) -> 51.49709275 | T50: A | V50: Higher Current | W50: =LOOKUP(W49,V39:V43,W39:W43) -> 31.16364817 | X50: A | Z50: Higher Current | AA50: =LOOKUP(AA49,Z39:Z43,AA39:AA43) -> 47.8204469 | AB50: A | AD50: Higher Current | AE50: =LOOKUP(AE49,AD39:AD43,AE39:AE43) -> 22.00383803 | AF50: A | AH50: Higher Current | AI50: =LOOKUP(AI49,AH39:AH43,AI39:AI43) -> 18.49532337 | AJ50: A | AL50: Higher Current | AM50: =LOOKUP(AM49,AL39:AL43,AM39:AM43) -> 19.96607618 | AN50: A
B52: a | C52: =C48/C47^C53 -> 655.4133726 | F52: a | G52: =G48/G47^G53 -> 74.70241393 | J52: a | K52: =K48/K47^K53 -> 9.520064196 | N52: a | O52: =O48/O47^O53 -> 68.79598171 | R52: a | S52: =S48/S47^S53 -> 9.812264139 | V52: a | W52: =W48/W47^W53 -> 4.708054258 | Z52: a | AA52: =AA48/AA47^AA53 -> 6.920361895 | AD52: a | AE52: =AE48/AE47^AE53 -> 4.561747121 | AH52: a | AI52: =AI48/AI47^AI53 -> 9.944098451 | AL52: a | AM52: =AM48/AM47^AM53 -> 10.77416751
B53: m | C53: =IF(C49=C47,0.00000000000001,LOG(C48/C50)/LOG(C47/C49)) -> 0.1072276534 | F53: m | G53: =IF(G49=G47,0.00000000000001,LOG(G48/G50)/LOG(G47/G49)) -> -0.3643626778 | J53: m | K53: =IF(K49=K47,0.00000000000001,LOG(K48/K50)/LOG(K47/K49)) -> -0.6191963549 | N53: m | O53: =IF(O49=O47,0.00000000000001,LOG(O48/O50)/LOG(O47/O49)) -> -0.4980044926 | R53: m | S53: =IF(S49=S47,0.00000000000001,LOG(S48/S50)/LOG(S47/S49)) -> -0.7200134812 | V53: m | W53: =IF(W49=W47,0.00000000000001,LOG(W48/W50)/LOG(W47/W49)) -> -0.8208068333 | Z53: m | AA53: =IF(AA49=AA47,0.00000000000001,LOG(AA48/AA50)/LOG(AA47/AA49)) -> -0.8394848243 | AD53: m | AE53: =IF(AE49=AE47,0.00000000000001,LOG(AE48/AE50)/LOG(AE47/AE49)) -> -0.6833672327 | AH53: m | AI53: =IF(AI49=AI47,0.00000000000001,LOG(AI48/AI50)/LOG(AI47/AI49)) -> -0.2694965136 | AL53: m | AM53: =IF(AM49=AM47,0.00000000000001,LOG(AM48/AM50)/LOG(AM47/AM49)) -> -0.2679090003
B55: Current | C55: =C52*C45^C53 -> 512.0153577 | D55: A | F55: Current | G55: =G52*G45^G53 -> 172.8674153 | H55: A | J55: Current | K55: =K52*K45^K53 -> 39.615316 | L55: A | N55: Current | O55: =O52*O45^O53 -> 216.5654609 | P55: A | R55: Current | S55: =S52*S45^S53 -> 51.50080093 | T55: A | V55: Current | W55: =W52*W45^W53 -> 31.16620633 | X55: A | Z55: Current | AA55: =AA52*AA45^AA53 -> 47.82446172 | AB55: A | AD55: Current | AE55: =AE52*AE45^AE53 -> 22.00534182 | AF55: A | AH55: Current | AI55: =AI52*AI45^AI53 -> 18.49582185 | AJ55: A | AL55: Current | AM55: =AM52*AM45^AM53 -> 19.96661112 | AN55: A
B56: Power | C56: =C55*VINMAX -> 12902.78701 | D56: W | F56: Power | G56: =G55*VINMAX -> 4356.258865 | H56: W | J56: Power | K56: =K55*VINMAX -> 998.3059631 | L56: W | N56: Power | O56: =O55*VINMAX -> 5457.449616 | P56: W | R56: Power | S56: =S55*VINMAX -> 1297.820183 | T56: W | V56: Power | W56: =W55*VINMAX -> 785.3883996 | X56: W | Z56: Power | AA56: =AA55*VINMAX -> 1205.176435 | AB56: W | AD56: Power | AE56: =AE55*VINMAX -> 554.534614 | AF56: W | AH56: Power | AI56: =AI55*VINMAX -> 466.0947106 | AJ56: W | AL56: Power | AM56: =AM55*VINMAX -> 503.1586002 | AN56: W
B58: Derating Factor | C58: =(C6-C34)/(C6-25) -> 0.552 | F58: Derating Factor | G58: =(G6-G34)/(G6-25) -> 0.5253888889 | J58: Derating Factor | K58: =(K6-K34)/(K6-25) -> 0.446959375 | N58: Derating Factor | O58: =(O6-O34)/(O6-25) -> 0.53 | R58: Derating Factor | S58: =(S6-S34)/(S6-25) -> 0.4264 | V58: Derating Factor | W58: =(W6-W34)/(W6-25) -> 0.42976 | Z58: Derating Factor | AA58: =(AA6-AA34)/(AA6-25) -> 0.4227291667 | AD58: Derating Factor | AE58: =(AE6-AE34)/(AE6-25) -> 0.4237375 | AH58: Derating Factor | AI58: =(AI6-AI34)/(AI6-25) -> 0.4044380165 | AL58: Derating Factor | AM58: =(AM6-AM34)/(AM6-25) -> 0.4102892562
B59: Power at Hot-Short | C59: =C58*C56 -> 7122.338432 | D59: W | F59: Power at Hot-Short | G59: =G58*G56 -> 2288.730005 | H59: W | J59: Power at Hot-Short | K59: =K58*K56 -> 446.2022093 | L59: W | N59: Power at Hot-Short | O59: =O58*O56 -> 2892.448296 | P59: W | R59: Power at Hot-Short | S59: =S58*S56 -> 553.3905262 | T59: W | V59: Power at Hot-Short | W59: =W58*W56 -> 337.5285186 | X59: W | Z59: Power at Hot-Short | AA59: =AA58*AA56 -> 509.4632302 | AB59: W | AD59: Power at Hot-Short | AE59: =AE58*AE56 -> 234.977111 | AF59: W | AH59: Power at Hot-Short | AI59: =AI58*AI56 -> 188.5064203 | AJ59: W | AL59: Power at Hot-Short | AM59: =AM58*AM56 -> 206.4405678 | AN59: W
B61: Margin | C61: =C59/'Design Calculator'!F52 -> 40.467832 | F61: Margin | G61: =G59/'Design Calculator'!F52 -> 13.00414775 | J61: Margin | K61: =K59/'Design Calculator'!F52 -> 2.535239826 | N61: Margin | O61: =O59/'Design Calculator'!F52 -> 16.43436532 | R61: Margin | S61: =S59/'Design Calculator'!F52 -> 3.144264353 | V61: Margin | W61: =W59/'Design Calculator'!F52 -> 1.917775674 | Z61: Margin | AA61: =AA59/'Design Calculator'!F52 -> 2.894677444 | AD61: Margin | AE61: =AE59/'Design Calculator'!F52 -> 1.335097222 | AH61: Margin | AI61: =AI59/'Design Calculator'!F52 -> 1.071059206 | AL61: Margin | AM61: =AM59/'Design Calculator'!F52 -> 1.172957772
B63: Selected FET | C63: =IF(C61>1.3,1,0) -> 1 | F63: Selected FET | G63: =IF(G61>1.3,1,0) -> 1 | J63: Selected FET | K63: =IF(K61>1.3,1,0) -> 1 | N63: Selected FET | O63: =IF(O61>1.3,1,0) -> 1 | R63: Selected FET | S63: =IF(S61>1.3,1,0) -> 1 | V63: Selected FET | W63: =IF(W61>1.3,1,0) -> 1 | Z63: Selected FET | AA63: =IF(AA61>1.3,1,0) -> 1 | AD63: Selected FET | AE63: =IF(AE61>1.3,1,0) -> 1 | AH63: Selected FET | AI63: =IF(AI61>1.3,1,0) -> 0 | AL63: Selected FET | AM63: =IF(AM61>1.3,1,0) -> 0
C64: =COLUMN() -> 3 | G64: =COLUMN() -> 7 | K64: =COLUMN() -> 11 | O64: =COLUMN() -> 15 | S64: =COLUMN() -> 19 | W64: =COLUMN() -> 23 | AA64: =COLUMN() -> 27 | AE64: =COLUMN() -> 31 | AI64: =COLUMN() -> 35 | AM64: =COLUMN() -> 39
B67: FET1 | C67: =LEFT('Design Calculator'!F54,FIND(" ",'Design Calculator'!F54)-1) -> CSD19506KTT | F67: FET2 | G67: =LEFT('Design Calculator'!G54,FIND(" ",'Design Calculator'!G54)-1) -> CSD19505KTT
B68: Column Number | C68: =MATCH(SFET48_1,B4:AM4,0)+2 ->  | F68: Column Number | G68: =MATCH(SFET48_2,B4:AM4,0)+2 -> 
B70: 0.01 | C70: =INDIRECT(ADDRESS(39,C68)) ->  | D70: A | F70: 0.01 | G70: =INDIRECT(ADDRESS(39,G68)) ->  | H70: A
B71: 0.1 | C71: =INDIRECT(ADDRESS(40,C68)) ->  | D71: A | F71: 0.1 | G71: =INDIRECT(ADDRESS(40,G68)) ->  | H71: A
B72: 1 | C72: =INDIRECT(ADDRESS(41,C68)) ->  | D72: A | F72: 1 | G72: =INDIRECT(ADDRESS(41,G68)) ->  | H72: A
B73: 10 | C73: =INDIRECT(ADDRESS(42,C68)) ->  | D73: A | F73: 10 | G73: =INDIRECT(ADDRESS(42,G68)) ->  | H73: A
B74: 100 | C74: =INDIRECT(ADDRESS(43,C68)) ->  | D74: A | F74: 100 | G74: =INDIRECT(ADDRESS(43,G68)) ->  | H74: A
B76: MOSFET Power Dissipation | C76: =INDIRECT(ADDRESS(33,C68)) ->  | D76: W | F76: MOSFET Power Dissipation | G76: =INDIRECT(ADDRESS(33,G68)) ->  | H76: W
B77: Number of FETs | C77: =INDIRECT(ADDRESS(32,C68)) ->  | F77: Number of FETs | G77: =INDIRECT(ADDRESS(32,G68)) -> 
B78: Junction Temperature | C78: =INDIRECT(ADDRESS(34,C68)) ->  | D78: °C | F78: Junction Temperature | G78: =INDIRECT(ADDRESS(34,G68)) ->  | H78: °C
B79: Maximum Junction Temperature | C79: =INDIRECT(ADDRESS(6,C68)) ->  | D79: °C | F79: Maximum Junction Temperature | G79: =INDIRECT(ADDRESS(6,G68)) ->  | H79: °C
B80: On resistance at Junction temp | C80: =INDIRECT(ADDRESS(7,C68))*INDIRECT(ADDRESS(29,C68)) ->  | D80: mΩ | F80: On resistance at Junction temp | G80: =INDIRECT(ADDRESS(7,G68))*INDIRECT(ADDRESS(29,G68)) ->  | H80: mΩ
B81: Margin | C81: =INDIRECT(ADDRESS(61,C68)) ->  | F81: Margin | G81: =INDIRECT(ADDRESS(61,G68)) -> 
B82: webpage link | C82: =HYPERLINK(INDIRECT(ADDRESS(5,C68))) ->  | F82: webpage link | G82: =HYPERLINK(INDIRECT(ADDRESS(5,G68))) -> 
B83: datasheet link | C83: =HYPERLINK(INDIRECT(ADDRESS(30,C68))) ->  | F83: datasheet link | G83: =HYPERLINK(INDIRECT(ADDRESS(30,G68))) -> 
B84: cost 1k USD | C84: =INDIRECT(ADDRESS(35,C68)) ->  | D84: $ | F84: cost 1k USD | G84: =INDIRECT(ADDRESS(35,G68)) ->  | H84: $

Sheet Start_up (hidden)
B1: PLIM | C1: ILIM | D1: Load type | F1: SS | G1: Load Value | H1: Load start | I1: Rs | J1: Vos,syst | M1: Start-time | O1: I_fet-I_L margin | Q1: I_g(hi/nom) | R1: I_g(low/nom)
B2: ='Design Calculator'!F52 -> 176 | C2: ='Design Calculator'!F42 -> 40 | D2: =IF( 'Design Calculator'!F28 = "Constant Current", "CC", "R") -> CC | F2: ='Design Calculator'!F30 -> Soft Start | G2: ='Design Calculator'!F29 -> 15 | H2: ='Design Calculator'!F27 -> 0 | I2: =RsEFF -> 1.5 | J2: ='Device Parameters'!E12 -> 0.001 | M2: =J114*1000 -> 2362.5 | N2: ms | O2: =MIN(L10:L111) -> 7.111060544e-06 | Q2: ='Device Parameters'!E30/'Device Parameters'!D30 -> 1.375 | R2: ='Device Parameters'!C30/'Device Parameters'!D30 -> 0.625
D4: To avoid timer running: Iload + Icap,ss < IFET_PLIM / 2 => SS_RATE < 1/Cout * (IFET_PLIM/2 - ILOAD) | M4: Max_SS_Rate | N4: =MIN(M10:M114) -> -1150.793651 | O4: V/ms | P4: max_power_typ | Q4: =MAX(O10:O114) -> 378.002688 | R4: W
M5: FET_ENERGY | N5: =SUM(N10:N114) -> 442.2222552 | O5: J | P5: max_power_high | Q5: =MAX(P10:P114) -> 378.003696 | R5: W
P6: max_power_low | Q6: =MAX(Q10:Q114) -> 378.00168 | R6: W
A7: VIN | B7: Vout | C7: ILOAD | D7: PLIM | E7: IFET_PLIM | F7: I_FET_SS | G7: IFET | H7: ICAP | I7: Dt | J7: Time | K7: Tiime (ms) | L7: I_Fet-IL margin | M7: Max _allowed SS_rate | N7: FET_Energy | O7: Power (W) | P7: P_ fast_SS | Q7: P_slow_SS
K8: -1 | O8: 0
K9: -0.01 | O9: 0
A10: =VINMAX -> 25.2 | B10: =VINMAX*((ROW()-10)/104) -> 0 | C10: =IF(B10>=$H$2,IF($D$2="CC", $G$2, B10/$G$2), 0) -> 15 | D10: =B2 -> 176 | E10: =MIN(D10/(A10-B10),$C$2) -> 6.984126984 | F10: =I_Cout_ss+C10 -> 15.00010667 | G10: =IF($F$2="Soft Start", F10, E10) -> 15.00010667 | H10: =G10-C10 -> 0.0001066666667 | I10: =(COUTMAX/1000000)*(B10)/H10 -> 0 | J10: =I10 -> 0 | K10: =J10*1000 -> 0 | L10: =H10/G10 -> 7.111060544e-06 | M10: =1/COUTMAX*(E10/2-C10)*1000 -> -1150.793651 | N10: =I10*G10*(A10-B10) -> 0 | O10: =G10*(A10-B10) -> 378.002688 | P10: =(A10-B10)*(I_Cout_ss*$Q$2+C10) -> 378.003696 | Q10: =(A10-B10)*(I_Cout_ss*$R$2+C10) -> 378.00168
A11: 25.2 | B11: 0.2423076923 | C11: 15 | D11: =B2 -> 176 | E11: =MIN(D11/(A11-B11),$C$2) -> 7.051934042 | F11: =I_Cout_ss+C11 -> 15.00010667 | G11: =IF($F$2="Soft Start", F11, E11) -> 15.00010667 | H11: 0.0001066666667 | I11: =(COUTMAX/1000000)*(B11-B10)/H11 -> 0.02271634615 | J11: =J10+I11 -> 0.02271634615 | K11: =J11*1000 -> 22.71634615 | L11: =H11/G11 -> 7.111060544e-06 | M11: -1147.403298 | N11: =I11*G11*(A11-B11) -> 8.504274139 | O11: =G11*(A11-B11) -> 374.3680468 | P11: 374.3690451 | Q11: 374.3670485
A12: 25.2 | B12: 0.4846153846 | C12: 15 | D12: =B2 -> 176 | E12: 7.12107065 | F12: 15.00010667 | G12: 15.00010667 | H12: 0.0001066666667 | I12: 0.02271634615 | J12: =J11+I12 -> 0.04543269231 | K12: 45.43269231 | L12: 7.111060544e-06 | M12: -1143.946467 | N12: =I12*G12*(A12-B12) -> 8.421708371 | O12: 370.7334055 | P12: 370.7343942 | Q12: 370.7324169 | X12: Start-up slop
A13: 25.2 | B13: 0.7269230769 | C13: 15 | D13: =B2 -> 176 | E13: 7.1915763 | F13: 15.00010667 | G13: 15.00010667 | H13: 0.0001066666667 | I13: 0.02271634615 | J13: 0.06814903846 | K13: 68.14903846 | L13: 7.111060544e-06 | M13: -1140.421185 | N13: 8.339142603 | O13: 367.0987643 | P13: 367.0997432 | Q13: 367.0977854 | X13: QG | Y13: 0.3
A14: 25.2 | B14: 0.9692307692 | C14: 15 | D14: =B2 -> 176 | E14: 7.263492063 | F14: 15.00010667 | G14: 15.00010667 | H14: 0.0001066666667 | I14: 0.02271634615 | J14: 0.09086538461 | K14: 90.86538461 | L14: 7.111060544e-06 | M14: -1136.825397 | N14: =I14*G14*(A14-B14) -> 8.256576834 | O14: 363.4641231 | P14: 363.4650923 | Q14: 363.4631538 | X14: I_Src | Y14: 0.3
A15: 25.2 | B15: 1.211538462 | C15: 15 | D15: =B2 -> 176 | E15: 7.33686067 | F15: 15.00010667 | G15: 15.00010667 | H15: 0.0001066666667 | I15: 0.02271634615 | J15: 0.1135817308 | K15: 113.5817308 | L15: 7.111060544e-06 | M15: -1133.156966 | N15: 8.174011066 | O15: 359.8294818 | P15: 359.8304414 | Q15: 359.8285223 | X15: RMS | Y15: =SQRT(Y14^2+Y13^2) -> 0.4242640687
A16: 25.2 | B16: 1.453846154 | C16: 15 | D16: =B2 -> 176 | E16: 7.411726595 | F16: 15.00010667 | G16: 15.00010667 | H16: 0.0001066666667 | I16: 0.02271634615 | J16: 0.1362980769 | K16: 136.2980769 | L16: 7.111060544e-06 | M16: -1129.41367 | N16: 8.091445298 | O16: 356.1948406 | P16: 356.1957905 | Q16: 356.1938908
A17: 25.2 | B17: 1.696153846 | C17: 15 | D17: =B2 -> 176 | E17: 7.488136148 | F17: 15.00010667 | G17: 15.00010667 | H17: 0.0001066666667 | I17: 0.02271634615 | J17: 0.1590144231 | K17: 159.0144231 | L17: 7.111060544e-06 | M17: -1125.593193 | N17: 8.008879529 | O17: 352.5601994 | P17: 352.5611395 | Q17: 352.5592592 | X17: PLIM | Y17: 0.3
A18: 25.2 | B18: 1.938461538 | C18: 15 | D18: =B2 -> 176 | E18: 7.566137566 | F18: 15.00010667 | G18: 15.00010667 | H18: 0.0001066666667 | I18: 0.02271634615 | J18: 0.1817307692 | K18: 181.7307692 | L18: 7.111060544e-06 | M18: -1121.693122 | N18: 7.926313761 | O18: 348.9255582 | P18: 348.9264886 | Q18: 348.9246277 | X18: combined | Y18: =MAX(Y15:Y17) -> 0.4242640687
A19: 25.2 | B19: 2.180769231 | C19: 15 | D19: =B2 -> 176 | E19: 7.645781119 | F19: 15.00010667 | G19: 15.00010667 | H19: 0.0001066666667 | I19: 0.02271634615 | J19: 0.2044471154 | K19: 204.4471154 | L19: 7.111060544e-06 | M19: -1117.710944 | N19: 7.843747993 | O19: 345.2909169 | P19: 345.2918377 | Q19: 345.2899962
A20: 25.2 | B20: 2.423076923 | C20: 15 | D20: =B2 -> 176 | E20: 7.727119216 | F20: 15.00010667 | G20: 15.00010667 | H20: 0.0001066666667 | I20: 0.02271634615 | J20: 0.2271634615 | K20: 227.1634615 | L20: 7.111060544e-06 | M20: -1113.644039 | N20: 7.761182224 | O20: 341.6562757 | P20: 341.6571868 | Q20: 341.6553646 | X20: I_timer | Y20: 0.2
A21: 25.2 | B21: 2.665384615 | C21: 15 | D21: =B2 -> 176 | E21: 7.81020652 | F21: 15.00010667 | G21: 15.00010667 | H21: 0.0001066666667 | I21: 0.02271634615 | J21: 0.2498798077 | K21: 249.8798077 | L21: 7.111060544e-06 | M21: -1109.489674 | N21: 7.678616456 | O21: 338.0216345 | P21: 338.0225358 | Q21: 338.0207331 | X21: C_timer | Y21: 0.2
A22: 25.2 | B22: 2.907692308 | C22: 15 | D22: =B2 -> 176 | E22: 7.895100069 | F22: 15.00010667 | G22: 15.00010667 | H22: 0.0001066666667 | I22: 0.02271634615 | J22: 0.2725961538 | K22: 272.5961538 | L22: 7.111060544e-06 | M22: -1105.244997 | N22: 7.596050688 | O22: 334.3869932 | P22: 334.3878849 | Q22: 334.3861015 | X22: RMS | Y22: =SQRT(Y21^2+Y20^2) -> 0.2828427125
A23: 25.2 | B23: 3.15 | C23: 15 | D23: =B2 -> 176 | E23: 7.98185941 | F23: 15.00010667 | G23: 15.00010667 | H23: 0.0001066666667 | I23: 0.02271634615 | J23: 0.2953125 | K23: 295.3125 | L23: 7.111060544e-06 | M23: -1100.907029 | N23: 7.513484919 | O23: 330.752352 | P23: 330.753234 | Q23: 330.75147
A24: 25.2 | B24: 3.392307692 | C24: 15 | D24: =B2 -> 176 | E24: 8.070546737 | F24: 15.00010667 | G24: 15.00010667 | H24: 0.0001066666667 | I24: 0.02271634615 | J24: 0.3180288462 | K24: 318.0288462 | L24: 7.111060544e-06 | M24: -1096.472663 | N24: 7.430919151 | O24: 327.1177108 | P24: 327.1185831 | Q24: 327.1168385 | X24: Final | Y24: =SQRT(Y18^2+Y22^2) -> 0.5099019514
A25: 25.2 | B25: 3.634615385 | C25: 15 | D25: =B2 -> 176 | E25: 8.161227038 | F25: 15.00010667 | G25: 15.00010667 | H25: 0.0001066666667 | I25: 0.02271634615 | J25: 0.3407451923 | K25: 340.7451923 | L25: 7.111060544e-06 | M25: -1091.938648 | N25: 7.348353382 | O25: 323.4830695 | P25: 323.4839322 | Q25: 323.4822069
A26: 25.2 | B26: 3.876923077 | C26: 15 | D26: =B2 -> 176 | E26: 8.253968254 | F26: 15.00010667 | G26: 15.00010667 | H26: 0.0001066666667 | I26: 0.02271634615 | J26: 0.3634615385 | K26: 363.4615385 | L26: 7.111060544e-06 | M26: -1087.301587 | N26: 7.265787614 | O26: 319.8484283 | P26: 319.8492812 | Q26: 319.8475754
A27: 25.2 | B27: 4.119230769 | C27: 15 | D27: =B2 -> 176 | E27: 8.348841452 | F27: 15.00010667 | G27: 15.00010667 | H27: 0.0001066666667 | I27: 0.02271634615 | J27: 0.3861778846 | K27: 386.1778846 | L27: 7.111060544e-06 | M27: -1082.557927 | N27: 7.183221846 | O27: 316.2137871 | P27: 316.2146303 | Q27: 316.2129438
A28: 25.2 | B28: 4.361538462 | C28: 15 | D28: =B2 -> 176 | E28: 8.445921004 | F28: 15.00010667 | G28: 15.00010667 | H28: 0.0001066666667 | I28: 0.02271634615 | J28: 0.4088942308 | K28: 408.8942308 | L28: 7.111060544e-06 | M28: -1077.70395 | N28: 7.100656077 | O28: 312.5791458 | P28: 312.5799794 | Q28: 312.5783123
A29: 25.2 | B29: 4.603846154 | C29: 15 | D29: =B2 -> 176 | E29: 8.545284781 | F29: 15.00010667 | G29: 15.00010667 | H29: 0.0001066666667 | I29: 0.02271634615 | J29: 0.4316105769 | K29: 431.6105769 | L29: 7.111060544e-06 | M29: -1072.735761 | N29: 7.018090309 | O29: 308.9445046 | P29: 308.9453285 | Q29: 308.9436808
A30: 25.2 | B30: 4.846153846 | C30: 15 | D30: =B2 -> 176 | E30: 8.647014361 | F30: 15.00010667 | G30: 15.00010667 | H30: 0.0001066666667 | I30: 0.02271634615 | J30: 0.4543269231 | K30: 454.3269231 | L30: 7.111060544e-06 | M30: -1067.649282 | N30: 6.935524541 | O30: 305.3098634 | P30: 305.3106775 | Q30: 305.3090492
A31: 25.2 | B31: 5.088461538 | C31: 15 | D31: =B2 -> 176 | E31: 8.751195257 | F31: 15.00010667 | G31: 15.00010667 | H31: 0.0001066666667 | I31: 0.02271634615 | J31: 0.4770432692 | K31: 477.0432692 | L31: 7.111060544e-06 | M31: -1062.440237 | N31: 6.852958772 | O31: 301.6752222 | P31: 301.6760266 | Q31: 301.6744177
A32: 25.2 | B32: 5.330769231 | C32: 15 | D32: =B2 -> 176 | E32: 8.857917151 | F32: 15.00010667 | G32: 15.00010667 | H32: 0.0001066666667 | I32: 0.02271634615 | J32: 0.4997596154 | K32: 499.7596154 | L32: 7.111060544e-06 | M32: -1057.104142 | N32: 6.770393004 | O32: 298.0405809 | P32: 298.0413757 | Q32: 298.0397862
A33: 25.2 | B33: 5.573076923 | C33: 15 | D33: =B2 -> 176 | E33: 8.967274152 | F33: 15.00010667 | G33: 15.00010667 | H33: 0.0001066666667 | I33: 0.02271634615 | J33: 0.5224759615 | K33: 522.4759615 | L33: 7.111060544e-06 | M33: -1051.636292 | N33: 6.687827236 | O33: 294.4059397 | P33: 294.4067248 | Q33: 294.4051546
A34: 25.2 | B34: 5.815384615 | C34: 15 | D34: =B2 -> 176 | E34: 9.079365079 | F34: 15.00010667 | G34: 15.00010667 | H34: 0.0001066666667 | I34: 0.02271634615 | J34: 0.5451923077 | K34: 545.1923077 | L34: 7.111060544e-06 | M34: -1046.031746 | N34: 6.605261467 | O34: 290.7712985 | P34: 290.7720738 | Q34: 290.7705231
A35: 25.2 | B35: 6.057692308 | C35: 15 | D35: =B2 -> 176 | E35: 9.194293751 | F35: 15.00010667 | G35: 15.00010667 | H35: 0.0001066666667 | I35: 0.02271634615 | J35: 0.5679086538 | K35: 567.9086538 | L35: 7.111060544e-06 | M35: -1040.285312 | N35: 6.522695699 | O35: 287.1366572 | P35: 287.1374229 | Q35: 287.1358915
A36: 25.2 | B36: 6.3 | C36: 15 | D36: =B2 -> 176 | E36: 9.312169312 | F36: 15.00010667 | G36: 15.00010667 | H36: 0.0001066666667 | I36: 0.02271634615 | J36: 0.590625 | K36: 590.625 | L36: 7.111060544e-06 | M36: -1034.391534 | N36: 6.440129931 | O36: 283.502016 | P36: 283.502772 | Q36: 283.50126
A37: 25.2 | B37: 6.542307692 | C37: 15 | D37: =B2 -> 176 | E37: 9.433106576 | F37: 15.00010667 | G37: 15.00010667 | H37: 0.0001066666667 | I37: 0.02271634615 | J37: 0.6133413461 | K37: 613.3413461 | L37: 7.111060544e-06 | M37: -1028.344671 | N37: 6.357564162 | O37: 279.8673748 | P37: 279.8681211 | Q37: 279.8666285
A38: 25.2 | B38: 6.784615385 | C38: 15 | D38: =B2 -> 176 | E38: 9.557226399 | F38: 15.00010667 | G38: 15.00010667 | H38: 0.0001066666667 | I38: 0.02271634615 | J38: 0.6360576923 | K38: 636.0576923 | L38: 7.111060544e-06 | M38: -1022.13868 | N38: 6.274998394 | O38: 276.2327335 | P38: 276.2334702 | Q38: 276.2319969
A39: 25.2 | B39: 7.026923077 | C39: 15 | D39: =B2 -> 176 | E39: 9.684656085 | F39: 15.00010667 | G39: 15.00010667 | H39: 0.0001066666667 | I39: 0.02271634615 | J39: 0.6587740385 | K39: 658.7740385 | L39: 7.111060544e-06 | M39: -1015.767196 | N39: 6.192432626 | O39: 272.5980923 | P39: 272.5988192 | Q39: 272.5973654
A40: 25.2 | B40: 7.269230769 | C40: 15 | D40: =B2 -> 176 | E40: 9.815529816 | F40: 15.00010667 | G40: 15.00010667 | H40: 0.0001066666667 | I40: 0.02271634615 | J40: 0.6814903846 | K40: 681.4903846 | L40: 7.111060544e-06 | M40: -1009.223509 | N40: 6.109866857 | O40: 268.9634511 | P40: 268.9641683 | Q40: 268.9627338
A41: 25.2 | B41: 7.511538462 | C41: 15 | D41: =B2 -> 176 | E41: 9.949989128 | F41: 15.00010667 | G41: 15.00010667 | H41: 0.0001066666667 | I41: 0.02271634615 | J41: 0.7042067308 | K41: 704.2067308 | L41: 7.111060544e-06 | M41: -1002.500544 | N41: 6.027301089 | O41: 265.3288098 | P41: 265.3295174 | Q41: 265.3281023
A42: =VINMAX -> 25.2 | B42: =VINMAX*((ROW()-10)/104) -> 7.753846154 | C42: =IF(B42>=$H$2,IF($D$2="CC", $G$2, B42/$G$2), 0) -> 15 | D42: =B2 -> 176 | E42: 10.08818342 | F42: =I_Cout_ss+C42 -> 15.00010667 | G42: 15.00010667 | H42: =G42-C42 -> 0.0001066666667 | I42: 0.02271634615 | J42: 0.7269230769 | K42: 726.9230769 | L42: 7.111060544e-06 | M42: =1/COUTMAX*(E42/2-C42)*1000 -> -995.5908289 | N42: 5.944735321 | O42: 261.6941686 | P42: =(A42-B42)*(I_Cout_ss*$Q$2+C42) -> 261.6948665 | Q42: =(A42-B42)*(I_Cout_ss*$R$2+C42) -> 261.6934708
A43: 25.2 | B43: 7.996153846 | C43: 15 | D43: =B2 -> 176 | E43: 10.23027051 | F43: 15.00010667 | G43: 15.00010667 | H43: 0.0001066666667 | I43: =(COUTMAX/1000000)*(B43-B42)/H43 -> 0.02271634615 | J43: 0.7496394231 | K43: 749.6394231 | L43: 7.111060544e-06 | M43: -988.4864744 | N43: 5.862169552 | O43: 258.0595274 | P43: 258.0602155 | Q43: 258.0588392
A44: 25.2 | B44: 8.238461538 | C44: 15 | D44: =B2 -> 176 | E44: 10.37641723 | F44: 15.00010667 | G44: 15.00010667 | H44: 0.0001066666667 | I44: 0.02271634615 | J44: 0.7723557692 | K44: 772.3557692 | L44: 7.111060544e-06 | M44: -981.1791383 | N44: 5.779603784 | O44: 254.4248862 | P44: 254.4255646 | Q44: 254.4242077
A45: 25.2 | B45: 8.480769231 | C45: 15 | D45: =B2 -> 176 | E45: 10.52680009 | F45: 15.00010667 | G45: 15.00010667 | H45: 0.0001066666667 | I45: 0.02271634615 | J45: 0.7950721154 | K45: 795.0721154 | L45: 7.111060544e-06 | M45: -973.6599954 | N45: 5.697038016 | O45: 250.7902449 | P45: 250.7909137 | Q45: 250.7895762
A46: 25.2 | B46: 8.723076923 | C46: 15 | D46: =B2 -> 176 | E46: 10.68160598 | F46: 15.00010667 | G46: 15.00010667 | H46: 0.0001066666667 | I46: 0.02271634615 | J46: 0.8177884615 | K46: 817.7884615 | L46: 7.111060544e-06 | M46: -965.9197012 | N46: 5.614472247 | O46: 247.1556037 | P46: 247.1562628 | Q46: 247.1549446
A47: 25.2 | B47: 8.965384615 | C47: 15 | D47: =B2 -> 176 | E47: 10.84103293 | F47: 15.00010667 | G47: 15.00010667 | H47: 0.0001066666667 | I47: 0.02271634615 | J47: 0.8405048077 | K47: 840.5048077 | L47: 7.111060544e-06 | M47: -957.9483535 | N47: 5.531906479 | O47: 243.5209625 | P47: 243.5216118 | Q47: 243.5203131
A48: 25.2 | B48: 9.207692308 | C48: 15 | D48: =B2 -> 176 | E48: 11.00529101 | F48: 15.00010667 | G48: 15.00010667 | H48: 0.0001066666667 | I48: 0.02271634615 | J48: 0.8632211538 | K48: 863.2211538 | L48: 7.111060544e-06 | M48: -949.7354497 | N48: 5.449340711 | O48: 239.8863212 | P48: 239.8869609 | Q48: 239.8856815
A49: 25.2 | B49: 9.45 | C49: 15 | D49: =B2 -> 176 | E49: 11.17460317 | F49: 15.00010667 | G49: 15.00010667 | H49: 0.0001066666667 | I49: 0.02271634615 | J49: 0.8859375 | K49: 885.9375 | L49: 7.111060544e-06 | M49: -941.2698413 | N49: 5.366774942 | O49: 236.25168 | P49: 236.25231 | Q49: 236.25105
A50: 25.2 | B50: 9.692307692 | C50: 15 | D50: =B2 -> 176 | E50: 11.34920635 | F50: 15.00010667 | G50: 15.00010667 | H50: 0.0001066666667 | I50: 0.02271634615 | J50: 0.9086538461 | K50: 908.6538461 | L50: 7.111060544e-06 | M50: -932.5396825 | N50: 5.284209174 | O50: 232.6170388 | P50: 232.6176591 | Q50: 232.6164185
A51: 25.2 | B51: 9.934615385 | C51: 15 | D51: =B2 -> 176 | E51: 11.52935248 | F51: 15.00010667 | G51: 15.00010667 | H51: 0.0001066666667 | I51: 0.02271634615 | J51: 0.9313701923 | K51: 931.3701923 | L51: 7.111060544e-06 | M51: -923.5323759 | N51: 5.201643406 | O51: 228.9823975 | P51: 228.9830082 | Q51: 228.9817869
A52: 25.2 | B52: 10.17692308 | C52: 15 | D52: =B2 -> 176 | E52: 11.71530978 | F52: 15.00010667 | G52: 15.00010667 | H52: 0.0001066666667 | I52: 0.02271634615 | J52: 0.9540865385 | K52: 954.0865385 | L52: 7.111060544e-06 | M52: -914.234511 | N52: 5.119077637 | O52: 225.3477563 | P52: 225.3483572 | Q52: 225.3471554
A53: 25.2 | B53: 10.41923077 | C53: 15 | D53: =B2 -> 176 | E53: 11.90736404 | F53: 15.00010667 | G53: 15.00010667 | H53: 0.0001066666667 | I53: 0.02271634615 | J53: 0.9768028846 | K53: 976.8028846 | L53: 7.111060544e-06 | M53: -904.6317981 | N53: 5.036511869 | O53: 221.7131151 | P53: 221.7137063 | Q53: 221.7125238
A54: 25.2 | B54: 10.66153846 | C54: 15 | D54: =B2 -> 176 | E54: 12.10582011 | F54: 15.00010667 | G54: 15.00010667 | H54: 0.0001066666667 | I54: 0.02271634615 | J54: 0.9995192308 | K54: 999.5192308 | L54: 7.111060544e-06 | M54: -894.7089947 | N54: 4.953946101 | O54: 218.0784738 | P54: 218.0790554 | Q54: 218.0778923
A55: 25.2 | B55: 10.90384615 | C55: 15 | D55: =B2 -> 176 | E55: 12.3110035 | F55: 15.00010667 | G55: 15.00010667 | H55: 0.0001066666667 | I55: 0.02271634615 | J55: 1.022235577 | K55: 1022.235577 | L55: 7.111060544e-06 | M55: -884.4498251 | N55: 4.871380332 | O55: 214.4438326 | P55: 214.4444045 | Q55: 214.4432608
A56: 25.2 | B56: 11.14615385 | C56: 15 | D56: =B2 -> 176 | E56: 12.52326218 | F56: 15.00010667 | G56: 15.00010667 | H56: 0.0001066666667 | I56: 0.02271634615 | J56: 1.044951923 | K56: 1044.951923 | L56: 7.111060544e-06 | M56: -873.8368911 | N56: 4.788814564 | O56: 210.8091914 | P56: 210.8097535 | Q56: 210.8086292
A57: 25.2 | B57: 11.38846154 | C57: 15 | D57: =B2 -> 176 | E57: 12.74296853 | F57: 15.00010667 | G57: 15.00010667 | H57: 0.0001066666667 | I57: 0.02271634615 | J57: 1.067668269 | K57: 1067.668269 | L57: 7.111060544e-06 | M57: -862.8515734 | N57: 4.706248796 | O57: 207.1745502 | P57: 207.1751026 | Q57: 207.1739977
A58: 25.2 | B58: 11.63076923 | C58: 15 | D58: =B2 -> 176 | E58: 12.97052154 | F58: 15.00010667 | G58: 15.00010667 | H58: 0.0001066666667 | I58: 0.02271634615 | J58: 1.090384615 | K58: 1090.384615 | L58: 7.111060544e-06 | M58: -851.4739229 | N58: 4.623683027 | O58: 203.5399089 | P58: 203.5404517 | Q58: 203.5393662
A59: 25.2 | B59: 11.87307692 | C59: 15 | D59: =B2 -> 176 | E59: 13.20634921 | F59: 15.00010667 | G59: 15.00010667 | H59: 0.0001066666667 | I59: 0.02271634615 | J59: 1.113100962 | K59: 1113.100962 | L59: 7.111060544e-06 | M59: -839.6825397 | N59: 4.541117259 | O59: 199.9052677 | P59: 199.9058008 | Q59: 199.9047346
A60: 25.2 | B60: 12.11538462 | C60: 15 | D60: =B2 -> 176 | E60: 13.45091123 | F60: 15.00010667 | G60: 15.00010667 | H60: 0.0001066666667 | I60: 0.02271634615 | J60: 1.135817308 | K60: 1135.817308 | L60: 7.111060544e-06 | M60: -827.4544386 | N60: 4.458551491 | O60: 196.2706265 | P60: 196.2711498 | Q60: 196.2701031
A61: 25.2 | B61: 12.35769231 | C61: 15 | D61: =B2 -> 176 | E61: 13.70470201 | F61: 15.00010667 | G61: 15.00010667 | H61: 0.0001066666667 | I61: 0.02271634615 | J61: 1.158533654 | K61: 1158.533654 | L61: 7.111060544e-06 | M61: -814.7648997 | N61: =I61*G61*(A61-B61) -> 4.375985722 | O61: 192.6359852 | P61: 192.6364989 | Q61: 192.6354715
A62: 25.2 | B62: 12.6 | C62: 15 | D62: =B2 -> 176 | E62: 13.96825397 | F62: 15.00010667 | G62: 15.00010667 | H62: 0.0001066666667 | I62: 0.02271634615 | J62: 1.18125 | K62: 1181.25 | L62: 7.111060544e-06 | M62: -801.5873016 | N62: 4.293419954 | O62: 189.001344 | P62: 189.001848 | Q62: 189.00084
A63: 25.2 | B63: 12.84230769 | C63: 15 | D63: =B2 -> 176 | E63: 14.2421413 | F63: 15.00010667 | G63: 15.00010667 | H63: 0.0001066666667 | I63: 0.02271634615 | J63: 1.203966346 | K63: 1203.966346 | L63: 7.111060544e-06 | M63: -787.892935 | N63: 4.210854185 | O63: 185.3667028 | P63: 185.3671971 | Q63: 185.3662085
A64: 25.2 | B64: 13.08461538 | C64: 15 | D64: =B2 -> 176 | E64: 14.52698413 | F64: 15.00010667 | G64: 15.00010667 | H64: 0.0001066666667 | I64: 0.02271634615 | J64: 1.226682692 | K64: 1226.682692 | L64: 7.111060544e-06 | M64: -773.6507937 | N64: 4.128288417 | O64: 181.7320615 | P64: 181.7325462 | Q64: 181.7315769
A65: 25.2 | B65: 13.32692308 | C65: 15 | D65: =B2 -> 176 | E65: 14.82345319 | F65: 15.00010667 | G65: 15.00010667 | H65: 0.0001066666667 | I65: 0.02271634615 | J65: 1.249399038 | K65: 1249.399038 | L65: 7.111060544e-06 | M65: -758.8273405 | N65: 4.045722649 | O65: 178.0974203 | P65: 178.0978952 | Q65: 178.0969454
A66: 25.2 | B66: 13.56923077 | C66: 15 | D66: =B2 -> 176 | E66: 15.13227513 | F66: 15.00010667 | G66: 15.00010667 | H66: 0.0001066666667 | I66: 0.02271634615 | J66: 1.272115385 | K66: 1272.115385 | L66: 7.111060544e-06 | M66: -743.3862434 | N66: 3.96315688 | O66: 174.4627791 | P66: 174.4632443 | Q66: 174.4623138
A67: 25.2 | B67: 13.81153846 | C67: 15 | D67: =B2 -> 176 | E67: 15.45423843 | F67: 15.00010667 | G67: 15.00010667 | H67: 0.0001066666667 | I67: 0.02271634615 | J67: 1.294831731 | K67: 1294.831731 | L67: 7.111060544e-06 | M67: -727.2880784 | N67: 3.880591112 | O67: 170.8281378 | P67: 170.8285934 | Q67: 170.8276823
A68: 25.2 | B68: 14.05384615 | C68: 15 | D68: =B2 -> 176 | E68: 15.79020014 | F68: 15.00010667 | G68: 15.00010667 | H68: 0.0001066666667 | I68: 0.02271634615 | J68: 1.317548077 | K68: 1317.548077 | L68: 7.111060544e-06 | M68: -710.4899931 | N68: 3.798025344 | O68: 167.1934966 | P68: 167.1939425 | Q68: 167.1930508
A69: 25.2 | B69: 14.29615385 | C69: 15 | D69: =B2 -> 176 | E69: 16.14109347 | F69: 15.00010667 | G69: 15.00010667 | H69: 0.0001066666667 | I69: 0.02271634615 | J69: 1.340264423 | K69: 1340.264423 | L69: 7.111060544e-06 | M69: -692.9453263 | N69: 3.715459575 | O69: 163.5588554 | P69: 163.5592915 | Q69: 163.5584192
A70: 25.2 | B70: 14.53846154 | C70: 15 | D70: =B2 -> 176 | E70: 16.50793651 | F70: 15.00010667 | G70: 15.00010667 | H70: 0.0001066666667 | I70: 0.02271634615 | J70: 1.362980769 | K70: 1362.980769 | L70: 7.111060544e-06 | M70: -674.6031746 | N70: 3.632893807 | O70: 159.9242142 | P70: 159.9246406 | Q70: 159.9237877
A71: 25.2 | B71: 14.78076923 | C71: 15 | D71: =B2 -> 176 | E71: 16.89184201 | F71: 15.00010667 | G71: 15.00010667 | H71: 0.0001066666667 | I71: 0.02271634615 | J71: 1.385697115 | K71: 1385.697115 | L71: 7.111060544e-06 | M71: -655.4078996 | N71: 3.550328039 | O71: 156.2895729 | P71: 156.2899897 | Q71: 156.2891562
A72: 25.2 | B72: 15.02307692 | C72: 15 | D72: =B2 -> 176 | E72: 17.29402872 | F72: 15.00010667 | G72: 15.00010667 | H72: 0.0001066666667 | I72: 0.02271634615 | J72: 1.408413462 | K72: 1408.413462 | L72: 7.111060544e-06 | M72: -635.2985639 | N72: 3.46776227 | O72: 152.6549317 | P72: 152.6553388 | Q72: 152.6545246
A73: 25.2 | B73: 15.26538462 | C73: 15 | D73: =B2 -> 176 | E73: 17.7158343 | F73: 15.00010667 | G73: 15.00010667 | H73: 0.0001066666667 | I73: 0.02271634615 | J73: 1.431129808 | K73: 1431.129808 | L73: 7.111060544e-06 | M73: -614.2082849 | N73: 3.385196502 | O73: 149.0202905 | P73: 149.0206878 | Q73: 149.0198931
A74: =VINMAX -> 25.2 | B74: =VINMAX*((ROW()-10)/104) -> 15.50769231 | C74: =IF(B74>=$H$2,IF($D$2="CC", $G$2, B74/$G$2), 0) -> 15 | D74: =B2 -> 176 | E74: 18.15873016 | F74: =I_Cout_ss+C74 -> 15.00010667 | G74: 15.00010667 | H74: =G74-C74 -> 0.0001066666667 | I74: 0.02271634615 | J74: 1.453846154 | K74: 1453.846154 | L74: 7.111060544e-06 | M74: =1/COUTMAX*(E74/2-C74)*1000 -> -592.0634921 | N74: 3.302630734 | O74: 145.3856492 | P74: =(A74-B74)*(I_Cout_ss*$Q$2+C74) -> 145.3860369 | Q74: =(A74-B74)*(I_Cout_ss*$R$2+C74) -> 145.3852615
A75: 25.2 | B75: 15.75 | C75: 15 | D75: =B2 -> 176 | E75: =MIN(D75/(A75-B75),$C$2) -> 18.62433862 | F75: 15.00010667 | G75: =IF($F$2="Soft Start", F75, E75) -> 15.00010667 | H75: 0.0001066666667 | I75: =(COUTMAX/1000000)*(B75-B74)/H75 -> 0.02271634615 | J75: 1.4765625 | K75: =J75*1000 -> 1476.5625 | L75: =H75/G75 -> 7.111060544e-06 | M75: -568.7830688 | N75: =I75*G75*(A75-B75) -> 3.220064965 | O75: =G75*(A75-B75) -> 141.751008 | P75: 141.751386 | Q75: 141.75063
A76: 25.2 | B76: 15.99230769 | C76: 15 | D76: =B2 -> 176 | E76: 19.1144528 | F76: 15.00010667 | G76: 15.00010667 | H76: 0.0001066666667 | I76: 0.02271634615 | J76: =J75+I76 -> 1.499278846 | K76: 1499.278846 | L76: 7.111060544e-06 | M76: -544.2773601 | N76: 3.137499197 | O76: 138.1163668 | P76: 138.1167351 | Q76: 138.1159985
A77: 25.2 | B77: 16.23461538 | C77: 15 | D77: =B2 -> 176 | E77: 19.63105963 | F77: 15.00010667 | G77: 15.00010667 | H77: 0.0001066666667 | I77: 0.02271634615 | J77: 1.521995192 | K77: 1521.995192 | L77: 7.111060544e-06 | M77: -518.4470184 | N77: 3.054933429 | O77: 134.4817255 | P77: 134.4820842 | Q77: 134.4813669
A78: 25.2 | B78: 16.47692308 | C78: 15 | D78: =B2 -> 176 | E78: 20.17636684 | F78: 15.00010667 | G78: 15.00010667 | H78: 0.0001066666667 | I78: 0.02271634615 | J78: 1.544711538 | K78: 1544.711538 | L78: 7.111060544e-06 | M78: -491.1816578 | N78: 2.97236766 | O78: 130.8470843 | P78: 130.8474332 | Q78: 130.8467354
A79: 25.2 | B79: 16.71923077 | C79: 15 | D79: =B2 -> 176 | E79: 20.75283447 | F79: 15.00010667 | G79: 15.00010667 | H79: 0.0001066666667 | I79: 0.02271634615 | J79: 1.567427885 | K79: 1567.427885 | L79: 7.111060544e-06 | M79: -462.3582766 | N79: 2.889801892 | O79: 127.2124431 | P79: 127.2127823 | Q79: 127.2121038
A80: 25.2 | B80: 16.96153846 | C80: 15 | D80: =B2 -> 176 | E80: 21.36321195 | F80: 15.00010667 | G80: 15.00010667 | H80: 0.0001066666667 | I80: 0.02271634615 | J80: 1.590144231 | K80: 1590.144231 | L80: 7.111060544e-06 | M80: -431.8394024 | N80: 2.807236124 | O80: 123.5778018 | P80: 123.5781314 | Q80: 123.5774723
A81: 25.2 | B81: 17.20384615 | C81: 15 | D81: =B2 -> 176 | E81: 22.01058201 | F81: 15.00010667 | G81: 15.00010667 | H81: 0.0001066666667 | I81: 0.02271634615 | J81: 1.612860577 | K81: 1612.860577 | L81: 7.111060544e-06 | M81: -399.4708995 | N81: 2.724670355 | O81: 119.9431606 | P81: 119.9434805 | Q81: 119.9428408
A82: 25.2 | B82: 17.44615385 | C82: 15 | D82: =B2 -> 176 | E82: 22.6984127 | F82: 15.00010667 | G82: 15.00010667 | H82: 0.0001066666667 | I82: 0.02271634615 | J82: 1.635576923 | K82: 1635.576923 | L82: 7.111060544e-06 | M82: -365.0793651 | N82: 2.642104587 | O82: 116.3085194 | P82: 116.3088295 | Q82: 116.3082092
A83: 25.2 | B83: 17.68846154 | C83: 15 | D83: =B2 -> 176 | E83: 23.43061956 | F83: 15.00010667 | G83: 15.00010667 | H83: 0.0001066666667 | I83: 0.02271634615 | J83: 1.658293269 | K83: 1658.293269 | L83: 7.111060544e-06 | M83: -328.469022 | N83: 2.559538819 | O83: 112.6738782 | P83: 112.6741786 | Q83: 112.6735777
A84: 25.2 | B84: 17.93076923 | C84: 15 | D84: =B2 -> 176 | E84: 24.21164021 | F84: 15.00010667 | G84: 15.00010667 | H84: 0.0001066666667 | I84: 0.02271634615 | J84: 1.681009615 | K84: 1681.009615 | L84: 7.111060544e-06 | M84: -289.4179894 | N84: 2.47697305 | O84: 109.0392369 | P84: 109.0395277 | Q84: 109.0389462
A85: 25.2 | B85: 18.17307692 | C85: 15 | D85: =B2 -> 176 | E85: 25.04652436 | F85: 15.00010667 | G85: 15.00010667 | H85: 0.0001066666667 | I85: 0.02271634615 | J85: 1.703725962 | K85: 1703.725962 | L85: 7.111060544e-06 | M85: -247.6737822 | N85: 2.394407282 | O85: 105.4045957 | P85: 105.4048768 | Q85: 105.4043146
A86: 25.2 | B86: 18.41538462 | C86: 15 | D86: =B2 -> 176 | E86: 25.94104308 | F86: 15.00010667 | G86: 15.00010667 | H86: 0.0001066666667 | I86: 0.02271634615 | J86: 1.726442308 | K86: 1726.442308 | L86: 7.111060544e-06 | M86: -202.9478458 | N86: 2.311841514 | O86: 101.7699545 | P86: 101.7702258 | Q86: 101.7696831
A87: 25.2 | B87: 18.65769231 | C87: 15 | D87: =B2 -> 176 | E87: 26.90182246 | F87: 15.00010667 | G87: 15.00010667 | H87: 0.0001066666667 | I87: 0.02271634615 | J87: 1.749158654 | K87: 1749.158654 | L87: 7.111060544e-06 | M87: -154.9088771 | N87: 2.229275745 | O87: 98.13531323 | P87: 98.13557492 | Q87: 98.13505154
A88: 25.2 | B88: 18.9 | C88: 15 | D88: =B2 -> 176 | E88: 27.93650794 | F88: 15.00010667 | G88: 15.00010667 | H88: 0.0001066666667 | I88: 0.02271634615 | J88: 1.771875 | K88: 1771.875 | L88: 7.111060544e-06 | M88: -103.1746032 | N88: 2.146709977 | O88: 94.500672 | P88: 94.500924 | Q88: 94.50042
A89: 25.2 | B89: 19.14230769 | C89: 15 | D89: =B2 -> 176 | E89: 29.05396825 | F89: 15.00010667 | G89: 15.00010667 | H89: 0.0001066666667 | I89: 0.02271634615 | J89: 1.794591346 | K89: 1794.591346 | L89: 7.111060544e-06 | M89: -47.3015873 | N89: 2.064144209 | O89: 90.86603077 | P89: 90.86627308 | Q89: 90.86578846
A90: 25.2 | B90: 19.38461538 | C90: 15 | D90: =B2 -> 176 | E90: 30.26455026 | F90: 15.00010667 | G90: 15.00010667 | H90: 0.0001066666667 | I90: 0.02271634615 | J90: 1.817307692 | K90: 1817.307692 | L90: 7.111060544e-06 | M90: 13.22751323 | N90: 1.98157844 | O90: 87.23138954 | P90: 87.23162215 | Q90: 87.23115692
A91: 25.2 | B91: 19.62692308 | C91: 15 | D91: =B2 -> 176 | E91: 31.58040028 | F91: 15.00010667 | G91: 15.00010667 | H91: 0.0001066666667 | I91: 0.02271634615 | J91: 1.840024038 | K91: 1840.024038 | L91: 7.111060544e-06 | M91: 79.0200138 | N91: 1.899012672 | O91: 83.59674831 | P91: 83.59697123 | Q91: 83.59652538
A92: 25.2 | B92: 19.86923077 | C92: 15 | D92: =B2 -> 176 | E92: 33.01587302 | F92: 15.00010667 | G92: 15.00010667 | H92: 0.0001066666667 | I92: 0.02271634615 | J92: 1.862740385 | K92: 1862.740385 | L92: 7.111060544e-06 | M92: 150.7936508 | N92: 1.816446904 | O92: 79.96210708 | P92: 79.96232031 | Q92: 79.96189385
A93: 25.2 | B93: 20.11153846 | C93: 15 | D93: =B2 -> 176 | E93: 34.58805745 | F93: 15.00010667 | G93: 15.00010667 | H93: 0.0001066666667 | I93: 0.02271634615 | J93: 1.885456731 | K93: 1885.456731 | L93: 7.111060544e-06 | M93: 229.4028723 | N93: 1.733881135 | O93: 76.32746585 | P93: 76.32766938 | Q93: 76.32726231
A94: 25.2 | B94: 20.35384615 | C94: 15 | D94: =B2 -> 176 | E94: 36.31746032 | F94: 15.00010667 | G94: 15.00010667 | H94: 0.0001066666667 | I94: 0.02271634615 | J94: 1.908173077 | K94: 1908.173077 | L94: 7.111060544e-06 | M94: 315.8730159 | N94: 1.651315367 | O94: 72.69282462 | P94: 72.69301846 | Q94: 72.69263077
A95: 25.2 | B95: 20.59615385 | C95: 15 | D95: =B2 -> 176 | E95: 38.2289056 | F95: 15.00010667 | G95: 15.00010667 | H95: 0.0001066666667 | I95: 0.02271634615 | J95: 1.930889423 | K95: 1930.889423 | L95: 7.111060544e-06 | M95: 411.4452799 | N95: 1.568749599 | O95: 69.05818338 | P95: 69.05836754 | Q95: 69.05799923
A96: 25.2 | B96: 20.83846154 | C96: 15 | D96: =B2 -> 176 | E96: 40 | F96: 15.00010667 | G96: 15.00010667 | H96: 0.0001066666667 | I96: 0.02271634615 | J96: 1.953605769 | K96: 1953.605769 | L96: 7.111060544e-06 | M96: 500 | N96: 1.48618383 | O96: 65.42354215 | P96: 65.42371662 | Q96: 65.42336769
A97: 25.2 | B97: 21.08076923 | C97: 15 | D97: =B2 -> 176 | E97: 40 | F97: 15.00010667 | G97: 15.00010667 | H97: 0.0001066666667 | I97: 0.02271634615 | J97: 1.976322115 | K97: 1976.322115 | L97: 7.111060544e-06 | M97: 500 | N97: 1.403618062 | O97: 61.78890092 | P97: 61.78906569 | Q97: 61.78873615
A98: 25.2 | B98: 21.32307692 | C98: 15 | D98: =B2 -> 176 | E98: 40 | F98: 15.00010667 | G98: 15.00010667 | H98: 0.0001066666667 | I98: 0.02271634615 | J98: 1.999038462 | K98: 1999.038462 | L98: 7.111060544e-06 | M98: 500 | N98: 1.321052293 | O98: 58.15425969 | P98: 58.15441477 | Q98: 58.15410462
A99: 25.2 | B99: 21.56538462 | C99: 15 | D99: =B2 -> 176 | E99: 40 | F99: 15.00010667 | G99: 15.00010667 | H99: 0.0001066666667 | I99: 0.02271634615 | J99: 2.021754808 | K99: 2021.754808 | L99: 7.111060544e-06 | M99: 500 | N99: 1.238486525 | O99: 54.51961846 | P99: 54.51976385 | Q99: 54.51947308
A100: 25.2 | B100: 21.80769231 | C100: 15 | D100: =B2 -> 176 | E100: 40 | F100: 15.00010667 | G100: 15.00010667 | H100: 0.0001066666667 | I100: 0.02271634615 | J100: 2.044471154 | K100: 2044.471154 | L100: 7.111060544e-06 | M100: 500 | N100: 1.155920757 | O100: 50.88497723 | P100: 50.88511292 | Q100: 50.88484154
A101: 25.2 | B101: 22.05 | C101: 15 | D101: =B2 -> 176 | E101: 40 | F101: 15.00010667 | G101: 15.00010667 | H101: 0.0001066666667 | I101: 0.02271634615 | J101: 2.0671875 | K101: 2067.1875 | L101: 7.111060544e-06 | M101: 500 | N101: 1.073354988 | O101: 47.250336 | P101: 47.250462 | Q101: 47.25021
A102: 25.2 | B102: 22.29230769 | C102: 15 | D102: =B2 -> 176 | E102: 40 | F102: 15.00010667 | G102: 15.00010667 | H102: 0.0001066666667 | I102: 0.02271634615 | J102: 2.089903846 | K102: 2089.903846 | L102: 7.111060544e-06 | M102: 500 | N102: 0.9907892201 | O102: 43.61569477 | P102: 43.61581108 | Q102: 43.61557846
A103: 25.2 | B103: 22.53461538 | C103: 15 | D103: =B2 -> 176 | E103: 40 | F103: 15.00010667 | G103: 15.00010667 | H103: 0.0001066666667 | I103: 0.02271634615 | J103: 2.112620192 | K103: 2112.620192 | L103: 7.111060544e-06 | M103: 500 | N103: 0.9082234518 | O103: 39.98105354 | P103: 39.98116015 | Q103: 39.98094692
A104: 25.2 | B104: 22.77692308 | C104: 15 | D104: =B2 -> 176 | E104: 40 | F104: 15.00010667 | G104: 15.00010667 | H104: 0.0001066666667 | I104: 0.02271634615 | J104: 2.135336538 | K104: 2135.336538 | L104: 7.111060544e-06 | M104: 500 | N104: 0.8256576834 | O104: 36.34641231 | P104: 36.34650923 | Q104: 36.34631538
A105: 25.2 | B105: 23.01923077 | C105: 15 | D105: =B2 -> 176 | E105: 40 | F105: 15.00010667 | G105: 15.00010667 | H105: 0.0001066666667 | I105: 0.02271634615 | J105: 2.158052885 | K105: 2158.052885 | L105: 7.111060544e-06 | M105: 500 | N105: 0.7430919151 | O105: 32.71177108 | P105: 32.71185831 | Q105: 32.71168385
A106: =VINMAX -> 25.2 | B106: =VINMAX*((ROW()-10)/104) -> 23.26153846 | C106: =IF(B106>=$H$2,IF($D$2="CC", $G$2, B106/$G$2), 0) -> 15 | D106: =B2 -> 176 | E106: 40 | F106: =I_Cout_ss+C106 -> 15.00010667 | G106: 15.00010667 | H106: =G106-C106 -> 0.0001066666667 | I106: 0.02271634615 | J106: 2.180769231 | K106: 2180.769231 | L106: 7.111060544e-06 | M106: =1/COUTMAX*(E106/2-C106)*1000 -> 500 | N106: 0.6605261467 | O106: 29.07712985 | P106: =(A106-B106)*(I_Cout_ss*$Q$2+C106) -> 29.07720738 | Q106: =(A106-B106)*(I_Cout_ss*$R$2+C106) -> 29.07705231
A107: 25.2 | B107: 23.50384615 | C107: 15 | D107: =B2 -> 176 | E107: 40 | F107: 15.00010667 | G107: 15.00010667 | H107: 0.0001066666667 | I107: =(COUTMAX/1000000)*(B107-B106)/H107 -> 0.02271634615 | J107: 2.203485577 | K107: 2203.485577 | L107: 7.111060544e-06 | M107: 500 | N107: 0.5779603784 | O107: 25.44248862 | P107: 25.44255646 | Q107: 25.44242077
A108: 25.2 | B108: 23.74615385 | C108: 15 | D108: =B2 -> 176 | E108: 40 | F108: 15.00010667 | G108: 15.00010667 | H108: 0.0001066666667 | I108: 0.02271634615 | J108: 2.226201923 | K108: 2226.201923 | L108: 7.111060544e-06 | M108: 500 | N108: 0.4953946101 | O108: 21.80784738 | P108: 21.80790554 | Q108: 21.80778923
A109: 25.2 | B109: 23.98846154 | C109: 15 | D109: =B2 -> 176 | E109: 40 | F109: 15.00010667 | G109: 15.00010667 | H109: 0.0001066666667 | I109: 0.02271634615 | J109: 2.248918269 | K109: 2248.918269 | L109: 7.111060544e-06 | M109: 500 | N109: 0.4128288417 | O109: 18.17320615 | P109: 18.17325462 | Q109: 18.17315769
A110: 25.2 | B110: 24.23076923 | C110: 15 | D110: =B2 -> 176 | E110: 40 | F110: 15.00010667 | G110: 15.00010667 | H110: 0.0001066666667 | I110: 0.02271634615 | J110: 2.271634615 | K110: 2271.634615 | L110: 7.111060544e-06 | M110: 500 | N110: 0.3302630734 | O110: 14.53856492 | P110: 14.53860369 | Q110: 14.53852615
A111: 25.2 | B111: 24.47307692 | C111: =IF(B111>=$H$2,IF($D$2="CC", $G$2, B111/$G$2), 0) -> 15 | D111: =B2 -> 176 | E111: =$C$2 -> 40 | F111: =I_Cout_ss+C111 -> 15.00010667 | G111: 15.00010667 | H111: =G111-C111 -> 0.0001066666667 | I111: =(COUTMAX/1000000)*(B111-B110)/H111 -> 0.02271634615 | J111: =J110+I111 -> 2.294350962 | K111: 2294.350962 | L111: =H111/G111 -> 7.111060544e-06 | M111: 500 | N111: =I111*G111*(A111-B111) -> 0.247697305 | O111: 10.90392369 | P111: 10.90395277 | Q111: 10.90389462
A112: 25.2 | B112: 24.71538462 | C112: =IF(B112>=$H$2,IF($D$2="CC", $G$2, B112/$G$2), 0) -> 15 | D112: =B2 -> 176 | E112: =$C$2 -> 40 | F112: =I_Cout_ss+C112 -> 15.00010667 | G112: 15.00010667 | H112: =G112-C112 -> 0.0001066666667 | I112: =(COUTMAX/1000000)*(B112-B111)/H112 -> 0.02271634615 | J112: =J111+I112 -> 2.317067308 | K112: 2317.067308 | L112: =H112/G112 -> 7.111060544e-06 | M112: 500 | N112: =I112*G112*(A112-B112) -> 0.1651315367 | O112: 7.269282462 | P112: 7.269301846 | Q112: 7.269263077
A113: 25.2 | B113: 24.95769231 | C113: =IF(B113>=$H$2,IF($D$2="CC", $G$2, B113/$G$2), 0) -> 15 | D113: =B2 -> 176 | E113: =$C$2 -> 40 | F113: 15.00010667 | G113: 15.00010667 | H113: 0.0001066666667 | I113: 0.02271634615 | J113: 2.339783654 | K113: 2339.783654 | L113: 7.111060544e-06 | M113: 500 | N113: 0.08256576834 | O113: 3.634641231 | P113: 3.634650923 | Q113: 3.634631538
A114: 25.2 | B114: 25.2 | C114: =IF(B114>=$H$2,IF($D$2="CC", $G$2, B114/$G$2), 0) -> 15 | D114: =B2 -> 176 | E114: =$C$2 -> 40 | F114: =I_Cout_ss+C114 -> 15.00010667 | G114: 15.00010667 | H114: =G114-C114 -> 0.0001066666667 | I114: =(COUTMAX/1000000)*(B114-B113)/H114 -> 0.02271634615 | J114: =J113+I114 -> 2.3625 | K114: 2362.5 | L114: =H114/G114 -> 7.111060544e-06 | M114: 500 | N114: =I114*G114*(A114-B114) -> 0 | O114: 0 | P114: 0 | Q114: 0
K115: =K114+0.5 -> 2363 | N115: 0 | O115: 0
B120: PLIM | C120: ILIM | D120: Load type | F120: SS | G120: Load Value | H120: Load start | I120: Rs | J120: Vos,syst | M120: Start-time | O120: I_fet-I_L margin | Q120: I_g(hi/nom) | R120: I_g(low/nom)
B121: ='Design Calculator'!F52 -> 176 | C121: ='Design Calculator'!F42 -> 40 | D121: =IF( 'Design Calculator'!F28 = "Constant Current", "CC", "R") -> CC | F121: ='Design Calculator'!F30 -> Soft Start | G121: ='Design Calculator'!F29 -> 15 | H121: ='Design Calculator'!F27 -> 0 | I121: =RsEFF -> 1.5 | J121: ='Device Parameters'!E12 -> 0.001 | M121: =J233*1000 -> 2362.5 | N121: ms | O121: =MIN(L129:L230) -> 7.111060544e-06 | Q121: ='Device Parameters'!E30/'Device Parameters'!D30 -> 1.375 | R121: ='Device Parameters'!C30/'Device Parameters'!D30 -> 0.625
D123: To avoid timer running: Iload + Icap,ss < IFET_PLIM / 2 => SS_RATE < 1/Cout * (IFET_PLIM/2 - ILOAD) | M123: Max_SS_Rate | N123: =MIN(M129:M233) -> -1150.793651 | O123: V/ms | P123: max_power_typ | Q123: =MAX(O129:O233) -> 378.002688 | R123: W
M124: FET_ENERGY | N124: =SUM(N129:N233) -> 442.2222552 | O124: J | P124: max_power_high | Q124: =MAX(P129:P233) -> 378.003696 | R124: W
P125: max_power_low | Q125: =MAX(Q129:Q233) -> 378.00168 | R125: W
A126: VIN | B126: Vout | C126: ILOAD | D126: PLIM | E126: IFET_PLIM | F126: I_FET_SS | G126: IFET | H126: ICAP | I126: Dt | J126: Time | K126: Tiime (ms) | L126: I_Fet-IL margin | M126: Max _allowed SS_rate | N126: FET_Energy | O126: Power (W) | P126: P_ fast_SS | Q126: P_slow_SS
K127: -1 | O127: 0
K128: -0.01 | O128: 0
A129: =VINMAX -> 25.2 | B129: =VINMAX*((ROW()-129)/104) -> 0 | C129: =IF(B129>=$H$121,IF($D$121="CC", $G$121, B129/$G$121), 0) -> 15 | D129: =B121 -> 176 | E129: =MIN(D129/(A129-B129),$C$121) -> 6.984126984 | F129: =Equations!$G$69+C129 -> 15.00010667 | G129: =IF($F$121="Soft Start", F129, E129) -> 15.00010667 | H129: =G129-C129 -> 0.0001066666667 | I129: =(COUTMAX/1000000)*(B129)/H129 -> 0 | J129: =I129 -> 0 | K129: =J129*1000 -> 0 | L129: =H129/G129 -> 7.111060544e-06 | M129: =1/COUTMAX*(E129/2-C129)*1000 -> -1150.793651 | N129: =I129*G129*(A129-B129) -> 0 | O129: =G129*(A129-B129) -> 378.002688 | P129: =(A129-B129)*(Equations!$G$69*$Q$121+C129) -> 378.003696 | Q129: =(A129-B129)*(Equations!$G$69*$R$121+C129) -> 378.00168
A130: 25.2 | B130: 0.2423076923 | C130: =IF(B130>=$H$121,IF($D$121="CC", $G$121, B130/$G$121), 0) -> 15 | D130: =B121 -> 176 | E130: =MIN(D130/(A130-B130),$C$121) -> 7.051934042 | F130: =Equations!$G$69+C130 -> 15.00010667 | G130: =IF($F$121="Soft Start", F130, E130) -> 15.00010667 | H130: 0.0001066666667 | I130: =(COUTMAX/1000000)*(B130-B129)/H130 -> 0.02271634615 | J130: =J129+I130 -> 0.02271634615 | K130: =J130*1000 -> 22.71634615 | L130: =H130/G130 -> 7.111060544e-06 | M130: -1147.403298 | N130: =I130*G130*(A130-B130) -> 8.504274139 | O130: =G130*(A130-B130) -> 374.3680468 | P130: =(A130-B130)*(Equations!$G$69*$Q$121+C130) -> 374.3690451 | Q130: =(A130-B130)*(Equations!$G$69*$R$121+C130) -> 374.3670485
A131: 25.2 | B131: 0.4846153846 | C131: 15 | D131: =B121 -> 176 | E131: 7.12107065 | F131: =Equations!$G$69+C131 -> 15.00010667 | G131: 15.00010667 | H131: 0.0001066666667 | I131: 0.02271634615 | J131: =J130+I131 -> 0.04543269231 | K131: 45.43269231 | L131: 7.111060544e-06 | M131: -1143.946467 | N131: =I131*G131*(A131-B131) -> 8.421708371 | O131: 370.7334055 | P131: =(A131-B131)*(Equations!$G$69*$Q$121+C131) -> 370.7343942 | Q131: =(A131-B131)*(Equations!$G$69*$R$121+C131) -> 370.7324169 | X131: Start-up slop
A132: 25.2 | B132: 0.7269230769 | C132: 15 | D132: =B121 -> 176 | E132: 7.1915763 | F132: =Equations!$G$69+C132 -> 15.00010667 | G132: 15.00010667 | H132: 0.0001066666667 | I132: 0.02271634615 | J132: 0.06814903846 | K132: 68.14903846 | L132: 7.111060544e-06 | M132: -1140.421185 | N132: =I132*G132*(A132-B132) -> 8.339142603 | O132: 367.0987643 | P132: =(A132-B132)*(Equations!$G$69*$Q$121+C132) -> 367.0997432 | Q132: =(A132-B132)*(Equations!$G$69*$R$121+C132) -> 367.0977854 | X132: QG | Y132: 0.3
A133: 25.2 | B133: 0.9692307692 | C133: 15 | D133: =B121 -> 176 | E133: 7.263492063 | F133: =Equations!$G$69+C133 -> 15.00010667 | G133: 15.00010667 | H133: 0.0001066666667 | I133: 0.02271634615 | J133: 0.09086538461 | K133: 90.86538461 | L133: 7.111060544e-06 | M133: -1136.825397 | N133: 8.256576834 | O133: 363.4641231 | P133: =(A133-B133)*(Equations!$G$69*$Q$121+C133) -> 363.4650923 | Q133: =(A133-B133)*(Equations!$G$69*$R$121+C133) -> 363.4631538 | X133: I_Src | Y133: 0.3
A134: 25.2 | B134: 1.211538462 | C134: 15 | D134: =B121 -> 176 | E134: 7.33686067 | F134: =Equations!$G$69+C134 -> 15.00010667 | G134: 15.00010667 | H134: 0.0001066666667 | I134: 0.02271634615 | J134: 0.1135817308 | K134: 113.5817308 | L134: 7.111060544e-06 | M134: -1133.156966 | N134: 8.174011066 | O134: 359.8294818 | P134: =(A134-B134)*(Equations!$G$69*$Q$121+C134) -> 359.8304414 | Q134: =(A134-B134)*(Equations!$G$69*$R$121+C134) -> 359.8285223 | X134: RMS | Y134: =SQRT(Y133^2+Y132^2) -> 0.4242640687
A135: 25.2 | B135: 1.453846154 | C135: 15 | D135: =B121 -> 176 | E135: 7.411726595 | F135: =Equations!$G$69+C135 -> 15.00010667 | G135: 15.00010667 | H135: 0.0001066666667 | I135: 0.02271634615 | J135: 0.1362980769 | K135: 136.2980769 | L135: 7.111060544e-06 | M135: -1129.41367 | N135: 8.091445298 | O135: 356.1948406 | P135: =(A135-B135)*(Equations!$G$69*$Q$121+C135) -> 356.1957905 | Q135: =(A135-B135)*(Equations!$G$69*$R$121+C135) -> 356.1938908
A136: 25.2 | B136: 1.696153846 | C136: 15 | D136: =B121 -> 176 | E136: 7.488136148 | F136: =Equations!$G$69+C136 -> 15.00010667 | G136: 15.00010667 | H136: 0.0001066666667 | I136: 0.02271634615 | J136: 0.1590144231 | K136: 159.0144231 | L136: 7.111060544e-06 | M136: -1125.593193 | N136: 8.008879529 | O136: 352.5601994 | P136: =(A136-B136)*(Equations!$G$69*$Q$121+C136) -> 352.5611395 | Q136: =(A136-B136)*(Equations!$G$69*$R$121+C136) -> 352.5592592 | X136: PLIM | Y136: 0.3
A137: 25.2 | B137: 1.938461538 | C137: 15 | D137: =B121 -> 176 | E137: 7.566137566 | F137: =Equations!$G$69+C137 -> 15.00010667 | G137: 15.00010667 | H137: 0.0001066666667 | I137: 0.02271634615 | J137: 0.1817307692 | K137: 181.7307692 | L137: 7.111060544e-06 | M137: -1121.693122 | N137: 7.926313761 | O137: 348.9255582 | P137: =(A137-B137)*(Equations!$G$69*$Q$121+C137) -> 348.9264886 | Q137: =(A137-B137)*(Equations!$G$69*$R$121+C137) -> 348.9246277 | X137: combined | Y137: =MAX(Y134:Y136) -> 0.4242640687
A138: 25.2 | B138: 2.180769231 | C138: 15 | D138: =B121 -> 176 | E138: 7.645781119 | F138: =Equations!$G$69+C138 -> 15.00010667 | G138: 15.00010667 | H138: 0.0001066666667 | I138: 0.02271634615 | J138: 0.2044471154 | K138: 204.4471154 | L138: 7.111060544e-06 | M138: -1117.710944 | N138: 7.843747993 | O138: 345.2909169 | P138: =(A138-B138)*(Equations!$G$69*$Q$121+C138) -> 345.2918377 | Q138: =(A138-B138)*(Equations!$G$69*$R$121+C138) -> 345.2899962
A139: 25.2 | B139: 2.423076923 | C139: 15 | D139: =B121 -> 176 | E139: 7.727119216 | F139: =Equations!$G$69+C139 -> 15.00010667 | G139: 15.00010667 | H139: 0.0001066666667 | I139: 0.02271634615 | J139: 0.2271634615 | K139: 227.1634615 | L139: 7.111060544e-06 | M139: -1113.644039 | N139: 7.761182224 | O139: 341.6562757 | P139: =(A139-B139)*(Equations!$G$69*$Q$121+C139) -> 341.6571868 | Q139: =(A139-B139)*(Equations!$G$69*$R$121+C139) -> 341.6553646 | X139: I_timer | Y139: 0.2
A140: 25.2 | B140: 2.665384615 | C140: 15 | D140: =B121 -> 176 | E140: 7.81020652 | F140: =Equations!$G$69+C140 -> 15.00010667 | G140: 15.00010667 | H140: 0.0001066666667 | I140: 0.02271634615 | J140: 0.2498798077 | K140: 249.8798077 | L140: 7.111060544e-06 | M140: -1109.489674 | N140: 7.678616456 | O140: 338.0216345 | P140: =(A140-B140)*(Equations!$G$69*$Q$121+C140) -> 338.0225358 | Q140: =(A140-B140)*(Equations!$G$69*$R$121+C140) -> 338.0207331 | X140: C_timer | Y140: 0.2
A141: 25.2 | B141: 2.907692308 | C141: 15 | D141: =B121 -> 176 | E141: 7.895100069 | F141: =Equations!$G$69+C141 -> 15.00010667 | G141: 15.00010667 | H141: 0.0001066666667 | I141: 0.02271634615 | J141: 0.2725961538 | K141: 272.5961538 | L141: 7.111060544e-06 | M141: -1105.244997 | N141: 7.596050688 | O141: 334.3869932 | P141: =(A141-B141)*(Equations!$G$69*$Q$121+C141) -> 334.3878849 | Q141: =(A141-B141)*(Equations!$G$69*$R$121+C141) -> 334.3861015 | X141: RMS | Y141: =SQRT(Y140^2+Y139^2) -> 0.2828427125
A142: 25.2 | B142: 3.15 | C142: 15 | D142: =B121 -> 176 | E142: 7.98185941 | F142: =Equations!$G$69+C142 -> 15.00010667 | G142: 15.00010667 | H142: 0.0001066666667 | I142: 0.02271634615 | J142: 0.2953125 | K142: 295.3125 | L142: 7.111060544e-06 | M142: -1100.907029 | N142: 7.513484919 | O142: 330.752352 | P142: =(A142-B142)*(Equations!$G$69*$Q$121+C142) -> 330.753234 | Q142: =(A142-B142)*(Equations!$G$69*$R$121+C142) -> 330.75147
A143: 25.2 | B143: 3.392307692 | C143: 15 | D143: =B121 -> 176 | E143: 8.070546737 | F143: =Equations!$G$69+C143 -> 15.00010667 | G143: 15.00010667 | H143: 0.0001066666667 | I143: 0.02271634615 | J143: 0.3180288462 | K143: 318.0288462 | L143: 7.111060544e-06 | M143: -1096.472663 | N143: 7.430919151 | O143: 327.1177108 | P143: =(A143-B143)*(Equations!$G$69*$Q$121+C143) -> 327.1185831 | Q143: =(A143-B143)*(Equations!$G$69*$R$121+C143) -> 327.1168385 | X143: Final | Y143: =SQRT(Y137^2+Y141^2) -> 0.5099019514
A144: 25.2 | B144: 3.634615385 | C144: 15 | D144: =B121 -> 176 | E144: 8.161227038 | F144: =Equations!$G$69+C144 -> 15.00010667 | G144: 15.00010667 | H144: 0.0001066666667 | I144: 0.02271634615 | J144: 0.3407451923 | K144: 340.7451923 | L144: 7.111060544e-06 | M144: -1091.938648 | N144: 7.348353382 | O144: 323.4830695 | P144: =(A144-B144)*(Equations!$G$69*$Q$121+C144) -> 323.4839322 | Q144: =(A144-B144)*(Equations!$G$69*$R$121+C144) -> 323.4822069
A145: 25.2 | B145: 3.876923077 | C145: 15 | D145: =B121 -> 176 | E145: 8.253968254 | F145: =Equations!$G$69+C145 -> 15.00010667 | G145: 15.00010667 | H145: 0.0001066666667 | I145: 0.02271634615 | J145: 0.3634615385 | K145: 363.4615385 | L145: 7.111060544e-06 | M145: -1087.301587 | N145: 7.265787614 | O145: 319.8484283 | P145: =(A145-B145)*(Equations!$G$69*$Q$121+C145) -> 319.8492812 | Q145: =(A145-B145)*(Equations!$G$69*$R$121+C145) -> 319.8475754
A146: 25.2 | B146: 4.119230769 | C146: 15 | D146: =B121 -> 176 | E146: 8.348841452 | F146: =Equations!$G$69+C146 -> 15.00010667 | G146: 15.00010667 | H146: 0.0001066666667 | I146: 0.02271634615 | J146: 0.3861778846 | K146: 386.1778846 | L146: 7.111060544e-06 | M146: -1082.557927 | N146: 7.183221846 | O146: 316.2137871 | P146: =(A146-B146)*(Equations!$G$69*$Q$121+C146) -> 316.2146303 | Q146: =(A146-B146)*(Equations!$G$69*$R$121+C146) -> 316.2129438
A147: 25.2 | B147: 4.361538462 | C147: 15 | D147: =B121 -> 176 | E147: 8.445921004 | F147: =Equations!$G$69+C147 -> 15.00010667 | G147: 15.00010667 | H147: 0.0001066666667 | I147: 0.02271634615 | J147: 0.4088942308 | K147: 408.8942308 | L147: 7.111060544e-06 | M147: -1077.70395 | N147: 7.100656077 | O147: 312.5791458 | P147: =(A147-B147)*(Equations!$G$69*$Q$121+C147) -> 312.5799794 | Q147: =(A147-B147)*(Equations!$G$69*$R$121+C147) -> 312.5783123
A148: 25.2 | B148: 4.603846154 | C148: 15 | D148: =B121 -> 176 | E148: 8.545284781 | F148: =Equations!$G$69+C148 -> 15.00010667 | G148: 15.00010667 | H148: 0.0001066666667 | I148: 0.02271634615 | J148: 0.4316105769 | K148: 431.6105769 | L148: 7.111060544e-06 | M148: -1072.735761 | N148: 7.018090309 | O148: 308.9445046 | P148: =(A148-B148)*(Equations!$G$69*$Q$121+C148) -> 308.9453285 | Q148: =(A148-B148)*(Equations!$G$69*$R$121+C148) -> 308.9436808
A149: 25.2 | B149: 4.846153846 | C149: 15 | D149: =B121 -> 176 | E149: 8.647014361 | F149: =Equations!$G$69+C149 -> 15.00010667 | G149: 15.00010667 | H149: 0.0001066666667 | I149: 0.02271634615 | J149: 0.4543269231 | K149: 454.3269231 | L149: 7.111060544e-06 | M149: -1067.649282 | N149: 6.935524541 | O149: 305.3098634 | P149: =(A149-B149)*(Equations!$G$69*$Q$121+C149) -> 305.3106775 | Q149: =(A149-B149)*(Equations!$G$69*$R$121+C149) -> 305.3090492
A150: 25.2 | B150: 5.088461538 | C150: 15 | D150: =B121 -> 176 | E150: 8.751195257 | F150: =Equations!$G$69+C150 -> 15.00010667 | G150: 15.00010667 | H150: 0.0001066666667 | I150: 0.02271634615 | J150: 0.4770432692 | K150: 477.0432692 | L150: 7.111060544e-06 | M150: -1062.440237 | N150: 6.852958772 | O150: 301.6752222 | P150: =(A150-B150)*(Equations!$G$69*$Q$121+C150) -> 301.6760266 | Q150: =(A150-B150)*(Equations!$G$69*$R$121+C150) -> 301.6744177
A151: 25.2 | B151: 5.330769231 | C151: 15 | D151: =B121 -> 176 | E151: 8.857917151 | F151: =Equations!$G$69+C151 -> 15.00010667 | G151: 15.00010667 | H151: 0.0001066666667 | I151: 0.02271634615 | J151: 0.4997596154 | K151: 499.7596154 | L151: 7.111060544e-06 | M151: -1057.104142 | N151: 6.770393004 | O151: 298.0405809 | P151: =(A151-B151)*(Equations!$G$69*$Q$121+C151) -> 298.0413757 | Q151: =(A151-B151)*(Equations!$G$69*$R$121+C151) -> 298.0397862
A152: 25.2 | B152: 5.573076923 | C152: 15 | D152: =B121 -> 176 | E152: 8.967274152 | F152: =Equations!$G$69+C152 -> 15.00010667 | G152: 15.00010667 | H152: 0.0001066666667 | I152: 0.02271634615 | J152: 0.5224759615 | K152: 522.4759615 | L152: 7.111060544e-06 | M152: -1051.636292 | N152: 6.687827236 | O152: 294.4059397 | P152: =(A152-B152)*(Equations!$G$69*$Q$121+C152) -> 294.4067248 | Q152: =(A152-B152)*(Equations!$G$69*$R$121+C152) -> 294.4051546
A153: 25.2 | B153: 5.815384615 | C153: 15 | D153: =B121 -> 176 | E153: 9.079365079 | F153: =Equations!$G$69+C153 -> 15.00010667 | G153: 15.00010667 | H153: 0.0001066666667 | I153: 0.02271634615 | J153: 0.5451923077 | K153: 545.1923077 | L153: 7.111060544e-06 | M153: -1046.031746 | N153: 6.605261467 | O153: 290.7712985 | P153: =(A153-B153)*(Equations!$G$69*$Q$121+C153) -> 290.7720738 | Q153: =(A153-B153)*(Equations!$G$69*$R$121+C153) -> 290.7705231
A154: 25.2 | B154: 6.057692308 | C154: 15 | D154: =B121 -> 176 | E154: 9.194293751 | F154: =Equations!$G$69+C154 -> 15.00010667 | G154: 15.00010667 | H154: 0.0001066666667 | I154: 0.02271634615 | J154: 0.5679086538 | K154: 567.9086538 | L154: 7.111060544e-06 | M154: -1040.285312 | N154: 6.522695699 | O154: 287.1366572 | P154: =(A154-B154)*(Equations!$G$69*$Q$121+C154) -> 287.1374229 | Q154: =(A154-B154)*(Equations!$G$69*$R$121+C154) -> 287.1358915
A155: 25.2 | B155: 6.3 | C155: 15 | D155: =B121 -> 176 | E155: 9.312169312 | F155: =Equations!$G$69+C155 -> 15.00010667 | G155: 15.00010667 | H155: 0.0001066666667 | I155: 0.02271634615 | J155: 0.590625 | K155: 590.625 | L155: 7.111060544e-06 | M155: -1034.391534 | N155: 6.440129931 | O155: 283.502016 | P155: =(A155-B155)*(Equations!$G$69*$Q$121+C155) -> 283.502772 | Q155: =(A155-B155)*(Equations!$G$69*$R$121+C155) -> 283.50126
A156: 25.2 | B156: 6.542307692 | C156: 15 | D156: =B121 -> 176 | E156: 9.433106576 | F156: =Equations!$G$69+C156 -> 15.00010667 | G156: 15.00010667 | H156: 0.0001066666667 | I156: 0.02271634615 | J156: 0.6133413461 | K156: 613.3413461 | L156: 7.111060544e-06 | M156: -1028.344671 | N156: 6.357564162 | O156: 279.8673748 | P156: =(A156-B156)*(Equations!$G$69*$Q$121+C156) -> 279.8681211 | Q156: =(A156-B156)*(Equations!$G$69*$R$121+C156) -> 279.8666285
A157: 25.2 | B157: 6.784615385 | C157: 15 | D157: =B121 -> 176 | E157: 9.557226399 | F157: =Equations!$G$69+C157 -> 15.00010667 | G157: 15.00010667 | H157: 0.0001066666667 | I157: 0.02271634615 | J157: 0.6360576923 | K157: 636.0576923 | L157: 7.111060544e-06 | M157: -1022.13868 | N157: 6.274998394 | O157: 276.2327335 | P157: =(A157-B157)*(Equations!$G$69*$Q$121+C157) -> 276.2334702 | Q157: =(A157-B157)*(Equations!$G$69*$R$121+C157) -> 276.2319969
A158: 25.2 | B158: 7.026923077 | C158: 15 | D158: =B121 -> 176 | E158: 9.684656085 | F158: =Equations!$G$69+C158 -> 15.00010667 | G158: 15.00010667 | H158: 0.0001066666667 | I158: 0.02271634615 | J158: 0.6587740385 | K158: 658.7740385 | L158: 7.111060544e-06 | M158: -1015.767196 | N158: 6.192432626 | O158: 272.5980923 | P158: =(A158-B158)*(Equations!$G$69*$Q$121+C158) -> 272.5988192 | Q158: =(A158-B158)*(Equations!$G$69*$R$121+C158) -> 272.5973654
A159: 25.2 | B159: 7.269230769 | C159: 15 | D159: =B121 -> 176 | E159: 9.815529816 | F159: =Equations!$G$69+C159 -> 15.00010667 | G159: 15.00010667 | H159: 0.0001066666667 | I159: 0.02271634615 | J159: 0.6814903846 | K159: 681.4903846 | L159: 7.111060544e-06 | M159: -1009.223509 | N159: 6.109866857 | O159: 268.9634511 | P159: =(A159-B159)*(Equations!$G$69*$Q$121+C159) -> 268.9641683 | Q159: =(A159-B159)*(Equations!$G$69*$R$121+C159) -> 268.9627338
A160: 25.2 | B160: 7.511538462 | C160: 15 | D160: =B121 -> 176 | E160: 9.949989128 | F160: =Equations!$G$69+C160 -> 15.00010667 | G160: 15.00010667 | H160: 0.0001066666667 | I160: 0.02271634615 | J160: 0.7042067308 | K160: 704.2067308 | L160: 7.111060544e-06 | M160: -1002.500544 | N160: 6.027301089 | O160: 265.3288098 | P160: =(A160-B160)*(Equations!$G$69*$Q$121+C160) -> 265.3295174 | Q160: =(A160-B160)*(Equations!$G$69*$R$121+C160) -> 265.3281023
A161: 25.2 | B161: =VINMAX*((ROW()-129)/104) -> 7.753846154 | C161: 15 | D161: =B121 -> 176 | E161: 10.08818342 | F161: =Equations!$G$69+C161 -> 15.00010667 | G161: 15.00010667 | H161: 0.0001066666667 | I161: 0.02271634615 | J161: 0.7269230769 | K161: 726.9230769 | L161: 7.111060544e-06 | M161: -995.5908289 | N161: 5.944735321 | O161: 261.6941686 | P161: =(A161-B161)*(Equations!$G$69*$Q$121+C161) -> 261.6948665 | Q161: =(A161-B161)*(Equations!$G$69*$R$121+C161) -> 261.6934708
A162: 25.2 | B162: 7.996153846 | C162: 15 | D162: =B121 -> 176 | E162: 10.23027051 | F162: =Equations!$G$69+C162 -> 15.00010667 | G162: 15.00010667 | H162: 0.0001066666667 | I162: 0.02271634615 | J162: 0.7496394231 | K162: 749.6394231 | L162: 7.111060544e-06 | M162: -988.4864744 | N162: 5.862169552 | O162: 258.0595274 | P162: =(A162-B162)*(Equations!$G$69*$Q$121+C162) -> 258.0602155 | Q162: =(A162-B162)*(Equations!$G$69*$R$121+C162) -> 258.0588392
A163: 25.2 | B163: 8.238461538 | C163: 15 | D163: =B121 -> 176 | E163: 10.37641723 | F163: =Equations!$G$69+C163 -> 15.00010667 | G163: 15.00010667 | H163: 0.0001066666667 | I163: 0.02271634615 | J163: 0.7723557692 | K163: 772.3557692 | L163: 7.111060544e-06 | M163: -981.1791383 | N163: 5.779603784 | O163: 254.4248862 | P163: =(A163-B163)*(Equations!$G$69*$Q$121+C163) -> 254.4255646 | Q163: =(A163-B163)*(Equations!$G$69*$R$121+C163) -> 254.4242077
A164: 25.2 | B164: 8.480769231 | C164: 15 | D164: =B121 -> 176 | E164: 10.52680009 | F164: =Equations!$G$69+C164 -> 15.00010667 | G164: 15.00010667 | H164: 0.0001066666667 | I164: 0.02271634615 | J164: 0.7950721154 | K164: 795.0721154 | L164: 7.111060544e-06 | M164: -973.6599954 | N164: 5.697038016 | O164: 250.7902449 | P164: =(A164-B164)*(Equations!$G$69*$Q$121+C164) -> 250.7909137 | Q164: =(A164-B164)*(Equations!$G$69*$R$121+C164) -> 250.7895762
A165: 25.2 | B165: 8.723076923 | C165: 15 | D165: =B121 -> 176 | E165: 10.68160598 | F165: =Equations!$G$69+C165 -> 15.00010667 | G165: 15.00010667 | H165: 0.0001066666667 | I165: 0.02271634615 | J165: 0.8177884615 | K165: 817.7884615 | L165: 7.111060544e-06 | M165: -965.9197012 | N165: 5.614472247 | O165: 247.1556037 | P165: =(A165-B165)*(Equations!$G$69*$Q$121+C165) -> 247.1562628 | Q165: =(A165-B165)*(Equations!$G$69*$R$121+C165) -> 247.1549446
A166: 25.2 | B166: 8.965384615 | C166: 15 | D166: =B121 -> 176 | E166: 10.84103293 | F166: =Equations!$G$69+C166 -> 15.00010667 | G166: 15.00010667 | H166: 0.0001066666667 | I166: 0.02271634615 | J166: 0.8405048077 | K166: 840.5048077 | L166: 7.111060544e-06 | M166: -957.9483535 | N166: 5.531906479 | O166: 243.5209625 | P166: =(A166-B166)*(Equations!$G$69*$Q$121+C166) -> 243.5216118 | Q166: =(A166-B166)*(Equations!$G$69*$R$121+C166) -> 243.5203131
A167: 25.2 | B167: 9.207692308 | C167: 15 | D167: =B121 -> 176 | E167: 11.00529101 | F167: =Equations!$G$69+C167 -> 15.00010667 | G167: 15.00010667 | H167: 0.0001066666667 | I167: 0.02271634615 | J167: 0.8632211538 | K167: 863.2211538 | L167: 7.111060544e-06 | M167: -949.7354497 | N167: 5.449340711 | O167: 239.8863212 | P167: =(A167-B167)*(Equations!$G$69*$Q$121+C167) -> 239.8869609 | Q167: =(A167-B167)*(Equations!$G$69*$R$121+C167) -> 239.8856815
A168: 25.2 | B168: 9.45 | C168: 15 | D168: =B121 -> 176 | E168: 11.17460317 | F168: =Equations!$G$69+C168 -> 15.00010667 | G168: 15.00010667 | H168: 0.0001066666667 | I168: 0.02271634615 | J168: 0.8859375 | K168: 885.9375 | L168: 7.111060544e-06 | M168: -941.2698413 | N168: 5.366774942 | O168: 236.25168 | P168: =(A168-B168)*(Equations!$G$69*$Q$121+C168) -> 236.25231 | Q168: =(A168-B168)*(Equations!$G$69*$R$121+C168) -> 236.25105
A169: 25.2 | B169: 9.692307692 | C169: 15 | D169: =B121 -> 176 | E169: 11.34920635 | F169: =Equations!$G$69+C169 -> 15.00010667 | G169: 15.00010667 | H169: 0.0001066666667 | I169: 0.02271634615 | J169: 0.9086538461 | K169: 908.6538461 | L169: 7.111060544e-06 | M169: -932.5396825 | N169: 5.284209174 | O169: 232.6170388 | P169: =(A169-B169)*(Equations!$G$69*$Q$121+C169) -> 232.6176591 | Q169: =(A169-B169)*(Equations!$G$69*$R$121+C169) -> 232.6164185
A170: 25.2 | B170: 9.934615385 | C170: 15 | D170: =B121 -> 176 | E170: 11.52935248 | F170: =Equations!$G$69+C170 -> 15.00010667 | G170: 15.00010667 | H170: 0.0001066666667 | I170: 0.02271634615 | J170: 0.9313701923 | K170: 931.3701923 | L170: 7.111060544e-06 | M170: -923.5323759 | N170: 5.201643406 | O170: 228.9823975 | P170: =(A170-B170)*(Equations!$G$69*$Q$121+C170) -> 228.9830082 | Q170: =(A170-B170)*(Equations!$G$69*$R$121+C170) -> 228.9817869
A171: 25.2 | B171: 10.17692308 | C171: 15 | D171: =B121 -> 176 | E171: 11.71530978 | F171: =Equations!$G$69+C171 -> 15.00010667 | G171: 15.00010667 | H171: 0.0001066666667 | I171: 0.02271634615 | J171: 0.9540865385 | K171: 954.0865385 | L171: 7.111060544e-06 | M171: -914.234511 | N171: 5.119077637 | O171: 225.3477563 | P171: =(A171-B171)*(Equations!$G$69*$Q$121+C171) -> 225.3483572 | Q171: =(A171-B171)*(Equations!$G$69*$R$121+C171) -> 225.3471554
A172: 25.2 | B172: 10.41923077 | C172: 15 | D172: =B121 -> 176 | E172: 11.90736404 | F172: =Equations!$G$69+C172 -> 15.00010667 | G172: 15.00010667 | H172: 0.0001066666667 | I172: 0.02271634615 | J172: 0.9768028846 | K172: 976.8028846 | L172: 7.111060544e-06 | M172: -904.6317981 | N172: 5.036511869 | O172: 221.7131151 | P172: =(A172-B172)*(Equations!$G$69*$Q$121+C172) -> 221.7137063 | Q172: =(A172-B172)*(Equations!$G$69*$R$121+C172) -> 221.7125238
A173: 25.2 | B173: 10.66153846 | C173: 15 | D173: =B121 -> 176 | E173: 12.10582011 | F173: =Equations!$G$69+C173 -> 15.00010667 | G173: 15.00010667 | H173: 0.0001066666667 | I173: 0.02271634615 | J173: 0.9995192308 | K173: 999.5192308 | L173: 7.111060544e-06 | M173: -894.7089947 | N173: 4.953946101 | O173: 218.0784738 | P173: =(A173-B173)*(Equations!$G$69*$Q$121+C173) -> 218.0790554 | Q173: =(A173-B173)*(Equations!$G$69*$R$121+C173) -> 218.0778923
A174: 25.2 | B174: 10.90384615 | C174: 15 | D174: =B121 -> 176 | E174: 12.3110035 | F174: =Equations!$G$69+C174 -> 15.00010667 | G174: 15.00010667 | H174: 0.0001066666667 | I174: 0.02271634615 | J174: 1.022235577 | K174: 1022.235577 | L174: 7.111060544e-06 | M174: -884.4498251 | N174: 4.871380332 | O174: 214.4438326 | P174: =(A174-B174)*(Equations!$G$69*$Q$121+C174) -> 214.4444045 | Q174: =(A174-B174)*(Equations!$G$69*$R$121+C174) -> 214.4432608
A175: 25.2 | B175: 11.14615385 | C175: 15 | D175: =B121 -> 176 | E175: 12.52326218 | F175: =Equations!$G$69+C175 -> 15.00010667 | G175: 15.00010667 | H175: 0.0001066666667 | I175: 0.02271634615 | J175: 1.044951923 | K175: 1044.951923 | L175: 7.111060544e-06 | M175: -873.8368911 | N175: 4.788814564 | O175: 210.8091914 | P175: =(A175-B175)*(Equations!$G$69*$Q$121+C175) -> 210.8097535 | Q175: =(A175-B175)*(Equations!$G$69*$R$121+C175) -> 210.8086292
A176: 25.2 | B176: 11.38846154 | C176: 15 | D176: =B121 -> 176 | E176: 12.74296853 | F176: =Equations!$G$69+C176 -> 15.00010667 | G176: 15.00010667 | H176: 0.0001066666667 | I176: 0.02271634615 | J176: 1.067668269 | K176: 1067.668269 | L176: 7.111060544e-06 | M176: -862.8515734 | N176: 4.706248796 | O176: 207.1745502 | P176: =(A176-B176)*(Equations!$G$69*$Q$121+C176) -> 207.1751026 | Q176: =(A176-B176)*(Equations!$G$69*$R$121+C176) -> 207.1739977
A177: 25.2 | B177: 11.63076923 | C177: 15 | D177: =B121 -> 176 | E177: 12.97052154 | F177: =Equations!$G$69+C177 -> 15.00010667 | G177: 15.00010667 | H177: 0.0001066666667 | I177: 0.02271634615 | J177: 1.090384615 | K177: 1090.384615 | L177: 7.111060544e-06 | M177: -851.4739229 | N177: 4.623683027 | O177: 203.5399089 | P177: =(A177-B177)*(Equations!$G$69*$Q$121+C177) -> 203.5404517 | Q177: =(A177-B177)*(Equations!$G$69*$R$121+C177) -> 203.5393662
A178: 25.2 | B178: 11.87307692 | C178: 15 | D178: =B121 -> 176 | E178: 13.20634921 | F178: =Equations!$G$69+C178 -> 15.00010667 | G178: 15.00010667 | H178: 0.0001066666667 | I178: 0.02271634615 | J178: 1.113100962 | K178: 1113.100962 | L178: 7.111060544e-06 | M178: -839.6825397 | N178: 4.541117259 | O178: 199.9052677 | P178: =(A178-B178)*(Equations!$G$69*$Q$121+C178) -> 199.9058008 | Q178: =(A178-B178)*(Equations!$G$69*$R$121+C178) -> 199.9047346
A179: 25.2 | B179: 12.11538462 | C179: 15 | D179: =B121 -> 176 | E179: 13.45091123 | F179: =Equations!$G$69+C179 -> 15.00010667 | G179: 15.00010667 | H179: 0.0001066666667 | I179: 0.02271634615 | J179: 1.135817308 | K179: 1135.817308 | L179: 7.111060544e-06 | M179: -827.4544386 | N179: 4.458551491 | O179: 196.2706265 | P179: =(A179-B179)*(Equations!$G$69*$Q$121+C179) -> 196.2711498 | Q179: =(A179-B179)*(Equations!$G$69*$R$121+C179) -> 196.2701031
A180: 25.2 | B180: 12.35769231 | C180: 15 | D180: =B121 -> 176 | E180: 13.70470201 | F180: =Equations!$G$69+C180 -> 15.00010667 | G180: 15.00010667 | H180: 0.0001066666667 | I180: 0.02271634615 | J180: 1.158533654 | K180: 1158.533654 | L180: 7.111060544e-06 | M180: -814.7648997 | N180: =I180*G180*(A180-B180) -> 4.375985722 | O180: 192.6359852 | P180: =(A180-B180)*(Equations!$G$69*$Q$121+C180) -> 192.6364989 | Q180: =(A180-B180)*(Equations!$G$69*$R$121+C180) -> 192.6354715
A181: 25.2 | B181: 12.6 | C181: 15 | D181: =B121 -> 176 | E181: 13.96825397 | F181: =Equations!$G$69+C181 -> 15.00010667 | G181: 15.00010667 | H181: 0.0001066666667 | I181: 0.02271634615 | J181: 1.18125 | K181: 1181.25 | L181: 7.111060544e-06 | M181: -801.5873016 | N181: =I181*G181*(A181-B181) -> 4.293419954 | O181: 189.001344 | P181: =(A181-B181)*(Equations!$G$69*$Q$121+C181) -> 189.001848 | Q181: =(A181-B181)*(Equations!$G$69*$R$121+C181) -> 189.00084
A182: 25.2 | B182: 12.84230769 | C182: 15 | D182: =B121 -> 176 | E182: 14.2421413 | F182: =Equations!$G$69+C182 -> 15.00010667 | G182: 15.00010667 | H182: 0.0001066666667 | I182: 0.02271634615 | J182: 1.203966346 | K182: 1203.966346 | L182: 7.111060544e-06 | M182: -787.892935 | N182: 4.210854185 | O182: 185.3667028 | P182: =(A182-B182)*(Equations!$G$69*$Q$121+C182) -> 185.3671971 | Q182: =(A182-B182)*(Equations!$G$69*$R$121+C182) -> 185.3662085
A183: 25.2 | B183: 13.08461538 | C183: 15 | D183: =B121 -> 176 | E183: 14.52698413 | F183: =Equations!$G$69+C183 -> 15.00010667 | G183: 15.00010667 | H183: 0.0001066666667 | I183: 0.02271634615 | J183: 1.226682692 | K183: 1226.682692 | L183: 7.111060544e-06 | M183: -773.6507937 | N183: 4.128288417 | O183: 181.7320615 | P183: =(A183-B183)*(Equations!$G$69*$Q$121+C183) -> 181.7325462 | Q183: =(A183-B183)*(Equations!$G$69*$R$121+C183) -> 181.7315769
A184: 25.2 | B184: 13.32692308 | C184: 15 | D184: =B121 -> 176 | E184: 14.82345319 | F184: =Equations!$G$69+C184 -> 15.00010667 | G184: 15.00010667 | H184: 0.0001066666667 | I184: 0.02271634615 | J184: 1.249399038 | K184: 1249.399038 | L184: 7.111060544e-06 | M184: -758.8273405 | N184: 4.045722649 | O184: 178.0974203 | P184: =(A184-B184)*(Equations!$G$69*$Q$121+C184) -> 178.0978952 | Q184: =(A184-B184)*(Equations!$G$69*$R$121+C184) -> 178.0969454
A185: 25.2 | B185: 13.56923077 | C185: 15 | D185: =B121 -> 176 | E185: 15.13227513 | F185: =Equations!$G$69+C185 -> 15.00010667 | G185: 15.00010667 | H185: 0.0001066666667 | I185: 0.02271634615 | J185: 1.272115385 | K185: 1272.115385 | L185: 7.111060544e-06 | M185: -743.3862434 | N185: 3.96315688 | O185: 174.4627791 | P185: =(A185-B185)*(Equations!$G$69*$Q$121+C185) -> 174.4632443 | Q185: =(A185-B185)*(Equations!$G$69*$R$121+C185) -> 174.4623138
A186: 25.2 | B186: 13.81153846 | C186: 15 | D186: =B121 -> 176 | E186: 15.45423843 | F186: =Equations!$G$69+C186 -> 15.00010667 | G186: 15.00010667 | H186: 0.0001066666667 | I186: 0.02271634615 | J186: 1.294831731 | K186: 1294.831731 | L186: 7.111060544e-06 | M186: -727.2880784 | N186: 3.880591112 | O186: 170.8281378 | P186: =(A186-B186)*(Equations!$G$69*$Q$121+C186) -> 170.8285934 | Q186: =(A186-B186)*(Equations!$G$69*$R$121+C186) -> 170.8276823
A187: 25.2 | B187: 14.05384615 | C187: 15 | D187: =B121 -> 176 | E187: 15.79020014 | F187: =Equations!$G$69+C187 -> 15.00010667 | G187: 15.00010667 | H187: 0.0001066666667 | I187: 0.02271634615 | J187: 1.317548077 | K187: 1317.548077 | L187: 7.111060544e-06 | M187: -710.4899931 | N187: 3.798025344 | O187: 167.1934966 | P187: =(A187-B187)*(Equations!$G$69*$Q$121+C187) -> 167.1939425 | Q187: =(A187-B187)*(Equations!$G$69*$R$121+C187) -> 167.1930508
A188: 25.2 | B188: 14.29615385 | C188: 15 | D188: =B121 -> 176 | E188: 16.14109347 | F188: =Equations!$G$69+C188 -> 15.00010667 | G188: 15.00010667 | H188: 0.0001066666667 | I188: 0.02271634615 | J188: 1.340264423 | K188: 1340.264423 | L188: 7.111060544e-06 | M188: -692.9453263 | N188: 3.715459575 | O188: 163.5588554 | P188: =(A188-B188)*(Equations!$G$69*$Q$121+C188) -> 163.5592915 | Q188: =(A188-B188)*(Equations!$G$69*$R$121+C188) -> 163.5584192
A189: 25.2 | B189: 14.53846154 | C189: 15 | D189: =B121 -> 176 | E189: 16.50793651 | F189: =Equations!$G$69+C189 -> 15.00010667 | G189: 15.00010667 | H189: 0.0001066666667 | I189: 0.02271634615 | J189: 1.362980769 | K189: 1362.980769 | L189: 7.111060544e-06 | M189: -674.6031746 | N189: 3.632893807 | O189: 159.9242142 | P189: =(A189-B189)*(Equations!$G$69*$Q$121+C189) -> 159.9246406 | Q189: =(A189-B189)*(Equations!$G$69*$R$121+C189) -> 159.9237877
A190: 25.2 | B190: 14.78076923 | C190: 15 | D190: =B121 -> 176 | E190: 16.89184201 | F190: =Equations!$G$69+C190 -> 15.00010667 | G190: 15.00010667 | H190: 0.0001066666667 | I190: 0.02271634615 | J190: 1.385697115 | K190: 1385.697115 | L190: 7.111060544e-06 | M190: -655.4078996 | N190: 3.550328039 | O190: 156.2895729 | P190: =(A190-B190)*(Equations!$G$69*$Q$121+C190) -> 156.2899897 | Q190: =(A190-B190)*(Equations!$G$69*$R$121+C190) -> 156.2891562
A191: 25.2 | B191: 15.02307692 | C191: 15 | D191: =B121 -> 176 | E191: 17.29402872 | F191: =Equations!$G$69+C191 -> 15.00010667 | G191: 15.00010667 | H191: 0.0001066666667 | I191: 0.02271634615 | J191: 1.408413462 | K191: 1408.413462 | L191: 7.111060544e-06 | M191: -635.2985639 | N191: 3.46776227 | O191: 152.6549317 | P191: =(A191-B191)*(Equations!$G$69*$Q$121+C191) -> 152.6553388 | Q191: =(A191-B191)*(Equations!$G$69*$R$121+C191) -> 152.6545246
A192: 25.2 | B192: 15.26538462 | C192: 15 | D192: =B121 -> 176 | E192: 17.7158343 | F192: =Equations!$G$69+C192 -> 15.00010667 | G192: 15.00010667 | H192: 0.0001066666667 | I192: 0.02271634615 | J192: 1.431129808 | K192: 1431.129808 | L192: 7.111060544e-06 | M192: -614.2082849 | N192: 3.385196502 | O192: 149.0202905 | P192: =(A192-B192)*(Equations!$G$69*$Q$121+C192) -> 149.0206878 | Q192: =(A192-B192)*(Equations!$G$69*$R$121+C192) -> 149.0198931
A193: =VINMAX -> 25.2 | B193: =VINMAX*((ROW()-129)/104) -> 15.50769231 | C193: 15 | D193: =B121 -> 176 | E193: 18.15873016 | F193: =Equations!$G$69+C193 -> 15.00010667 | G193: 15.00010667 | H193: =G193-C193 -> 0.0001066666667 | I193: 0.02271634615 | J193: 1.453846154 | K193: 1453.846154 | L193: 7.111060544e-06 | M193: =1/COUTMAX*(E193/2-C193)*1000 -> -592.0634921 | N193: 3.302630734 | O193: 145.3856492 | P193: =(A193-B193)*(Equations!$G$69*$Q$121+C193) -> 145.3860369 | Q193: =(A193-B193)*(Equations!$G$69*$R$121+C193) -> 145.3852615
A194: 25.2 | B194: 15.75 | C194: =IF(B194>=$H$121,IF($D$121="CC", $G$121, B194/$G$121), 0) -> 15 | D194: =B121 -> 176 | E194: =MIN(D194/(A194-B194),$C$121) -> 18.62433862 | F194: =Equations!$G$69+C194 -> 15.00010667 | G194: =IF($F$121="Soft Start", F194, E194) -> 15.00010667 | H194: 0.0001066666667 | I194: =(COUTMAX/1000000)*(B194-B193)/H194 -> 0.02271634615 | J194: 1.4765625 | K194: =J194*1000 -> 1476.5625 | L194: =H194/G194 -> 7.111060544e-06 | M194: -568.7830688 | N194: 3.220064965 | O194: =G194*(A194-B194) -> 141.751008 | P194: =(A194-B194)*(Equations!$G$69*$Q$121+C194) -> 141.751386 | Q194: =(A194-B194)*(Equations!$G$69*$R$121+C194) -> 141.75063
A195: 25.2 | B195: 15.99230769 | C195: 15 | D195: =B121 -> 176 | E195: 19.1144528 | F195: =Equations!$G$69+C195 -> 15.00010667 | G195: 15.00010667 | H195: 0.0001066666667 | I195: 0.02271634615 | J195: =J194+I195 -> 1.499278846 | K195: 1499.278846 | L195: 7.111060544e-06 | M195: -544.2773601 | N195: 3.137499197 | O195: 138.1163668 | P195: =(A195-B195)*(Equations!$G$69*$Q$121+C195) -> 138.1167351 | Q195: =(A195-B195)*(Equations!$G$69*$R$121+C195) -> 138.1159985
A196: 25.2 | B196: 16.23461538 | C196: 15 | D196: =B121 -> 176 | E196: 19.63105963 | F196: =Equations!$G$69+C196 -> 15.00010667 | G196: 15.00010667 | H196: 0.0001066666667 | I196: 0.02271634615 | J196: 1.521995192 | K196: 1521.995192 | L196: 7.111060544e-06 | M196: -518.4470184 | N196: 3.054933429 | O196: 134.4817255 | P196: =(A196-B196)*(Equations!$G$69*$Q$121+C196) -> 134.4820842 | Q196: =(A196-B196)*(Equations!$G$69*$R$121+C196) -> 134.4813669
A197: 25.2 | B197: 16.47692308 | C197: 15 | D197: =B121 -> 176 | E197: 20.17636684 | F197: =Equations!$G$69+C197 -> 15.00010667 | G197: 15.00010667 | H197: 0.0001066666667 | I197: 0.02271634615 | J197: 1.544711538 | K197: 1544.711538 | L197: 7.111060544e-06 | M197: -491.1816578 | N197: 2.97236766 | O197: 130.8470843 | P197: =(A197-B197)*(Equations!$G$69*$Q$121+C197) -> 130.8474332 | Q197: =(A197-B197)*(Equations!$G$69*$R$121+C197) -> 130.8467354
A198: 25.2 | B198: 16.71923077 | C198: 15 | D198: =B121 -> 176 | E198: 20.75283447 | F198: =Equations!$G$69+C198 -> 15.00010667 | G198: 15.00010667 | H198: 0.0001066666667 | I198: 0.02271634615 | J198: 1.567427885 | K198: 1567.427885 | L198: 7.111060544e-06 | M198: -462.3582766 | N198: 2.889801892 | O198: 127.2124431 | P198: =(A198-B198)*(Equations!$G$69*$Q$121+C198) -> 127.2127823 | Q198: =(A198-B198)*(Equations!$G$69*$R$121+C198) -> 127.2121038
A199: 25.2 | B199: 16.96153846 | C199: 15 | D199: =B121 -> 176 | E199: 21.36321195 | F199: =Equations!$G$69+C199 -> 15.00010667 | G199: 15.00010667 | H199: 0.0001066666667 | I199: 0.02271634615 | J199: 1.590144231 | K199: 1590.144231 | L199: 7.111060544e-06 | M199: -431.8394024 | N199: 2.807236124 | O199: 123.5778018 | P199: =(A199-B199)*(Equations!$G$69*$Q$121+C199) -> 123.5781314 | Q199: =(A199-B199)*(Equations!$G$69*$R$121+C199) -> 123.5774723
A200: 25.2 | B200: 17.20384615 | C200: 15 | D200: =B121 -> 176 | E200: 22.01058201 | F200: =Equations!$G$69+C200 -> 15.00010667 | G200: 15.00010667 | H200: 0.0001066666667 | I200: 0.02271634615 | J200: 1.612860577 | K200: 1612.860577 | L200: 7.111060544e-06 | M200: -399.4708995 | N200: 2.724670355 | O200: 119.9431606 | P200: =(A200-B200)*(Equations!$G$69*$Q$121+C200) -> 119.9434805 | Q200: =(A200-B200)*(Equations!$G$69*$R$121+C200) -> 119.9428408
A201: 25.2 | B201: 17.44615385 | C201: 15 | D201: =B121 -> 176 | E201: 22.6984127 | F201: =Equations!$G$69+C201 -> 15.00010667 | G201: 15.00010667 | H201: 0.0001066666667 | I201: 0.02271634615 | J201: 1.635576923 | K201: 1635.576923 | L201: 7.111060544e-06 | M201: -365.0793651 | N201: 2.642104587 | O201: 116.3085194 | P201: =(A201-B201)*(Equations!$G$69*$Q$121+C201) -> 116.3088295 | Q201: =(A201-B201)*(Equations!$G$69*$R$121+C201) -> 116.3082092
A202: 25.2 | B202: 17.68846154 | C202: 15 | D202: =B121 -> 176 | E202: 23.43061956 | F202: =Equations!$G$69+C202 -> 15.00010667 | G202: 15.00010667 | H202: 0.0001066666667 | I202: 0.02271634615 | J202: 1.658293269 | K202: 1658.293269 | L202: 7.111060544e-06 | M202: -328.469022 | N202: 2.559538819 | O202: 112.6738782 | P202: =(A202-B202)*(Equations!$G$69*$Q$121+C202) -> 112.6741786 | Q202: =(A202-B202)*(Equations!$G$69*$R$121+C202) -> 112.6735777
A203: 25.2 | B203: 17.93076923 | C203: 15 | D203: =B121 -> 176 | E203: 24.21164021 | F203: =Equations!$G$69+C203 -> 15.00010667 | G203: 15.00010667 | H203: 0.0001066666667 | I203: 0.02271634615 | J203: 1.681009615 | K203: 1681.009615 | L203: 7.111060544e-06 | M203: -289.4179894 | N203: 2.47697305 | O203: 109.0392369 | P203: =(A203-B203)*(Equations!$G$69*$Q$121+C203) -> 109.0395277 | Q203: =(A203-B203)*(Equations!$G$69*$R$121+C203) -> 109.0389462
A204: 25.2 | B204: 18.17307692 | C204: 15 | D204: =B121 -> 176 | E204: 25.04652436 | F204: =Equations!$G$69+C204 -> 15.00010667 | G204: 15.00010667 | H204: 0.0001066666667 | I204: 0.02271634615 | J204: 1.703725962 | K204: 1703.725962 | L204: 7.111060544e-06 | M204: -247.6737822 | N204: 2.394407282 | O204: 105.4045957 | P204: =(A204-B204)*(Equations!$G$69*$Q$121+C204) -> 105.4048768 | Q204: =(A204-B204)*(Equations!$G$69*$R$121+C204) -> 105.4043146
A205: 25.2 | B205: 18.41538462 | C205: 15 | D205: =B121 -> 176 | E205: 25.94104308 | F205: =Equations!$G$69+C205 -> 15.00010667 | G205: 15.00010667 | H205: 0.0001066666667 | I205: 0.02271634615 | J205: 1.726442308 | K205: 1726.442308 | L205: 7.111060544e-06 | M205: -202.9478458 | N205: 2.311841514 | O205: 101.7699545 | P205: =(A205-B205)*(Equations!$G$69*$Q$121+C205) -> 101.7702258 | Q205: =(A205-B205)*(Equations!$G$69*$R$121+C205) -> 101.7696831
A206: 25.2 | B206: 18.65769231 | C206: 15 | D206: =B121 -> 176 | E206: 26.90182246 | F206: =Equations!$G$69+C206 -> 15.00010667 | G206: 15.00010667 | H206: 0.0001066666667 | I206: 0.02271634615 | J206: 1.749158654 | K206: 1749.158654 | L206: 7.111060544e-06 | M206: -154.9088771 | N206: 2.229275745 | O206: 98.13531323 | P206: =(A206-B206)*(Equations!$G$69*$Q$121+C206) -> 98.13557492 | Q206: =(A206-B206)*(Equations!$G$69*$R$121+C206) -> 98.13505154
... 142 more rows

Sheet SOA (hidden)
A3: FET 1
B5: Look Up | H5: I = a * t^m
B6: 10us | C6: 100us | D6: 1ms | E6: 10ms | F6: 100ms | H6: a = iSOA1/tSOA1^m
A7: Final SOA | B7: ='Design Calculator'!F57 -> 400 | C7: ='Design Calculator'!F58 -> 380.952381 | D7: ='Design Calculator'!F59 -> 38.09174527 | E7: ='Design Calculator'!F60 -> 12.90557631 | F7: ='Design Calculator'!F61 -> 6.656716701 | H7: m = log(iSOA1/iSOA2)/log(tSOA1/tSOA2)
B8: Maximum Junction Temperature | C8: ='Design Calculator'!F56 -> 175 | D8: oC
B10: SOA Check - Based on Timer | G10: SOA Predictor - dv/dt start-up
B11: time | C11: =IF('Design Calculator'!F30="Power Limit", 'Design Calculator'!$F$84,'Design Calculator'!F97) -> 0.7058823529 | D11: ms | G11: time | H11: =Equations!F73 -> 1169.891827 | I11: ms
B12: Voltage | C12: =VINMAX -> 25.2 | D12: V | G12: Voltage | H12: =VINMAX -> 25.2 | I12: V
B13: Lower time | C13: =IF(C11<10, IF(C11<1, 0.1, 1), IF(C11<100, 10, 100)) -> 0.1 | D13: ms | G13: Lower time | H13: =IF(H11<10, IF(H11<1, 0.1, 1), IF(H11<100, 10, 100)) -> 100 | I13: ms
B14: Lower time (adjusted) | C14: =SOA!C13 -> 0.1 | G14: Lower time (adjusted) | H14: =SOA!H13 -> 100
B15: Higher timer | C15: =C13*10 -> 1 | D15: ms | G15: Higher time | H15: =H13*10 -> 1000 | I15: ms
B16: Higher time (adjusted) | C16: =SOA!C15 -> 1 | G16: Higher time (adjusted) | H16: =SOA!H15 -> 1000
B17: I (lower time) | C17: =IF(C14=0.01, B7, IF(C14=0.1, C7, IF(C14=1, D7, E7))) -> 380.952381 | D17: A | G17: I (lower time) | H17: =IF(H14=0.01, B7, IF(H14=0.1, C7, IF(H14=1, D7, IF(H14=10,E7,F7)))) -> 6.656716701
B18: I (higher time) | C18: =IF(C16=100, F7, IF(C16=10, E7, IF(C16=1, D7,IF(C16=0.1, C7,B7)))) -> 38.09174527 | D18: A | G18: I (higher time) | H18: =IF(H16=100, F7, IF(H16=10, E7, IF(H16=1, D7, IF(H16=0.1,B7,C7)))) -> 380.952381
B20: Assuming Power vs time is linear on a log-log plot | G20: Assuming Power vs time is linear on a log-log plot
B21: a | C21: =C17/C14^C22 -> 38.09174527 | G21: a | H21: =H17/H14^H22 -> 0.002032538772
B22: m | C22: =LOG(C17/C18)/LOG(C14/C16) -> -1.000039821 | G22: m | H22: =IF(H17=H18,0.000000000001,LOG(H17/H18)/LOG(H14/H16)) -> 1.757610618 | I22: <-- Cannot plot zero on a log graph. If slope ~=0, then use 1e-12 as value
B23: Extr. I | C23: =C21*C11^C22 -> 53.96405427 | D23: A | G23: Extr. I | H23: =H21*H11^H22 -> 501.9313365
B25: Interpolated Power= | C25: =C23*C12 -> 1359.894168 | G25: Interpolated Power= | H25: =IF(H11<1, H17, H23)*H12 -> 12648.66968
G27: board hot? | H27: ='Design Calculator'!F86 -> No
B28: Derating factor = | C28: =(C8-TJDC1)/(C8-25) -> 0.5536805556 | G28: Temp for derating | H28: =IF(H27="Yes", TJDC1,TAMB) -> 85
B29: Max Power with Temp Derating = | C29: =IF((C25*C28)<0,0.000000001,C25*C28) -> 752.9469583 | D29: W
G30: Derating factor = | H30: =(C8-H28)/(C8-25) -> 0.6
G31: Max Power with Temp Derating = | H31: =IF((H25*H30)<0,0.000000001,H25*H30) -> 7589.201807
B32: SOA Coefficients
C33: 0.01ms to 0.1 ms | D33: 0.1ms to 1ms | E33: 1ms to 10ms | F33: 10ms to 100ms
B34: t1 | C34: 0.01 | D34: 0.1 | E34: 1 | F34: 10
B35: t2 | C35: 0.1 | D35: 1 | E35: 10 | F35: 100
B36: a | C36: =B7/(C34^C37) -> 362.8117914 | D36: =C7/(D34^D37) -> 38.09174527 | E36: =D7/(E34^E37) -> 38.09174527 | F36: =E7/(F34^F37) -> 25.02042785
B37: m | C37: =LOG(B7/C7)/LOG(C34/C35) -> -0.02118929907 | D37: =LOG(C7/D7)/LOG(D34/D35) -> -1.000039821 | E37: =LOG(D7/E7)/LOG(E34/E35) -> -0.4700534683 | F37: =LOG(E7/F7)/LOG(F34/F35) -> -0.2875173287
B39: MOSFET's SOA
B40: VDS | C40: ID
B41: (V) | C41: (A)
B42: 1 | C42: =$C$29/B42 -> 752.9469583
B43: 1.2 | C43: =$C$29/B43 -> 627.4557985
B44: 30 | C44: 25.09823194
B45: 60 | C45: 12.54911597
B46: 80 | C46: 9.411836978
B47: 100 | C47: 7.529469583
A51: FET 2
B53: Look Up | H53: I = a * t^m
B54: 10us | C54: 100us | D54: 1ms | E54: 10ms | F54: 100ms | H54: a = iSOA1/tSOA1^m
A55: Final SOA | B55: ='Design Calculator'!$G$57 -> 400 | C55: ='Design Calculator'!$G$58 -> 239.047619 | D55: ='Design Calculator'!$G$59 -> 24.3892504 | E55: ='Design Calculator'!$G$60 -> 7.35034721 | F55: ='Design Calculator'!$G$61 -> 4.505114358 | H55: m = log(iSOA1/iSOA2)/log(tSOA1/tSOA2)
B56: Maximum Junction Temperature | C56: ='Design Calculator'!$G$56 -> 175 | D56: oC
B58: SOA Check - Based on Timer | G58: SOA Predictor - dv/dt start-up
B59: time | C59: =IF('Design Calculator'!F30="Power Limit", 'Design Calculator'!$F$84,'Design Calculator'!F97) -> 0.7058823529 | D59: ms | G59: time | H59: =Equations!G73 -> 1169.891827 | I59: ms
B60: Voltage | C60: =VINMAX -> 25.2 | D60: V | G60: Voltage | H60: =VINMAX -> 25.2 | I60: V
B61: Lower time | C61: =IF(C59<10, IF(C59<1, 0.1, 1), IF(C59<100, 10, 100)) -> 0.1 | D61: ms | G61: Lower time | H61: =IF(H59<10, IF(H59<1, 0.1, 1), IF(H59<100, 10, 100)) -> 100 | I61: ms
B62: Lower time (adjusted) | C62: =SOA!C61 -> 0.1 | G62: Lower time (adjusted) | H62: =SOA!H61 -> 100
B63: Higher timer | C63: =C61*10 -> 1 | D63: ms | G63: Higher time | H63: =H61*10 -> 1000 | I63: ms
B64: Higher time (adjusted) | C64: =SOA!C63 -> 1 | G64: Higher time (adjusted) | H64: =SOA!H63 -> 1000
B65: I (lower time) | C65: =IF(C62=0.01, B55, IF(C62=0.1, C55, IF(C62=1, D55, E55))) -> 239.047619 | D65: A | G65: I (lower time) | H65: =IF(H62=0.01, B55, IF(H62=0.1, C55, IF(H62=1, D55, IF(H62=10,E55,F55)))) -> 4.505114358
B66: I (higher time) | C66: =IF(C64=100, F55, IF(C64=10, E55, IF(C64=1, D55,IF(C64=0.1, C55,B55)))) -> 24.3892504 | D66: A | G66: I (higher time) | H66: =IF(H64=100, F55, IF(H64=10, E55, IF(H64=1, D55, IF(H64=0.1,B55,C55)))) -> 239.047619
B68: Assuming Power vs time is linear on a log-log plot | G68: Assuming Power vs time is linear on a log-log plot
B69: a | C69: =C65/C62^C70 -> 24.3892504 | G69: a | H69: =H65/H62^H70 -> 0.001600105485
B70: m | C70: =LOG(C65/C66)/LOG(C62/C64) -> -0.9912859698 | G70: m | H70: =IF(H65=H66,0.000000000001,LOG(H65/H66)/LOG(H62/H64)) -> 1.724778603 | I70: <-- Cannot plot zero on a log graph. If slope ~=0, then use 1e-12 as value
B71: Extr. I | C71: =C69*C59^C70 -> 34.44672808 | D71: A | G71: Extr. I | H71: =H69*H59^H70 -> 313.3434924
B73: Interpolated Power= | C73: =C71*C60 -> 868.0575477 | G73: Interpolated Power= | H73: =IF(H59<1, H65, H71)*H60 -> 7896.256008
G75: board hot? | H75: ='Design Calculator'!F86 -> No
B76: Derating factor = | C76: =(C56-TJDC2)/(C56-25) -> 0.5371388889 | G76: Temp for derating | H76: =IF(H75="Yes", TJDC2,TAMB) -> 85
B77: Max Power with Temp Derating = | C77: =IF((C73*C76)<0,0.000000001,C73*C76) -> 466.2674667 | D77: W
G78: Derating factor = | H78: =(C56-H76)/(C56-25) -> 0.6
G79: Max Power with Temp Derating = | H79: =IF((H73*H78)<0,0.000000001,H73*H78) -> 4737.753605
B80: SOA Coefficients
C81: 0.01ms to 0.1 ms | D81: 0.1ms to 1ms | E81: 1ms to 10ms | F81: 10ms to 100ms
B82: t1 | C82: 0.01 | D82: 0.1 | E82: 1 | F82: 10
B83: t2 | C83: 0.1 | D83: 1 | E83: 10 | F83: 100
B84: a | C84: =B55/(C82^C85) -> 142.8594104 | D84: =C55/(D82^D85) -> 24.3892504 | E84: =D55/(E82^E85) -> 24.3892504 | F84: =E55/(F82^F85) -> 11.99250448
B85: m | C85: =LOG(B55/C55)/LOG(C82/C83) -> -0.2235755689 | D85: =LOG(C55/D55)/LOG(D82/D83) -> -0.9912859698 | E85: =LOG(D55/E55)/LOG(E82/E83) -> -0.5208905981 | F85: =LOG(E55/F55)/LOG(F82/F83) -> -0.2126020348
B87: MOSFET's SOA
B88: VDS | C88: ID
B89: (V) | C89: (A)
B90: 1 | C90: =$C$77/B90 -> 466.2674667
B91: 1.2 | C91: =$C$77/B91 -> 388.5562222
B92: 30 | C92: 15.54224889
B93: 60 | C93: 7.771124445
B94: 80 | C94: 5.828343333
B95: 100 | C95: 4.662674667
A99: FET 3
B101: Look Up | H101: I = a * t^m
B102: 10us | C102: 100us | D102: 1ms | E102: 10ms | F102: 100ms | H102: a = iSOA1/tSOA1^m
A103: Final SOA | B103: ='Design Calculator'!H57 -> 240 | C103: ='Design Calculator'!H58 -> 35 | D103: ='Design Calculator'!H59 -> 3 | E103: ='Design Calculator'!H60 -> 2 | F103: ='Design Calculator'!H61 -> 0.1 | H103: m = log(iSOA1/iSOA2)/log(tSOA1/tSOA2)
B104: Maximum Junction Temperature | C104: ='Design Calculator'!H56 -> 175 | D104: oC
B106: SOA Check - Based on Timer | G106: SOA Predictor - dv/dt start-up
B107: time | C107: =IF('Design Calculator'!F30="Power Limit", 'Design Calculator'!$F$84,'Design Calculator'!F97) -> 0.7058823529 | D107: ms | G107: time | H107: =Equations!H73 -> 1169.891827 | I107: ms
B108: Voltage | C108: =VINMAX -> 25.2 | D108: V | G108: Voltage | H108: =VINMAX -> 25.2 | I108: V
B109: Lower time | C109: =IF(C107<10, IF(C107<1, 0.1, 1), IF(C107<100, 10, 100)) -> 0.1 | D109: ms | G109: Lower time | H109: =IF(H107<10, IF(H107<1, 0.1, 1), IF(H107<100, 10, 100)) -> 100 | I109: ms
B110: Lower time (adjusted) | C110: =SOA!C109 -> 0.1 | G110: Lower time (adjusted) | H110: =SOA!H109 -> 100
B111: Higher timer | C111: =C109*10 -> 1 | D111: ms | G111: Higher time | H111: =H109*10 -> 1000 | I111: ms
B112: Higher time (adjusted) | C112: =SOA!C111 -> 1 | G112: Higher time (adjusted) | H112: =SOA!H111 -> 1000
B113: I (lower time) | C113: =IF(C110=0.01, B103, IF(C110=0.1, C103, IF(C110=1, D103, E103))) -> 35 | D113: A | G113: I (lower time) | H113: =IF(H110=0.01, B103, IF(H110=0.1, C103, IF(H110=1, D103, IF(H110=10,E103,F103)))) -> 0.1
B114: I (higher time) | C114: =IF(C112=100, F103, IF(C112=10, E103, IF(C112=1, D103,IF(C112=0.1, C103,B103)))) -> 3 | D114: A | G114: I (higher time) | H114: =IF(H112=100, F103, IF(H112=10, E103, IF(H112=1, D103, IF(H112=0.1,B103,C103)))) -> 35
B116: Assuming Power vs time is linear on a log-log plot | G116: Assuming Power vs time is linear on a log-log plot
B117: a | C117: =C113/C110^C118 -> 3 | G117: a | H117: =H113/H110^H118 -> 8.163265306e-07
B118: m | C118: =LOG(C113/C114)/LOG(C110/C112) -> -1.06694679 | G118: m | H118: =IF(H113=H114,0.000000000001,LOG(H113/H114)/LOG(H110/H112)) -> 2.544068044 | I118: <-- Cannot plot zero on a log graph. If slope ~=0, then use 1e-12 as value
B119: Extr. I | C119: =C117*C107^C118 -> 4.350266023 | D119: A | G119: Extr. I | H119: =H117*H107^H118 -> 52.17174461
B121: Interpolated Power= | C121: =C119*C108 -> 109.6267038 | G121: Interpolated Power= | H121: =IF(H107<1, H113, H119)*H108 -> 1314.727964
G123: board hot? | H123: ='Design Calculator'!F86 -> No
B124: Derating factor = | C124: =(C104-TJDC3)/(C104-25) -> 0.5375 | G124: Temp for derating | H124: =IF(H123="Yes", TJDC3,TAMB) -> 85
B125: Max Power with Temp Derating = | C125: =IF((C121*C124)<0,0.000000001,C121*C124) -> 58.92435328 | D125: W
G126: Derating factor = | H126: =(C104-H124)/(C104-25) -> 0.6
G127: Max Power with Temp Derating = | H127: =IF((H121*H126)<0,0.000000001,H121*H126) -> 788.8367785
B128: SOA Coefficients
C129: 0.01ms to 0.1 ms | D129: 0.1ms to 1ms | E129: 1ms to 10ms | F129: 10ms to 100ms
B130: t1 | C130: 0.01 | D130: 0.1 | E130: 1 | F130: 10
B131: t2 | C131: 0.1 | D131: 1 | E131: 10 | F131: 100
B132: a | C132: =B103/(C130^C133) -> 5.104166667 | D132: =C103/(D130^D133) -> 3 | E132: =D103/(E130^E133) -> 3 | F132: =E103/(F130^F133) -> 40
B133: m | C133: =LOG(B103/C103)/LOG(C130/C131) -> -0.8361431974 | D133: =LOG(C103/D103)/LOG(D130/D131) -> -1.06694679 | E133: =LOG(D103/E103)/LOG(E130/E131) -> -0.1760912591 | F133: =LOG(E103/F103)/LOG(F130/F131) -> -1.301029996
B135: MOSFET's SOA
B136: VDS | C136: ID
B137: (V) | C137: (A)
B138: 1 | C138: =$C$125/B138 -> 58.92435328
B139: 1.2 | C139: =$C$125/B139 -> 49.10362773
B140: 30 | C140: 1.964145109
B141: 60 | C141: 0.9820725547
B142: 80 | C142: 0.736554416
B143: 100 | C143: 0.5892435328

Sheet dv_dt_recommendations (hidden)
C5: Key Equations for SOA margin estimate:
C7: 1) Get total Energy = 1/2 CV^2 + E_load (t_worksheet) * t_start / t_ worksheet
C8: note: t_worksheet is the start time from the start-up worksheet. E_load = Total Energy @ Start-up - 1/2CV^2
C10: 2) Get peak power: 4 Possible points with peak power
C11: a) At Vin = 0 [mainly if there is no load or constant current load that starts at Vout = 0=
C12: b) At Vin = Load start [ constant current=
C13: c) When derivative of power = 0 [Peak, applies to resistive loads only=
D14: P = (I_cap + Vout/R ) * (Vin - Vout) = Icap * Vin - Icap * Vout +Vin * Vout / R - Vout^2 / R
D15: => dP/dVout = -Icap + Vin/R -2Vout /R ; Zero when Vout = -R*I_cap / 2 + Vin / 2
D17: FET 1
D18: Copied Inputs | I18: Maximum Junction Temperature | J18: ='Design Calculator'!F56 -> 175 | K18: °C
D19: Temp_start_up | E19: =SOA!H28 -> 85
D20: SOA margin target | E20: 1.5 | I20: SOA Coefficients
D21: Cap Energy (J) | E21: =1/2*COUTMAX*VINMAX^2*0.000001 -> 0.0031752 | J21: 0.01 to 0.1 ms | K21: 0.1 to 1 ms | L21: 1 to 10 ms | M21: 10 to 100 ms
D22: E_load (t_worksheet) (J) | E22: =MAX(Equations!F71-E21,0) -> 442.21908 | I22: t1 | J22: 0.01 | K22: 0.1 | L22: 1 | M22: 10
D23: t_worksheet (ms) | E23: =Equations!F70 -> 2362.5 | I23: t2 | J23: 0.1 | K23: 1 | L23: 10 | M23: 100
I24: a | J24: =SOA!C36 -> 362.8117914 | K24: =SOA!D36 -> 38.09174527 | L24: =SOA!E36 -> 38.09174527 | M24: =SOA!F36 -> 25.02042785
D25: Load Turn-On Threshold | E25: ='Design Calculator'!F27 -> 0 | I25: m | J25: =SOA!C37 -> -0.02118929907 | K25: =SOA!D37 -> -1.000039821 | L25: =SOA!E37 -> -0.4700534683 | M25: =SOA!F37 -> -0.2875173287
D26: Startup Load Type | E26: ='Design Calculator'!F28 -> Constant Current
D27: Startup Load Value | E27: ='Design Calculator'!F29 -> 15 | I27: Initial | J27: Final
G28: max slew rate | I28: =SUM(E58:X58) -> 0 | J28: =IF(I28=0, "NA", I28/AVERAGE(1, E32)) -> NA
D29: Upper bound Slew Rate (4ms start-up) (V/ms) | E29: =12/1 -> 12 | G29: min slew rate | I29: =SUM(E59:X59) -> 0 | J29: =IF(I29=0, "NA", I29*AVERAGE(1,E32)) -> NA
D30: Min Slew Rate (400 ms start - up) (V/ms) | E30: 0.12
D31: # of points | E31: 20
D32: mult per point | E32: =(E30/E29)^(1/(E31-1)) -> 0.7847599704
E34: 1 | F34: 2 | G34: 3 | H34: 4 | I34: 5 | J34: 6 | K34: 7 | L34: 8 | M34: 9 | N34: 10 | O34: 11 | P34: 12 | Q34: 13 | R34: 14 | S34: 15 | T34: 16 | U34: 17 | V34: 18 | W34: 19 | X34: 20
D35: slew rate (V/ms) | E35: =E29 -> 12 | F35: =E35*$E$32 -> 9.417119644 | G35: =F35*$E$32 -> 7.390178533 | H35: 5.799516286 | I35: 4.551228229 | J35: 3.57162173 | K35: 2.802865763 | L35: 2.199576853 | M35: 1.726139866 | N35: 1.35460547 | O35: 1.063040148 | P35: 0.8342313554 | Q35: 0.6546713737 | R35: 0.5137598878 | S35: 0.4031781944 | T35: 0.3163981078 | U35: 0.2482965697 | V35: 0.1948532087 | W35: 0.1529129983 | X35: 0.12
D36: t_start (ms) | E36: =VINMAX/E35 -> 2.1 | F36: 2.67597747 | G36: 3.409931152 | H36: 4.34518997 | I36: 5.536966887 | J36: 7.055618401 | K36: 8.990798037 | L36: 11.45674904 | M36: 14.59904872 | N36: 18.6032026 | O36: 23.70559573 | P36: 30.20744765 | Q36: 38.49259493 | R36: 49.05015085 | S36: 62.50338027 | T36: 79.64649401 | U36: 101.491535 | V36: 129.3281243 | W36: 164.7995938 | X36: 210
D37: I_cap (A) | E37: =E35*COUTMAX/1000 -> 0.12 | F37: 0.09417119644 | G37: 0.07390178533 | H37: 0.05799516286 | I37: 0.04551228229 | J37: 0.0357162173 | K37: 0.02802865763 | L37: 0.02199576853 | M37: 0.01726139866 | N37: 0.0135460547 | O37: 0.01063040148 | P37: 0.008342313554 | Q37: 0.006546713737 | R37: 0.005137598878 | S37: 0.004031781944 | T37: 0.003163981078 | U37: 0.002482965697 | V37: 0.001948532087 | W37: 0.001529129983 | X37: 0.0012
D38: Total FET Energy (J) | E38: =$E$21+$E$22*E36/$E$23 -> 0.3962588267 | F38: =$E$21+$E$22*F36/$E$23 -> 0.5040718328 | G38: =$E$21+$E$22*G36/$E$23 -> 0.6414552496 | H38: =$E$21+$E$22*H36/$E$23 -> 0.8165195011 | I38: 1.039599498 | J38: 1.323864757 | K38: =$E$21+$E$22*K36/$E$23 -> 1.686096866 | L38: =$E$21+$E$22*L36/$E$23 -> 2.147680182 | M38: 2.735864256 | N38: 3.485372508 | O38: 4.440452124 | P38: 5.657486189 | Q38: 7.208322255 | R38: 9.18451386 | S38: =$E$21+$E$22*S36/$E$23 -> 11.70272539 | T38: 14.91161935 | U38: 19.00063266 | V38: 24.21116003 | W38: =$E$21+$E$22*W36/$E$23 -> 30.85080472 | X38: 39.31153787
D39: Power (Vout= 0) , (W) | E39: =(E37+IF($E$26="Resistive",0,IF($E$25=0,$E$27,0)))*VINMAX -> 381.024 | F39: 380.3731142 | G39: 379.862325 | H39: 379.4614781 | I39: 379.1469095 | J39: 378.9000487 | K39: 378.7063222 | L39: 378.5542934 | M39: 378.4349872 | N39: 378.3413606 | O39: 378.2678861 | P39: 378.2102263 | Q39: 378.1649772 | R39: 378.1294675 | S39: 378.1016009 | T39: 378.0797323 | U39: 378.0625707 | V39: 378.049103 | W39: 378.0385341 | X39: 378.03024
D40: Power (load on), (W) | E40: =(E37+IF($E$26="Resistive", $E$25/$E$27,$E$27)) *(VINMAX-$E$25) -> 381.024 | F40: 380.3731142 | G40: 379.862325 | H40: 379.4614781 | I40: 379.1469095 | J40: 378.9000487 | K40: 378.7063222 | L40: 378.5542934 | M40: 378.4349872 | N40: 378.3413606 | O40: 378.2678861 | P40: 378.2102263 | Q40: 378.1649772 | R40: 378.1294675 | S40: 378.1016009 | T40: 378.0797323 | U40: 378.0625707 | V40: 378.049103 | W40: 378.0385341 | X40: 378.03024
D41: Vout (dP/dVout = 0) (V) | E41: =IF($E$26="Resistive", -$E$27*E37/2 + VINMAX/2, -1) -> -1 | F41: -1 | G41: -1 | H41: -1 | I41: -1 | J41: -1 | K41: -1 | L41: -1 | M41: -1 | N41: -1 | O41: -1 | P41: -1 | Q41: -1 | R41: -1 | S41: -1 | T41: -1 | U41: -1 | V41: -1 | W41: -1 | X41: -1
D42: Power (@ Vout above, if applicable) | E42: =IF(AND(E41<VINMAX, E41>$E$25), (VINMAX-E41)*(E37+E41/$E$27), 0) -> 0 | F42: 0 | G42: 0 | H42: 0 | I42: 0 | J42: 0 | K42: 0 | L42: 0 | M42: 0 | N42: 0 | O42: 0 | P42: 0 | Q42: 0 | R42: 0 | S42: 0 | T42: 0 | U42: 0 | V42: 0 | W42: 0 | X42: 0
D44: max power (W) | E44: =MAX(E39,E40,E42) -> 381.024 | F44: =MAX(F39,F40,F42) -> 380.3731142 | G44: =MAX(G39,G40,G42) -> 379.862325 | H44: =MAX(H39,H40,H42) -> 379.4614781 | I44: 379.1469095 | J44: 378.9000487 | K44: =MAX(K39,K40,K42) -> 378.7063222 | L44: =MAX(L39,L40,L42) -> 378.5542934 | M44: 378.4349872 | N44: 378.3413606 | O44: 378.2678861 | P44: 378.2102263 | Q44: 378.1649772 | R44: 378.1294675 | S44: =MAX(S39,S40,S42) -> 378.1016009 | T44: 378.0797323 | U44: 378.0625707 | V44: 378.049103 | W44: 378.0385341 | X44: 378.03024
D45: Equivalent time for SOA (ms) | E45: =E38/E44*1000 -> 1.039983903 | F45: =F38/F44*1000 -> 1.325203633 | G45: =G38/G44*1000 -> 1.688651934 | H45: =H38/H44*1000 -> 2.151784959 | I45: 2.741943747 | J45: 3.493968295 | K45: =K38/K44*1000 -> 4.45225434 | L45: =L38/L44*1000 -> 5.673374256 | M45: =M38/M44*1000 -> 7.229416803 | N45: 9.212242886 | O45: =O38/O44*1000 -> 11.73890855 | P45: =P38/P44*1000 -> 14.95857541 | Q45: =Q38/Q44*1000 -> 19.06131633 | R45: 24.28933646 | S45: =S38/S44*1000 -> 30.95127173 | T45: =T38/T44*1000 -> 39.4404092 | U45: 50.25790472 | V45: =V38/V44*1000 -> 64.04236867 | W45: =W38/W44*1000 -> 81.60756627 | X45: =X38/X44*1000 -> 103.9904582
D47: a | E47: =IF(E45<$J$23,$J$24,IF(E45<$K$23,$K$24,IF(E45<$L$23,$L$24,$M$24))) -> 38.09174527 | F47: =IF(F45<$J$23,$J$24,IF(F45<$K$23,$K$24,IF(F45<$L$23,$L$24,$M$24))) -> 38.09174527 | G47: =IF(G45<$J$23,$J$24,IF(G45<$K$23,$K$24,IF(G45<$L$23,$L$24,$M$24))) -> 38.09174527 | H47: =IF(H45<$J$23,$J$24,IF(H45<$K$23,$K$24,IF(H45<$L$23,$L$24,$M$24))) -> 38.09174527 | I47: 38.09174527 | J47: =IF(J45<$J$23,$J$24,IF(J45<$K$23,$K$24,IF(J45<$L$23,$L$24,$M$24))) -> 38.09174527 | K47: =IF(K45<$J$23,$J$24,IF(K45<$K$23,$K$24,IF(K45<$L$23,$L$24,$M$24))) -> 38.09174527 | L47: =IF(L45<$J$23,$J$24,IF(L45<$K$23,$K$24,IF(L45<$L$23,$L$24,$M$24))) -> 38.09174527 | M47: 38.09174527 | N47: 38.09174527 | O47: 25.02042785 | P47: 25.02042785 | Q47: 25.02042785 | R47: 25.02042785 | S47: =IF(S45<$J$23,$J$24,IF(S45<$K$23,$K$24,IF(S45<$L$23,$L$24,$M$24))) -> 25.02042785 | T47: 25.02042785 | U47: 25.02042785 | V47: 25.02042785 | W47: 25.02042785 | X47: 25.02042785
D48: m | E48: =IF(E45<$J$23,$J$25,IF(E45<$K$23,$K$25,IF(E45<$L$23,$L$25,$M$25))) -> -0.4700534683 | F48: =IF(F45<$J$23,$J$25,IF(F45<$K$23,$K$25,IF(F45<$L$23,$L$25,$M$25))) -> -0.4700534683 | G48: =IF(G45<$J$23,$J$25,IF(G45<$K$23,$K$25,IF(G45<$L$23,$L$25,$M$25))) -> -0.4700534683 | H48: =IF(H45<$J$23,$J$25,IF(H45<$K$23,$K$25,IF(H45<$L$23,$L$25,$M$25))) -> -0.4700534683 | I48: -0.4700534683 | J48: -0.4700534683 | K48: =IF(K45<$J$23,$J$25,IF(K45<$K$23,$K$25,IF(K45<$L$23,$L$25,$M$25))) -> -0.4700534683 | L48: =IF(L45<$J$23,$J$25,IF(L45<$K$23,$K$25,IF(L45<$L$23,$L$25,$M$25))) -> -0.4700534683 | M48: -0.4700534683 | N48: -0.4700534683 | O48: -0.2875173287 | P48: -0.2875173287 | Q48: -0.2875173287 | R48: -0.2875173287 | S48: =IF(S45<$J$23,$J$25,IF(S45<$K$23,$K$25,IF(S45<$L$23,$L$25,$M$25))) -> -0.2875173287 | T48: -0.2875173287 | U48: -0.2875173287 | V48: -0.2875173287 | W48: -0.2875173287 | X48: -0.2875173287
D50: Available SOA (W) | E50: =E47*E45^E48*VINMAX -> 942.3841904 | F50: 840.914892 | G50: 750.3698566 | H50: 669.5733355 | I50: 597.4760153 | J50: =J47*J45^J48*VINMAX -> 533.1414524 | K50: 475.733955 | L50: 424.5077583 | M50: 378.7973597 | N50: 338.0088883 | O50: 310.5694751 | P50: 289.6636313 | Q50: 270.1650302 | R50: 251.9789521 | S50: 235.0170513 | T50: 219.1969269 | U50: 204.4417238 | V50: 190.6797594 | W50: =W47*W45^W48*VINMAX -> 177.8441759 | X50: 165.8726152
D51: Derated for Temp | E51: =E50*($J$18-$E$19)/($J$18 - 25) -> 565.4305143 | F51: =F50*($J$18-$E$19)/($J$18 - 25) -> 504.5489352 | G51: 450.2219139 | H51: 401.7440013 | I51: 358.4856092 | J51: 319.8848715 | K51: 285.440373 | L51: 254.704655 | M51: 227.2784158 | N51: 202.805333 | O51: 186.341685 | P51: 173.7981788 | Q51: 162.0990181 | R51: 151.1873713 | S51: 141.0102308 | T51: 131.5181561 | U51: 122.6650343 | V51: 114.4078557 | W51: 106.7065055 | X51: 99.52356911
D52: SOA Margin | E52: =E51/E44 -> 1.483976112 | F52: =F51/F44 -> 1.326457934 | G52: =G51/G44 -> 1.18522392 | H52: =H51/H44 -> 1.058721437 | I52: 0.9455058189 | J52: 0.8442460553 | K52: =K51/K44 -> 0.7537248688 | L52: =L51/L44 -> 0.6728352034 | M52: =M51/M44 -> 0.6005745333 | N52: 0.536037965 | O52: =O51/O44 -> 0.4926183054 | P52: =P51/P44 -> 0.4595279732 | Q52: =Q51/Q44 -> 0.4286462996 | R52: 0.3998296464 | S52: =S51/S44 -> 0.372942697 | T52: =T51/T44 -> 0.3478582555 | U52: 0.324456965 | V52: =V51/V44 -> 0.3026269729 | W52: =W51/W44 -> 0.2822635681 | X52: =X51/X44 -> 0.2632688039
D54: Pass? | E54: =IF(E52>$E$20, "Y", "N") -> N | F54: =IF(F52>$E$20, "Y", "N") -> N | G54: N | H54: N | I54: N | J54: N | K54: N | L54: N | M54: N | N54: N | O54: N | P54: N | Q54: N | R54: N | S54: N | T54: N | U54: N | V54: N | W54: N | X54: N | Y54: N
D55: first yes | E55: =IF(E54="Y", 1, 0) -> 0 | F55: =IF(AND(F54="Y", E54="N"), 1, 0) -> 0 | G55: =IF(AND(G54="Y", F54="N"), 1, 0) -> 0 | H55: 0 | I55: 0 | J55: 0 | K55: 0 | L55: 0 | M55: 0 | N55: 0 | O55: 0 | P55: 0 | Q55: 0 | R55: 0 | S55: 0 | T55: 0 | U55: 0 | V55: 0 | W55: 0 | X55: 0
D56: 2nd yes | E56: 0 | F56: =IF(AND(F54="Y", G54="N"), 1, 0) -> 0 | G56: =IF(AND(G54="Y", H54="N"), 1, 0) -> 0 | H56: 0 | I56: 0 | J56: 0 | K56: 0 | L56: 0 | M56: 0 | N56: 0 | O56: 0 | P56: 0 | Q56: 0 | R56: 0 | S56: 0 | T56: 0 | U56: 0 | V56: 0 | W56: 0 | X56: 0
D58: Mult 1 | E58: =E55*E35 -> 0 | F58: =F55*F35 -> 0 | G58: 0 | H58: 0 | I58: 0 | J58: 0 | K58: 0 | L58: 0 | M58: 0 | N58: 0 | O58: 0 | P58: 0 | Q58: 0 | R58: 0 | S58: 0 | T58: 0 | U58: 0 | V58: 0 | W58: 0 | X58: 0
D59: mult2 | E59: =E35*E56 -> 0 | F59: =F35*F56 -> 0 | G59: 0 | H59: 0 | I59: 0 | J59: 0 | K59: 0 | L59: 0 | M59: 0 | N59: 0 | O59: 0 | P59: 0 | Q59: 0 | R59: 0 | S59: 0 | T59: 0 | U59: 0 | V59: 0 | W59: 0 | X59: 0
D62: FET 2
D63: Copied Inputs | I63: Maximum Junction Temperature | J63: ='Design Calculator'!G56 -> 175 | K63: °C
D64: Temp_start_up | E64: =SOA!H76 -> 85
D65: SOA margin target | E65: 1.5 | I65: SOA Coefficients
D66: Cap Energy (J) | E66: =1/2*COUTMAX*VINMAX^2*0.000001 -> 0.0031752 | J66: 0.01 to 0.1 ms | K66: 0.1 to 1ms | L66: 1 to 10 ms | M66: 10 to 100 ms
D67: E_load (t_worksheet) (J) | E67: =MAX(Equations!G71-E66,0) -> 442.21908 | I67: t1 | J67: 0.01 | K67: 0.1 | L67: 1 | M67: 10
D68: t_worksheet (ms) | E68: =Equations!G70 -> 2362.5 | I68: t2 | J68: 0.1 | K68: 1 | L68: 10 | M68: 100
I69: a | J69: =SOA!C84 -> 142.8594104 | K69: =SOA!D84 -> 24.3892504 | L69: =SOA!E84 -> 24.3892504 | M69: =SOA!F84 -> 11.99250448
D70: Load Turn-On Threshold | E70: ='Design Calculator'!F27 -> 0 | I70: m | J70: =SOA!C85 -> -0.2235755689 | K70: =SOA!D85 -> -0.9912859698 | L70: =SOA!E85 -> -0.5208905981 | M70: =SOA!F85 -> -0.2126020348
D71: Startup Load Type | E71: ='Design Calculator'!F28 -> Constant Current
D72: Startup Load Value | E72: ='Design Calculator'!F29 -> 15 | I72: Initial | J72: Final
G73: max slew rate | I73: =SUM(E103:X103) -> 0 | J73: =IF(I73=0, "NA", I73/AVERAGE(1, E77)) -> NA
D74: Upper bound Slew Rate (4ms start-up) (V/ms) | E74: =12/1 -> 12 | G74: min slew rate | I74: =SUM(E104:X104) -> 0 | J74: =IF(I74=0, "NA", I74*AVERAGE(1,E77)) -> NA
D75: Min Slew Rate (400 ms start - up) (V/ms) | E75: 0.12
D76: # of points | E76: 20
D77: mult per point | E77: =(E75/E74)^(1/(E76-1)) -> 0.7847599704
E79: 1 | F79: 2 | G79: 3 | H79: 4 | I79: 5 | J79: 6 | K79: 7 | L79: 8 | M79: 9 | N79: 10 | O79: 11 | P79: 12 | Q79: 13 | R79: 14 | S79: 15 | T79: 16 | U79: 17 | V79: 18 | W79: 19 | X79: 20
D80: slew rate (V/ms) | E80: =E74 -> 12 | F80: =E80*$E$32 -> 9.417119644 | G80: =F80*$E$32 -> 7.390178533 | H80: =G80*$E$32 -> 5.799516286 | I80: =H80*$E$32 -> 4.551228229 | J80: =I80*$E$32 -> 3.57162173 | K80: =J80*$E$32 -> 2.802865763 | L80: =K80*$E$32 -> 2.199576853 | M80: =L80*$E$32 -> 1.726139866 | N80: =M80*$E$32 -> 1.35460547 | O80: =N80*$E$32 -> 1.063040148 | P80: =O80*$E$32 -> 0.8342313554 | Q80: =P80*$E$32 -> 0.6546713737 | R80: =Q80*$E$32 -> 0.5137598878 | S80: =R80*$E$32 -> 0.4031781944 | T80: =S80*$E$32 -> 0.3163981078 | U80: =T80*$E$32 -> 0.2482965697 | V80: =U80*$E$32 -> 0.1948532087 | W80: =V80*$E$32 -> 0.1529129983 | X80: =W80*$E$32 -> 0.12
D81: t_start (ms) | E81: =VINMAX/E80 -> 2.1 | F81: 2.67597747 | G81: 3.409931152 | H81: 4.34518997 | I81: 5.536966887 | J81: 7.055618401 | K81: 8.990798037 | L81: 11.45674904 | M81: 14.59904872 | N81: 18.6032026 | O81: 23.70559573 | P81: 30.20744765 | Q81: 38.49259493 | R81: 49.05015085 | S81: 62.50338027 | T81: 79.64649401 | U81: 101.491535 | V81: 129.3281243 | W81: 164.7995938 | X81: 210
D82: I_cap (A) | E82: =E80*COUTMAX/1000 -> 0.12 | F82: 0.09417119644 | G82: 0.07390178533 | H82: 0.05799516286 | I82: 0.04551228229 | J82: 0.0357162173 | K82: 0.02802865763 | L82: 0.02199576853 | M82: 0.01726139866 | N82: 0.0135460547 | O82: 0.01063040148 | P82: 0.008342313554 | Q82: 0.006546713737 | R82: 0.005137598878 | S82: 0.004031781944 | T82: 0.003163981078 | U82: 0.002482965697 | V82: 0.001948532087 | W82: 0.001529129983 | X82: 0.0012
D83: Total FET Energy (J) | E83: =$E$66+$E$67*E81/$E$68 -> 0.3962588267 | F83: =$E$66+$E$67*F81/$E$68 -> 0.5040718328 | G83: 0.6414552496 | H83: 0.8165195011 | I83: 1.039599498 | J83: 1.323864757 | K83: 1.686096866 | L83: 2.147680182 | M83: 2.735864256 | N83: 3.485372508 | O83: 4.440452124 | P83: 5.657486189 | Q83: 7.208322255 | R83: 9.18451386 | S83: 11.70272539 | T83: 14.91161935 | U83: 19.00063266 | V83: 24.21116003 | W83: 30.85080472 | X83: 39.31153787
D84: Power (Vout= 0) , (W) | E84: =(E82+IF($E$71="Resistive",0,IF($E$70=0,$E$72,0)))*VINMAX -> 381.024 | F84: 380.3731142 | G84: 379.862325 | H84: 379.4614781 | I84: 379.1469095 | J84: 378.9000487 | K84: 378.7063222 | L84: 378.5542934 | M84: 378.4349872 | N84: 378.3413606 | O84: 378.2678861 | P84: 378.2102263 | Q84: 378.1649772 | R84: 378.1294675 | S84: 378.1016009 | T84: 378.0797323 | U84: 378.0625707 | V84: 378.049103 | W84: 378.0385341 | X84: 378.03024
D85: Power (load on), (W) | E85: =(E82+IF($E$71="Resistive", $E$70/$E$72,$E$72)) *(VINMAX-$E$70) -> 381.024 | F85: 380.3731142 | G85: 379.862325 | H85: 379.4614781 | I85: 379.1469095 | J85: 378.9000487 | K85: 378.7063222 | L85: 378.5542934 | M85: 378.4349872 | N85: 378.3413606 | O85: 378.2678861 | P85: 378.2102263 | Q85: 378.1649772 | R85: 378.1294675 | S85: 378.1016009 | T85: 378.0797323 | U85: 378.0625707 | V85: 378.049103 | W85: 378.0385341 | X85: 378.03024
D86: Vout (dP/dVout = 0) (V) | E86: =IF($E$71="Resistive", -$E$72*E82/2 + VINMAX/2, -1) -> -1 | F86: -1 | G86: -1 | H86: -1 | I86: -1 | J86: -1 | K86: -1 | L86: -1 | M86: -1 | N86: -1 | O86: -1 | P86: -1 | Q86: -1 | R86: -1 | S86: -1 | T86: -1 | U86: -1 | V86: -1 | W86: -1 | X86: -1
D87: Power (@ Vout above, if applicable) | E87: =IF(AND(E86<VINMAX, E86>$E$70), (VINMAX-E86)*(E82+E86/$E$72), 0) -> 0 | F87: 0 | G87: 0 | H87: 0 | I87: 0 | J87: 0 | K87: 0 | L87: 0 | M87: 0 | N87: 0 | O87: 0 | P87: 0 | Q87: 0 | R87: 0 | S87: 0 | T87: 0 | U87: 0 | V87: 0 | W87: 0 | X87: 0
D89: max power (W) | E89: =MAX(E84,E85,E87) -> 381.024 | F89: =MAX(F84,F85,F87) -> 380.3731142 | G89: =MAX(G84,G85,G87) -> 379.862325 | H89: =MAX(H84,H85,H87) -> 379.4614781 | I89: 379.1469095 | J89: 378.9000487 | K89: =MAX(K84,K85,K87) -> 378.7063222 | L89: =MAX(L84,L85,L87) -> 378.5542934 | M89: 378.4349872 | N89: 378.3413606 | O89: 378.2678861 | P89: 378.2102263 | Q89: 378.1649772 | R89: 378.1294675 | S89: 378.1016009 | T89: 378.0797323 | U89: 378.0625707 | V89: 378.049103 | W89: 378.0385341 | X89: 378.03024
D90: Equivalent time for SOA (ms) | E90: =E83/E89*1000 -> 1.039983903 | F90: =F83/F89*1000 -> 1.325203633 | G90: =G83/G89*1000 -> 1.688651934 | H90: =H83/H89*1000 -> 2.151784959 | I90: 2.741943747 | J90: 3.493968295 | K90: =K83/K89*1000 -> 4.45225434 | L90: =L83/L89*1000 -> 5.673374256 | M90: 7.229416803 | N90: 9.212242886 | O90: 11.73890855 | P90: 14.95857541 | Q90: 19.06131633 | R90: 24.28933646 | S90: 30.95127173 | T90: 39.4404092 | U90: 50.25790472 | V90: 64.04236867 | W90: 81.60756627 | X90: 103.9904582
D92: a | E92: =IF(E90<$J$68,$J$69,IF(E90<$K$68,$K$69,IF(E90<$L$68,$L$69,$M$69))) -> 24.3892504 | F92: =IF(F90<$J$68,$J$69,IF(F90<$K$68,$K$69,IF(F90<$L$68,$L$69,$M$69))) -> 24.3892504 | G92: 24.3892504 | H92: 24.3892504 | I92: 24.3892504 | J92: 24.3892504 | K92: 24.3892504 | L92: 24.3892504 | M92: 24.3892504 | N92: 24.3892504 | O92: 11.99250448 | P92: 11.99250448 | Q92: 11.99250448 | R92: 11.99250448 | S92: 11.99250448 | T92: 11.99250448 | U92: 11.99250448 | V92: 11.99250448 | W92: 11.99250448 | X92: 11.99250448
D93: m | E93: =IF(E90<$J$68,$J$70,IF(E90<$K$68,$K$70,IF(E90<$L$68,$L$70,$M$70))) -> -0.5208905981 | F93: =IF(F90<$J$68,$J$70,IF(F90<$K$68,$K$70,IF(F90<$L$68,$L$70,$M$70))) -> -0.5208905981 | G93: -0.5208905981 | H93: -0.5208905981 | I93: -0.5208905981 | J93: -0.5208905981 | K93: -0.5208905981 | L93: -0.5208905981 | M93: -0.5208905981 | N93: -0.5208905981 | O93: -0.2126020348 | P93: -0.2126020348 | Q93: -0.2126020348 | R93: -0.2126020348 | S93: -0.2126020348 | T93: -0.2126020348 | U93: -0.2126020348 | V93: -0.2126020348 | W93: -0.2126020348 | X93: -0.2126020348
D95: Available SOA (W) | E95: =E92*E90^E93*VINMAX -> 602.1850764 | F95: 530.7660397 | G95: 467.8164326 | H95: 412.332144 | I95: 363.4280285 | J95: =J92*J90^J93*VINMAX -> 320.3238351 | K95: =K92*K90^K93*VINMAX -> 282.3317935 | L95: 248.8456642 | M95: 219.3310816 | N95: 193.3170387 | O95: 179.021586 | P95: 170.0303213 | Q95: 161.4906271 | R95: 153.379827 | S95: 145.6763824 | T95: 138.3598359 | U95: 131.4107571 | V95: 124.8106911 | W95: =W92*W90^W93*VINMAX -> 118.5421095 | X95: =X92*X90^X93*VINMAX -> 112.5883642
D96: Derated for Temp | E96: =E95*($J$63-$E$64)/($J$63 - 25) -> 361.3110459 | F96: =F95*($J$63-$E$64)/($J$63 - 25) -> 318.4596238 | G96: 280.6898596 | H96: 247.3992864 | I96: 218.0568171 | J96: 192.194301 | K96: 169.3990761 | L96: 149.3073985 | M96: 131.5986489 | N96: 115.9902232 | O96: 107.4129516 | P96: 102.0181928 | Q96: 96.89437627 | R96: 92.0278962 | S96: 87.40582945 | T96: 83.01590156 | U96: 78.84645427 | V96: 74.88641464 | W96: 71.12526569 | X96: 67.55301854
D97: SOA Margin | E97: =E96/E89 -> 0.9482632219 | F97: =F96/F89 -> 0.8372295833 | G97: =G96/G89 -> 0.7389252398 | H97: =H96/H89 -> 0.651974708 | I97: 0.5751248701 | J97: 0.5072427457 | K97: =K96/K89 -> 0.4473098709 | L97: =L96/L89 -> 0.394414754 | M97: 0.3477444036 | N97: 0.3065755831 | O97: 0.283960007 | P97: 0.2697393821 | Q97: 0.2562225011 | R97: 0.2433766847 | S97: 0.2311702179 | T97: 0.2195724723 | U97: 0.2085539812 | V97: 0.1980864762 | W97: 0.1881428989 | X97: 0.1786973935
D99: Pass? | E99: =IF(E97>$E$20, "Y", "N") -> N | F99: =IF(F97>$E$20, "Y", "N") -> N | G99: N | H99: N | I99: N | J99: N | K99: N | L99: N | M99: N | N99: N | O99: N | P99: N | Q99: N | R99: N | S99: N | T99: N | U99: N | V99: N | W99: N | X99: N | Y99: N
D100: first yes | E100: =IF(E99="Y", 1, 0) -> 0 | F100: =IF(AND(F99="Y", E99="N"), 1, 0) -> 0 | G100: =IF(AND(G99="Y", F99="N"), 1, 0) -> 0 | H100: =IF(AND(H99="Y", G99="N"), 1, 0) -> 0 | I100: =IF(AND(I99="Y", H99="N"), 1, 0) -> 0 | J100: =IF(AND(J99="Y", I99="N"), 1, 0) -> 0 | K100: =IF(AND(K99="Y", J99="N"), 1, 0) -> 0 | L100: =IF(AND(L99="Y", K99="N"), 1, 0) -> 0 | M100: =IF(AND(M99="Y", L99="N"), 1, 0) -> 0 | N100: =IF(AND(N99="Y", M99="N"), 1, 0) -> 0 | O100: =IF(AND(O99="Y", N99="N"), 1, 0) -> 0 | P100: =IF(AND(P99="Y", O99="N"), 1, 0) -> 0 | Q100: =IF(AND(Q99="Y", P99="N"), 1, 0) -> 0 | R100: =IF(AND(R99="Y", Q99="N"), 1, 0) -> 0 | S100: =IF(AND(S99="Y", R99="N"), 1, 0) -> 0 | T100: =IF(AND(T99="Y", S99="N"), 1, 0) -> 0 | U100: =IF(AND(U99="Y", T99="N"), 1, 0) -> 0 | V100: =IF(AND(V99="Y", U99="N"), 1, 0) -> 0 | W100: =IF(AND(W99="Y", V99="N"), 1, 0) -> 0 | X100: =IF(AND(X99="Y", W99="N"), 1, 0) -> 0
D101: 2nd yes | E101: 0 | F101: =IF(AND(F99="Y", G99="N"), 1, 0) -> 0 | G101: =IF(AND(G99="Y", H99="N"), 1, 0) -> 0 | H101: =IF(AND(H99="Y", I99="N"), 1, 0) -> 0 | I101: =IF(AND(I99="Y", J99="N"), 1, 0) -> 0 | J101: =IF(AND(J99="Y", K99="N"), 1, 0) -> 0 | K101: =IF(AND(K99="Y", L99="N"), 1, 0) -> 0 | L101: =IF(AND(L99="Y", M99="N"), 1, 0) -> 0 | M101: =IF(AND(M99="Y", N99="N"), 1, 0) -> 0 | N101: =IF(AND(N99="Y", O99="N"), 1, 0) -> 0 | O101: =IF(AND(O99="Y", P99="N"), 1, 0) -> 0 | P101: =IF(AND(P99="Y", Q99="N"), 1, 0) -> 0 | Q101: =IF(AND(Q99="Y", R99="N"), 1, 0) -> 0 | R101: =IF(AND(R99="Y", S99="N"), 1, 0) -> 0 | S101: =IF(AND(S99="Y", T99="N"), 1, 0) -> 0 | T101: =IF(AND(T99="Y", U99="N"), 1, 0) -> 0 | U101: =IF(AND(U99="Y", V99="N"), 1, 0) -> 0 | V101: =IF(AND(V99="Y", W99="N"), 1, 0) -> 0 | W101: =IF(AND(W99="Y", X99="N"), 1, 0) -> 0 | X101: =IF(AND(X99="Y", Y99="N"), 1, 0) -> 0
D103: Mult 1 | E103: =E100*E80 -> 0 | F103: =F100*F80 -> 0 | G103: 0 | H103: 0 | I103: 0 | J103: 0 | K103: 0 | L103: 0 | M103: 0 | N103: 0 | O103: 0 | P103: 0 | Q103: 0 | R103: 0 | S103: 0 | T103: 0 | U103: 0 | V103: 0 | W103: 0 | X103: 0
D104: mult2 | E104: =E80*E101 -> 0 | F104: =F80*F101 -> 0 | G104: 0 | H104: 0 | I104: 0 | J104: 0 | K104: 0 | L104: 0 | M104: 0 | N104: 0 | O104: 0 | P104: 0 | Q104: 0 | R104: 0 | S104: 0 | T104: 0 | U104: 0 | V104: 0 | W104: 0 | X104: 0
D107: FET 3
D108: Copied Inputs | I108: Maximum Junction Temperature | J108: ='Design Calculator'!H56 -> 175 | K108: °C
D109: Temp_start_up | E109: =SOA!H124 -> 85
D110: SOA margin target | E110: 1.5 | I110: SOA Coefficients
D111: Cap Energy (J) | E111: =1/2*COUTMAX*VINMAX^2*0.000001 -> 0.0031752 | J111: 0.01 to 0.1 ms | K111: 0.1 to 1ms | L111: 1 to 10 ms | M111: 10 to 100 ms
D112: E_load (t_worksheet) (J) | E112: =MAX(Equations!H71-E111,0) -> 442.21908 | I112: t1 | J112: 0.01 | K112: 0.1 | L112: 1 | M112: 10
D113: t_worksheet (ms) | E113: =Equations!H70 -> 2362.5 | I113: t2 | J113: 0.1 | K113: 1 | L113: 10 | M113: 100
I114: a | J114: =SOA!C132 -> 5.104166667 | K114: =SOA!D132 -> 3 | L114: =SOA!E132 -> 3 | M114: =SOA!F132 -> 40
D115: Load Turn-On Threshold | E115: ='Design Calculator'!F27 -> 0 | I115: m | J115: =SOA!C133 -> -0.8361431974 | K115: =SOA!D133 -> -1.06694679 | L115: =SOA!E133 -> -0.1760912591 | M115: =SOA!F133 -> -1.301029996
D116: Startup Load Type | E116: ='Design Calculator'!F28 -> Constant Current
D117: Startup Load Value | E117: ='Design Calculator'!F29 -> 15 | I117: Initial | J117: Final
G118: max slew rate | I118: =SUM(E148:X148) -> 0 | J118: =IF(I118=0, "NA", I118/AVERAGE(1, E122)) -> NA
D119: Upper bound Slew Rate (4ms start-up) (V/ms) | E119: =12/1 -> 12 | G119: min slew rate | I119: =SUM(E149:X149) -> 0 | J119: =IF(I119=0, "NA", I119*AVERAGE(1,E122)) -> NA
D120: Min Slew Rate (400 ms start - up) (V/ms) | E120: 0.12
D121: # of points | E121: 20
D122: mult per point | E122: =(E120/E119)^(1/(E121-1)) -> 0.7847599704
E124: 1 | F124: 2 | G124: 3 | H124: 4 | I124: 5 | J124: 6 | K124: 7 | L124: 8 | M124: 9 | N124: 10 | O124: 11 | P124: 12 | Q124: 13 | R124: 14 | S124: 15 | T124: 16 | U124: 17 | V124: 18 | W124: 19 | X124: 20
D125: slew rate (V/ms) | E125: =E119 -> 12 | F125: =E125*$E$32 -> 9.417119644 | G125: =F125*$E$32 -> 7.390178533 | H125: =G125*$E$32 -> 5.799516286 | I125: =H125*$E$32 -> 4.551228229 | J125: =I125*$E$32 -> 3.57162173 | K125: =J125*$E$32 -> 2.802865763 | L125: =K125*$E$32 -> 2.199576853 | M125: =L125*$E$32 -> 1.726139866 | N125: =M125*$E$32 -> 1.35460547 | O125: =N125*$E$32 -> 1.063040148 | P125: =O125*$E$32 -> 0.8342313554 | Q125: =P125*$E$32 -> 0.6546713737 | R125: =Q125*$E$32 -> 0.5137598878 | S125: =R125*$E$32 -> 0.4031781944 | T125: =S125*$E$32 -> 0.3163981078 | U125: =T125*$E$32 -> 0.2482965697 | V125: =U125*$E$32 -> 0.1948532087 | W125: =V125*$E$32 -> 0.1529129983 | X125: =W125*$E$32 -> 0.12
D126: t_start (ms) | E126: =VINMAX/E125 -> 2.1 | F126: 2.67597747 | G126: 3.409931152 | H126: 4.34518997 | I126: 5.536966887 | J126: 7.055618401 | K126: 8.990798037 | L126: 11.45674904 | M126: 14.59904872 | N126: 18.6032026 | O126: 23.70559573 | P126: 30.20744765 | Q126: 38.49259493 | R126: 49.05015085 | S126: 62.50338027 | T126: 79.64649401 | U126: 101.491535 | V126: 129.3281243 | W126: 164.7995938 | X126: 210
D127: I_cap (A) | E127: =E125*COUTMAX/1000 -> 0.12 | F127: 0.09417119644 | G127: 0.07390178533 | H127: 0.05799516286 | I127: 0.04551228229 | J127: 0.0357162173 | K127: 0.02802865763 | L127: 0.02199576853 | M127: 0.01726139866 | N127: 0.0135460547 | O127: 0.01063040148 | P127: 0.008342313554 | Q127: 0.006546713737 | R127: 0.005137598878 | S127: 0.004031781944 | T127: 0.003163981078 | U127: 0.002482965697 | V127: 0.001948532087 | W127: 0.001529129983 | X127: 0.0012
D128: Total FET Energy (J) | E128: =$E$111+$E$112*E126/$E$113 -> 0.3962588267 | F128: =$E$111+$E$112*F126/$E$113 -> 0.5040718328 | G128: 0.6414552496 | H128: 0.8165195011 | I128: 1.039599498 | J128: 1.323864757 | K128: 1.686096866 | L128: 2.147680182 | M128: 2.735864256 | N128: 3.485372508 | O128: 4.440452124 | P128: 5.657486189 | Q128: 7.208322255 | R128: 9.18451386 | S128: 11.70272539 | T128: 14.91161935 | U128: 19.00063266 | V128: 24.21116003 | W128: 30.85080472 | X128: 39.31153787
D129: Power (Vout= 0) , (W) | E129: =(E127+IF($E$116="Resistive",0,IF($E$115=0,$E$117,0)))*VINMAX -> 381.024 | F129: 380.3731142 | G129: 379.862325 | H129: 379.4614781 | I129: 379.1469095 | J129: 378.9000487 | K129: 378.7063222 | L129: 378.5542934 | M129: 378.4349872 | N129: 378.3413606 | O129: 378.2678861 | P129: 378.2102263 | Q129: 378.1649772 | R129: 378.1294675 | S129: 378.1016009 | T129: 378.0797323 | U129: 378.0625707 | V129: 378.049103 | W129: 378.0385341 | X129: 378.03024
D130: Power (load on), (W) | E130: =(E127+IF($E$116="Resistive", $E$115/$E$117,$E$117)) *(VINMAX-$E$115) -> 381.024 | F130: 380.3731142 | G130: 379.862325 | H130: 379.4614781 | I130: 379.1469095 | J130: 378.9000487 | K130: 378.7063222 | L130: 378.5542934 | M130: 378.4349872 | N130: 378.3413606 | O130: 378.2678861 | P130: 378.2102263 | Q130: 378.1649772 | R130: 378.1294675 | S130: 378.1016009 | T130: 378.0797323 | U130: 378.0625707 | V130: 378.049103 | W130: 378.0385341 | X130: 378.03024
D131: Vout (dP/dVout = 0) (V) | E131: =IF($E$116="Resistive", -$E$117*E127/2 + VINMAX/2, -1) -> -1 | F131: -1 | G131: -1 | H131: -1 | I131: -1 | J131: -1 | K131: -1 | L131: -1 | M131: -1 | N131: -1 | O131: -1 | P131: -1 | Q131: -1 | R131: -1 | S131: -1 | T131: -1 | U131: -1 | V131: -1 | W131: -1 | X131: -1
D132: Power (@ Vout above, if applicable) | E132: =IF(AND(E131<VINMAX, E131>$E$115), (VINMAX-E131)*(E127+E131/$E$117), 0) -> 0 | F132: 0 | G132: 0 | H132: 0 | I132: 0 | J132: 0 | K132: 0 | L132: 0 | M132: 0 | N132: 0 | O132: 0 | P132: 0 | Q132: 0 | R132: 0 | S132: 0 | T132: 0 | U132: 0 | V132: 0 | W132: 0 | X132: 0
D134: max power (W) | E134: =MAX(E129,E130,E132) -> 381.024 | F134: =MAX(F129,F130,F132) -> 380.3731142 | G134: =MAX(G129,G130,G132) -> 379.862325 | H134: =MAX(H129,H130,H132) -> 379.4614781 | I134: 379.1469095 | J134: 378.9000487 | K134: =MAX(K129,K130,K132) -> 378.7063222 | L134: =MAX(L129,L130,L132) -> 378.5542934 | M134: 378.4349872 | N134: 378.3413606 | O134: 378.2678861 | P134: 378.2102263 | Q134: 378.1649772 | R134: 378.1294675 | S134: 378.1016009 | T134: 378.0797323 | U134: 378.0625707 | V134: 378.049103 | W134: 378.0385341 | X134: 378.03024
D135: Equivalent time for SOA (ms) | E135: =E128/E134*1000 -> 1.039983903 | F135: =F128/F134*1000 -> 1.325203633 | G135: =G128/G134*1000 -> 1.688651934 | H135: =H128/H134*1000 -> 2.151784959 | I135: 2.741943747 | J135: 3.493968295 | K135: =K128/K134*1000 -> 4.45225434 | L135: =L128/L134*1000 -> 5.673374256 | M135: 7.229416803 | N135: 9.212242886 | O135: 11.73890855 | P135: 14.95857541 | Q135: 19.06131633 | R135: 24.28933646 | S135: 30.95127173 | T135: 39.4404092 | U135: 50.25790472 | V135: 64.04236867 | W135: 81.60756627 | X135: 103.9904582
D137: a | E137: =IF(E135<$J$113,$J$114,IF(E135<$K$113,$K$114,IF(E135<$L$113,$L$114,$M$114))) -> 3 | F137: =IF(F135<$J$113,$J$114,IF(F135<$K$113,$K$114,IF(F135<$L$113,$L$114,$M$114))) -> 3 | G137: 3 | H137: 3 | I137: 3 | J137: 3 | K137: 3 | L137: 3 | M137: 3 | N137: 3 | O137: 40 | P137: 40 | Q137: 40 | R137: 40 | S137: 40 | T137: 40 | U137: 40 | V137: 40 | W137: 40 | X137: 40
D138: m | E138: =IF(E135<$J$113,$J$115,IF(E135<$K$113,$K$115,IF(E135<$L$113,$L$115,$M$115))) -> -0.1760912591 | F138: =IF(F135<$J$113,$J$115,IF(F135<$K$113,$K$115,IF(F135<$L$113,$L$115,$M$115))) -> -0.1760912591 | G138: -0.1760912591 | H138: -0.1760912591 | I138: -0.1760912591 | J138: -0.1760912591 | K138: -0.1760912591 | L138: -0.1760912591 | M138: -0.1760912591 | N138: -0.1760912591 | O138: -1.301029996 | P138: -1.301029996 | Q138: -1.301029996 | R138: -1.301029996 | S138: -1.301029996 | T138: -1.301029996 | U138: -1.301029996 | V138: -1.301029996 | W138: -1.301029996 | X138: -1.301029996
D140: Available SOA (W) | E140: =E137*E135^E138*VINMAX -> 75.07987779 | F140: 71.94305824 | G140: 68.93725169 | H140: 66.05699661 | I140: 63.29705665 | J140: =J137*J135^J138*VINMAX -> 60.65241192 | K140: =K137*K135^K138*VINMAX -> 58.11825053 | L140: 55.6899603 | M140: 53.36312078 | N140: 51.13349542 | O140: 40.91125337 | P140: 29.84647832 | Q140: 21.774251 | R140: 15.88521927 | S140: 11.5889234 | T140: 8.454596464 | U140: 6.167975028 | V140: 4.499790311 | W140: =W137*W135^W138*VINMAX -> 3.282780944 | X140: =X137*X135^X138*VINMAX -> 2.394922688
D141: Derated for Temp | E141: =E140*($J$108-$E$109)/($J$108 - 25) -> 45.04792667 | F141: =F140*($J$108-$E$109)/($J$108 - 25) -> 43.16583494 | G141: 41.36235101 | H141: 39.63419797 | I141: 37.97823399 | J141: 36.39144715 | K141: 34.87095032 | L141: 33.41397618 | M141: 32.01787247 | N141: 30.68009725 | O141: 24.54675202 | P141: 17.90788699 | Q141: 13.0645506 | R141: 9.531131562 | S141: 6.95335404 | T141: 5.072757878 | U141: 3.700785017 | V141: 2.699874187 | W141: 1.969668566 | X141: 1.436953613
D142: SOA Margin | E142: =E141/E134 -> 0.1182285805 | F142: =F141/F134 -> 0.113482876 | G142: =G141/G134 -> 0.1088877425 | H142: =H141/H134 -> 0.1044485416 | I142: 0.1001675948 | J142: 0.09604497882 | K142: =K141/K134 -> 0.09207913434 | L142: =L141/L134 -> 0.08826732854 | M142: 0.08460600512 | N142: 0.08109104753 | O142: 0.06489250851 | P142: 0.04734902905 | Q142: 0.03454722512 | R142: 0.02520600054 | S142: 0.0183901735 | T142: 0.01341716428 | U142: 0.009788816199 | V142: 0.007141596595 | W142: 0.005210232262 | X142: 0.003801160491
D144: Pass? | E144: =IF(E142>$E$20, "Y", "N") -> N | F144: =IF(F142>$E$20, "Y", "N") -> N | G144: N | H144: N | I144: N | J144: N | K144: N | L144: N | M144: N | N144: N | O144: N | P144: N | Q144: N | R144: N | S144: N | T144: N | U144: N | V144: N | W144: N | X144: N | Y144: N
D145: first yes | E145: =IF(E144="Y", 1, 0) -> 0 | F145: =IF(AND(F144="Y", E144="N"), 1, 0) -> 0 | G145: =IF(AND(G144="Y", F144="N"), 1, 0) -> 0 | H145: =IF(AND(H144="Y", G144="N"), 1, 0) -> 0 | I145: =IF(AND(I144="Y", H144="N"), 1, 0) -> 0 | J145: =IF(AND(J144="Y", I144="N"), 1, 0) -> 0 | K145: =IF(AND(K144="Y", J144="N"), 1, 0) -> 0 | L145: =IF(AND(L144="Y", K144="N"), 1, 0) -> 0 | M145: =IF(AND(M144="Y", L144="N"), 1, 0) -> 0 | N145: =IF(AND(N144="Y", M144="N"), 1, 0) -> 0 | O145: =IF(AND(O144="Y", N144="N"), 1, 0) -> 0 | P145: =IF(AND(P144="Y", O144="N"), 1, 0) -> 0 | Q145: =IF(AND(Q144="Y", P144="N"), 1, 0) -> 0 | R145: =IF(AND(R144="Y", Q144="N"), 1, 0) -> 0 | S145: =IF(AND(S144="Y", R144="N"), 1, 0) -> 0 | T145: =IF(AND(T144="Y", S144="N"), 1, 0) -> 0 | U145: =IF(AND(U144="Y", T144="N"), 1, 0) -> 0 | V145: =IF(AND(V144="Y", U144="N"), 1, 0) -> 0 | W145: =IF(AND(W144="Y", V144="N"), 1, 0) -> 0 | X145: =IF(AND(X144="Y", W144="N"), 1, 0) -> 0
D146: 2nd yes | E146: 0 | F146: =IF(AND(F144="Y", G144="N"), 1, 0) -> 0 | G146: =IF(AND(G144="Y", H144="N"), 1, 0) -> 0 | H146: =IF(AND(H144="Y", I144="N"), 1, 0) -> 0 | I146: =IF(AND(I144="Y", J144="N"), 1, 0) -> 0 | J146: =IF(AND(J144="Y", K144="N"), 1, 0) -> 0 | K146: =IF(AND(K144="Y", L144="N"), 1, 0) -> 0 | L146: =IF(AND(L144="Y", M144="N"), 1, 0) -> 0 | M146: =IF(AND(M144="Y", N144="N"), 1, 0) -> 0 | N146: =IF(AND(N144="Y", O144="N"), 1, 0) -> 0 | O146: =IF(AND(O144="Y", P144="N"), 1, 0) -> 0 | P146: =IF(AND(P144="Y", Q144="N"), 1, 0) -> 0 | Q146: =IF(AND(Q144="Y", R144="N"), 1, 0) -> 0 | R146: =IF(AND(R144="Y", S144="N"), 1, 0) -> 0 | S146: =IF(AND(S144="Y", T144="N"), 1, 0) -> 0 | T146: =IF(AND(T144="Y", U144="N"), 1, 0) -> 0 | U146: =IF(AND(U144="Y", V144="N"), 1, 0) -> 0 | V146: =IF(AND(V144="Y", W144="N"), 1, 0) -> 0 | W146: =IF(AND(W144="Y", X144="N"), 1, 0) -> 0 | X146: =IF(AND(X144="Y", Y144="N"), 1, 0) -> 0
D148: Mult 1 | E148: =E145*E125 -> 0 | F148: =F145*F125 -> 0 | G148: 0 | H148: 0 | I148: 0 | J148: 0 | K148: 0 | L148: 0 | M148: 0 | N148: 0 | O148: 0 | P148: 0 | Q148: 0 | R148: 0 | S148: 0 | T148: 0 | U148: 0 | V148: 0 | W148: 0 | X148: 0
D149: mult2 | E149: =E125*E146 -> 0 | F149: =F125*F146 -> 0 | G149: 0 | H149: 0 | I149: 0 | J149: 0 | K149: 0 | L149: 0 | M149: 0 | N149: 0 | O149: 0 | P149: 0 | Q149: 0 | R149: 0 | S149: 0 | T149: 0 | U149: 0 | V149: 0 | W149: 0 | X149: 0
